Workbook

Sheet VUC-Pass
B2: Official CP7 VUC Calculator: | F2: Passenger vehicles
B3: V8c: April 2024
B5: Vehicle data
C6: Vehicle name/class | G6: (Motor)
C8: Vehicle type
C9: Number of axles
C10: Speed (max, mph)
C11: Route speed (max, mph)
C12: Speed (operating, mph)
C13: Tare weight (t) | F13: Seats
C14: Operating weight (t)
C15: Unsprung mass (kg)
C16: Curving class
C17: Ct factor
B20: Calculated VUC
C21: 2023/24 prices
C23: VUC
C25: VUC Breakdown
C26: Track
C27: Structures
C28: Signals (variable)
C29: Signals (fixed)
C30: Surface damage

Sheet VUC-Freight
B2: Official CP7 VUC Calculator: | F2: Freight vehicles
B3: V8c: April 2024
B5: Vehicle data
C6: Vehicle name/class
C8: Load condition
C9: Number of axles
C10: Weight (t)
C11: Unsprung mass (kg)
C12: Curving class
C13: Suspension band
C14: RFC value?
C15: Suspension factor
C16: Ct factor (structures)
B18: Calculated VUC
B19: All values in £/kGTM | E19: 2023/24 prices
D20: Existing CP5 rate? | F20: 2024/25 | G20: 2025/26 | H20: 2026/27 | I20: 2027/28 | J20: 2028/29

Sheet Freight (hidden)
B1: FREIGHT VEHICLE CHARACTERISTIC DATA
B2: B | C2: D | D2: E | G2: H | H2: I | I2: J | J2: K | K2: M | L2: L | N2: Q
B3: Vehicle type | C3: Laden/Unladen | D3: Commodity | G3: Operating weight (t) | I3: Axles | J3: Unsprung mass (kg/axle) | K3: Curving Class | L3: Suspension band | N3: Bespoke suspension factor | O3: NR comments | Q3: Look up code | R3: Vehicle Type (Tare* / Laden**) | S3: Commodity Type | T3: 2018/19 (£/kgtm, 2017/18 prices prices) | U3: £/kgtm (2017/18 prices)
B4: 08/0 | C4: N/A | D4: Chemicals | G4: 49 | I4: 3 | J4: 3650 | K4: Shunter | L4: 0 | N4: n/a | Q4: 08/0Chemicals | T4: 3.3107 | U4: 3.2685
B5: 08/0 | C5: N/A | D5: Construction Materials | G5: 49 | I5: 3 | J5: 3650 | K5: Shunter | L5: 0 | N5: n/a | Q5: 08/0Construction Materials | T5: 3.4753 | U5: 3.7421
B6: 08/0 | C6: N/A | D6: Domestic Intermodal | G6: 49 | I6: 3 | J6: 3650 | K6: Shunter | L6: 0 | N6: n/a | Q6: 08/0Domestic Intermodal | T6: 3.6787 | U6: 3.8962
B7: 08/0 | C7: N/A | D7: Other | G7: 49 | I7: 3 | J7: 3650 | K7: Shunter | L7: 0 | N7: n/a | Q7: 08/0Other | T7: 3.4128 | U7: 3.5917
B8: 08/0 | C8: N/A | D8: Petroleum | G8: 49 | I8: 3 | J8: 3650 | K8: Shunter | L8: 0 | N8: n/a | Q8: 08/0Petroleum | T8: 3.4027 | U8: 3.518
B9: 20/0 | C9: N/A | D9: Coal ESI | G9: 73 | I9: 4 | J9: 3810 | K9: Loco2_50 | L9: 0 | N9: n/a | O9: Moved from the 'not operated list' vice email from SLC operations via Ian Stone 23/9/22 | Q9: 20/0Coal ESI | T9: 4.1339 | U9: 6.0204
B10: 20/0 | C10: N/A | D10: Construction Materials | G10: 73 | I10: 4 | J10: 3810 | K10: Loco2_50 | L10: 0 | N10: n/a | Q10: 20/0Construction Materials | T10: 4.2325 | U10: 6.2251
B11: 20/0 | C11: N/A | D11: Enterprise | G11: 73 | I11: 4 | J11: 3810 | K11: Loco2_50 | L11: 0 | N11: n/a | O11: Moved from the 'not operated list' vice email from SLC operations via Ian Stone 23/9/22 | Q11: 20/0Enterprise | T11: 4.3621 | U11: 6.1422
B12: 20/0 | C12: N/A | D12: Other | G12: 73 | I12: 4 | J12: 3810 | K12: Loco2_50 | L12: 0 | N12: n/a | Q12: 20/0Other | T12: 4.1806 | U12: 6.0606
B13: 20/3 | C13: N/A | D13: Construction Materials | G13: 73 | I13: 4 | J13: 3810 | K13: Loco2_50 | L13: 0 | N13: n/a | Q13: 20/3Construction Materials | T13: 4.2448 | U13: 6.2251
B14: 20/3 | C14: N/A | D14: Domestic Intermodal | G14: 73 | I14: 4 | J14: 3810 | K14: Loco2_50 | L14: 0 | N14: n/a | O14: Moved from the 'not operated list' vice spreadhseet from DC Rail (Bruce Giles email 02.09.22) | Q14: 20/3Domestic Intermodal | T14: 4.4884 | U14: 6.3948
B15: 20/3 | C15: N/A | D15: Mail and Premium Logistics | G15: 73 | I15: 4 | J15: 3810 | K15: Loco2_50 | L15: 0 | N15: n/a | O15: Moved from the 'not operated list' vice spreadhseet from DC Rail (Bruce Giles email 02.09.22) | Q15: 20/3Mail and Premium Logistics | T15: 5.6333 | U15: 8.5963
B16: 20/3 | C16: N/A | D16: Other | G16: 73 | I16: 4 | J16: 3810 | K16: Loco2_50 | L16: 0 | N16: n/a | Q16: 20/3Other | T16: 4.193 | U16: 6.0606
B17: 20/3 | C17: N/A | D17: Steel | G17: 73 | I17: 4 | J17: 3810 | K17: Loco2_50 | L17: 0 | N17: n/a | O17: Moved from the 'not operated list' vice spreadhseet from DC Rail (Bruce Giles email 02.09.22) | Q17: 20/3Steel | T17: 4.193 | U17: 6.0606
B18: 20/9 | C18: N/A | D18: Construction Materials | G18: 73 | I18: 4 | J18: 3810 | K18: Loco2_50 | L18: 0 | N18: n/a | Q18: 20/9Construction Materials | T18: 4.2325 | U18: 6.2251
B19: 20/9 | C19: N/A | D19: Other | G19: 73 | I19: 4 | J19: 3810 | K19: Loco2_50 | L19: 0 | N19: n/a | Q19: 20/9Other | T19: 4.1806 | U19: 6.0606
B20: 26/1 | C20: N/A | D20: Other | G20: 73 | I20: 4 | J20: 3500 | K20: Loco2_50 | L20: 0 | N20: n/a | Q20: 26/1Other | T20: 4.1593 | U20: 6.0468
B21: 31/1 | C21: N/A | D21: Construction Materials | G21: 107 | I21: 6 | J21: 3370 | K21: Loco3_50 | L21: 0 | N21: n/a | Q21: 31/1Construction Materials | T21: 4.0886 | U21: 5.8902
B22: 31/1 | C22: N/A | D22: Other | G22: 107 | I22: 6 | J22: 3370 | K22: Loco3_50 | L22: 0 | N22: n/a | Q22: 31/1Other | T22: 4.0419 | U22: 5.7414
B23: 31/4 | C23: N/A | D23: Other | G23: 107 | I23: 6 | J23: 3370 | K23: Loco3_50 | L23: 0 | N23: n/a | Q23: 31/4Other | T23: 4.0419 | U23: 5.7414
B24: 33/0 | C24: N/A | D24: Other | G24: 76 | I24: 4 | J24: 3500 | K24: Loco2_50 | L24: 0 | N24: n/a | Q24: 33/0Other | T24: 3.8814 | U24: 6.1189
B25: 33/2 | C25: N/A | D25: Other | G25: 76 | I25: 6 | J25: 3500 | K25: Loco2_50 | L25: 0 | N25: n/a | Q25: 33/2Other | T25: 3.4566 | U25: 4.8317
B26: 37/0 | C26: N/A | D26: Construction Materials | G26: 105 | I26: 6 | J26: 3238 | K26: Loco3_50 | L26: 0 | N26: n/a | Q26: 37/0Construction Materials | T26: 4.072 | U26: 5.856
B27: 37/0 | C27: N/A | D27: Domestic Automotive | G27: 105 | I27: 6 | J27: 3238 | K27: Loco3_50 | L27: 0 | N27: n/a | Q27: 37/0Domestic Automotive | T27: 4.2019 | U27: 5.7133
B28: 37/0 | C28: N/A | D28: Domestic Intermodal | G28: 105 | I28: 6 | J28: 3238 | K28: Loco3_50 | L28: 0 | N28: n/a | Q28: 37/0Domestic Intermodal | T28: 4.293 | U28: 6.0033
B29: 37/0 | C29: N/A | D29: Enterprise | G29: 105 | I29: 6 | J29: 3238 | K29: Loco3_50 | L29: 0 | N29: n/a | Q29: 37/0Enterprise | T29: 4.1941 | U29: 5.7841
B30: 37/0 | C30: N/A | D30: European Intermodal | G30: 105 | I30: 6 | J30: 3238 | K30: Loco3_50 | L30: 0 | N30: n/a | Q30: 37/0European Intermodal | T30: 4.3525 | U30: 6.1935
B31: 37/0 | C31: N/A | D31: General Merchandise | G31: 105 | I31: 6 | J31: 3238 | K31: Loco3_50 | L31: 0 | N31: n/a | Q31: 37/0General Merchandise | T31: 4.2282 | U31: 5.8924
B32: 37/0 | C32: N/A | D32: Other | G32: 105 | I32: 6 | J32: 3238 | K32: Loco3_50 | L32: 0 | N32: n/a | Q32: 37/0Other | T32: 4.027 | U32: 5.7133
B33: 37/0 | C33: N/A | D33: Petroleum | G33: 105 | I33: 6 | J33: 3238 | K33: Loco3_50 | L33: 0 | N33: n/a | Q33: 37/0Petroleum | T33: 4.0051 | U33: 5.6438
B34: 37/0 | C34: N/A | D34: Steel | G34: 105 | I34: 6 | J34: 3238 | K34: Loco3_50 | L34: 0 | N34: n/a | Q34: 37/0Steel | T34: 4.0271 | U34: 5.7133
B35: 37/4 | C35: N/A | D35: Biomass | G35: 107 | I35: 6 | J35: 3238 | K35: Loco3_50 | L35: 0 | N35: n/a | Q35: 37/4Biomass | T35: 4.1364 | U35: 6.068
B36: 37/4 | C36: N/A | D36: Chemicals | G36: 107 | I36: 6 | J36: 3238 | K36: Loco3_50 | L36: 0 | N36: n/a | Q36: 37/4Chemicals | T36: 3.9355 | U36: 5.4296
B37: 37/4 | C37: N/A | D37: Construction Materials | G37: 107 | I37: 6 | J37: 3238 | K37: Loco3_50 | L37: 0 | N37: n/a | Q37: 37/4Construction Materials | T37: 4.0776 | U37: 5.8802
B38: 37/4 | C38: N/A | D38: Domestic Automotive | G38: 107 | I38: 6 | J38: 3238 | K38: Loco3_50 | L38: 0 | N38: n/a | Q38: 37/4Domestic Automotive | T38: 4.2111 | U38: 5.7354
B39: 37/4 | C39: N/A | D39: Domestic Intermodal | G39: 107 | I39: 6 | J39: 3238 | K39: Loco3_50 | L39: 0 | N39: n/a | Q39: 37/4Domestic Intermodal | T39: 4.3034 | U39: 6.0299
B40: 37/4 | C40: N/A | D40: European Intermodal | G40: 107 | I40: 6 | J40: 3238 | K40: Loco3_50 | L40: 0 | N40: n/a | Q40: 37/4European Intermodal | T40: 4.3637 | U40: 6.2234
B41: 37/4 | C41: N/A | D41: Other | G41: 107 | I41: 6 | J41: 3238 | K41: Loco3_50 | L41: 0 | N41: n/a | Q41: 37/4Other | T41: 4.0321 | U41: 5.7354
B42: 37/4 | C42: N/A | D42: Petroleum | G42: 107 | I42: 6 | J42: 3238 | K42: Loco3_50 | L42: 0 | N42: n/a | Q42: 37/4Petroleum | T42: 4.01 | U42: 5.665
B43: 37/5 | C43: N/A | D43: General Merchandise | G43: 107 | I43: 6 | J43: 3238 | K43: Loco3_50 | L43: 0 | N43: n/a | Q43: 37/5General Merchandise | T43: 4.237 | U43: 5.9172
B44: 37/5 | C44: N/A | D44: Other | G44: 107 | I44: 6 | J44: 3238 | K44: Loco3_50 | L44: 0 | N44: n/a | Q44: 37/5Other | T44: 4.0321 | U44: 5.7354
B45: 37/5 | C45: N/A | D45: Petroleum | G45: 107 | I45: 6 | J45: 3238 | K45: Loco3_50 | L45: 0 | N45: n/a | Q45: 37/5Petroleum | T45: 4.01 | U45: 5.665
B46: 37/5 | C46: N/A | D46: Steel | G46: 107 | I46: 6 | J46: 3238 | K46: Loco3_50 | L46: 0 | N46: n/a | Q46: 37/5Steel | T46: 4.0321 | U46: 5.7354
B47: 37/6 | C47: N/A | D47: Chemicals | G47: 105 | I47: 6 | J47: 3238 | K47: Loco3_50 | L47: 0 | N47: n/a | Q47: 37/6Chemicals | T47: 3.9313 | U47: 5.4111
B48: 37/6 | C48: N/A | D48: Construction Materials | G48: 105 | I48: 6 | J48: 3238 | K48: Loco3_50 | L48: 0 | N48: n/a | Q48: 37/6Construction Materials | T48: 4.072 | U48: 5.856
B49: 37/6 | C49: N/A | D49: Domestic Intermodal | G49: 105 | I49: 6 | J49: 3238 | K49: Loco3_50 | L49: 0 | N49: n/a | Q49: 37/6Domestic Intermodal | T49: 4.293 | U49: 6.0033
B50: 37/6 | C50: N/A | D50: Domestic Waste | G50: 105 | I50: 6 | J50: 3238 | K50: Loco3_50 | L50: 0 | N50: n/a | Q50: 37/6Domestic Waste | T50: 4.1604 | U50: 5.6784
B51: 37/6 | C51: N/A | D51: Enterprise | G51: 105 | I51: 6 | J51: 3238 | K51: Loco3_50 | L51: 0 | N51: n/a | Q51: 37/6Enterprise | T51: 4.1937 | U51: 5.7841
B52: 37/6 | C52: N/A | D52: General Merchandise | G52: 105 | I52: 6 | J52: 3238 | K52: Loco3_50 | L52: 0 | N52: n/a | Q52: 37/6General Merchandise | T52: 4.2277 | U52: 5.8924
B53: 37/6 | C53: N/A | D53: Other | G53: 105 | I53: 6 | J53: 3238 | K53: Loco3_50 | L53: 0 | N53: n/a | Q53: 37/6Other | T53: 4.027 | U53: 5.7133
B54: 37/7 | C54: N/A | D54: Construction Materials | G54: 105 | I54: 6 | J54: 3238 | K54: Loco3_50 | L54: 0 | N54: n/a | Q54: 37/7Construction Materials
B55: 37/7 | C55: N/A | D55: Other | G55: 105 | I55: 6 | J55: 3238 | K55: Loco3_50 | L55: 0 | N55: n/a | Q55: 37/7Other | T55: 4.027 | U55: 5.7133
B56: 43/0 | C56: N/A | D56: Other | G56: 73.25 | I56: 4 | J56: 2200 | K56: Loco2_50 | L56: 0 | N56: n/a | Q56: 43/0Other
B57: 47/2 | C57: N/A | D57: Domestic Intermodal | G57: 114 | I57: 6 | J57: 3487 | K57: Loco3_50 | L57: 0 | N57: n/a | Q57: 47/2Domestic Intermodal | T57: 4.3926 | U57: 6.1912
B58: 47/2 | C58: N/A | D58: Other | G58: 114 | I58: 6 | J58: 3487 | K58: Loco3_50 | L58: 0 | N58: n/a | Q58: 47/2Other | T58: 4.1072 | U58: 5.864
B59: 47/4 | C59: N/A | D59: Coal ESI | G59: 119 | I59: 6 | J59: 3487 | K59: Loco3_50 | L59: 0 | N59: n/a | Q59: 47/4Coal ESI | T59: 4.1113 | U59: 5.9453
B60: 47/4 | C60: N/A | D60: Construction Materials | G60: 119 | I60: 6 | J60: 3487 | K60: Loco3_50 | L60: 0 | N60: n/a | Q60: 47/4Construction Materials | T60: 4.1931 | U60: 6.1544
B61: 47/4 | C61: N/A | D61: Domestic Automotive | G61: 119 | I61: 6 | J61: 3487 | K61: Loco3_50 | L61: 0 | N61: n/a | Q61: 47/4Domestic Automotive | T61: 4.3504 | U61: 5.9863
B62: 47/4 | C62: N/A | D62: Domestic Intermodal | G62: 119 | I62: 6 | J62: 3487 | K62: Loco3_50 | L62: 0 | N62: n/a | Q62: 47/4Domestic Intermodal | T62: 4.4538 | U62: 6.3292
B63: 47/4 | C63: N/A | D63: Domestic Waste | G63: 119 | I63: 6 | J63: 3487 | K63: Loco3_50 | L63: 0 | N63: n/a | Q63: 47/4Domestic Waste | T63: 4.2988 | U63: 5.9453
B64: 47/4 | C64: N/A | D64: General Merchandise | G64: 119 | I64: 6 | J64: 3487 | K64: Loco3_50 | L64: 0 | N64: n/a | Q64: 47/4General Merchandise | T64: 4.376 | U64: 6.1975
B65: 47/4 | C65: N/A | D65: Iron Ore | G65: 119 | I65: 6 | J65: 3487 | K65: Loco3_50 | L65: 0 | N65: n/a | Q65: 47/4Iron Ore | T65: 4.1011 | U65: 5.9863
B66: 47/4 | C66: N/A | D66: Other | G66: 119 | I66: 6 | J66: 3487 | K66: Loco3_50 | L66: 0 | N66: n/a | Q66: 47/4Other | T66: 4.1407 | U66: 5.9863
B67: 47/7 | C67: N/A | D67: Biomass | G67: 119 | I67: 6 | J67: 3487 | K67: Loco3_50 | L67: 0 | N67: n/a | Q67: 47/7Biomass | T67: 4.2579 | U67: 6.374
B68: 47/7 | C68: N/A | D68: Coal ESI | G68: 119 | I68: 6 | J68: 3487 | K68: Loco3_50 | L68: 0 | N68: n/a | Q68: 47/7Coal ESI | T68: 4.0883 | U68: 5.9453
B69: 47/7 | C69: N/A | D69: Coal Other | G69: 119 | I69: 6 | J69: 3487 | K69: Loco3_50 | L69: 0 | N69: n/a | O69: Moved from the 'not operated list' vice email from SLC operations via Ian Stone 23/9/22 | Q69: 47/7Coal Other | T69: 4.1384 | U69: 5.9863
B70: 47/7 | C70: N/A | D70: Construction Materials | G70: 119 | I70: 6 | J70: 3487 | K70: Loco3_50 | L70: 0 | N70: n/a | Q70: 47/7Construction Materials | T70: 4.1903 | U70: 6.1544
B71: 47/7 | C71: N/A | D71: Domestic Intermodal | G71: 119 | I71: 6 | J71: 3487 | K71: Loco3_50 | L71: 0 | N71: n/a | Q71: 47/7Domestic Intermodal | T71: 4.4531 | U71: 6.3292
B72: 47/7 | C72: N/A | D72: Domestic Waste | G72: 119 | I72: 6 | J72: 3487 | K72: Loco3_50 | L72: 0 | N72: n/a | Q72: 47/7Domestic Waste | T72: 4.2981 | U72: 5.9453
B73: 47/7 | C73: N/A | D73: Enterprise | G73: 119 | I73: 6 | J73: 3487 | K73: Loco3_50 | L73: 0 | N73: n/a | O73: Moved from the 'not operated list' vice email from SLC operations via Ian Stone 23/9/22 | Q73: 47/7Enterprise | T73: 4.3365 | U73: 6.0695
B74: 47/7 | C74: N/A | D74: Other | G74: 119 | I74: 6 | J74: 3487 | K74: Loco3_50 | L74: 0 | N74: n/a | Q74: 47/7Other | T74: 4.1385 | U74: 5.9863
B75: 47/7 | C75: N/A | D75: Petroleum | G75: 119 | I75: 6 | J75: 3487 | K75: Loco3_50 | L75: 0 | N75: n/a | Q75: 47/7Petroleum | T75: 4.1131 | U75: 5.9049
B76: 47/7 | C76: N/A | D76: Steel | G76: 119 | I76: 6 | J76: 3487 | K76: Loco3_50 | L76: 0 | N76: n/a | Q76: 47/7Steel | T76: 4.1384 | U76: 5.9863
B77: 50/0 | C77: N/A | D77: Other | G77: 117 | I77: 6 | J77: 3487 | K77: Loco3_50 | L77: 0 | N77: n/a | Q77: 50/0Other | T77: 4.117 | U77: 5.9335
B78: 56/0 | C78: N/A | D78: Biomass | G78: 128 | I78: 6 | J78: 4049 | K78: Loco3_50 | L78: 0 | N78: n/a | O78: Keep as per DC Rail excel | Q78: 56/0Biomass | T78: 4.4481 | U78: 6.7692
B79: 56/0 | C79: N/A | D79: Chemicals | G79: 128 | I79: 6 | J79: 4049 | K79: Loco3_50 | L79: 0 | N79: n/a | O79: Keep as per DC Rail excel | Q79: 56/0Chemicals | T79: 4.1795 | U79: 5.897
B80: 56/0 | C80: N/A | D80: Coal ESI | G80: 128 | I80: 6 | J80: 4049 | K80: Loco3_50 | L80: 0 | N80: n/a | Q80: 56/0Coal ESI | T80: 4.25 | U80: 6.2619
B81: 56/0 | C81: N/A | D81: Coal Other | G81: 128 | I81: 6 | J81: 4049 | K81: Loco3_50 | L81: 0 | N81: n/a | O81: Keep as per DC Rail excel | Q81: 56/0Coal Other | T81: 4.3074 | U81: 6.3103
B82: 56/0 | C82: N/A | D82: Construction Materials | G82: 128 | I82: 6 | J82: 4049 | K82: Loco3_50 | L82: 0 | N82: n/a | Q82: 56/0Construction Materials | T82: 4.3685 | U82: 6.5091
B83: 56/0 | C83: N/A | D83: Domestic Automotive | G83: 128 | I83: 6 | J83: 4049 | K83: Loco3_50 | L83: 0 | N83: n/a | Q83: 56/0Domestic Automotive | T83: 4.5459 | U83: 6.3103
B84: 56/0 | C84: N/A | D84: Domestic Intermodal | G84: 128 | I84: 6 | J84: 4049 | K84: Loco3_50 | L84: 0 | N84: n/a | Q84: 56/0Domestic Intermodal | T84: 4.6705 | U84: 6.7162
B85: 56/0 | C85: N/A | D85: Domestic Waste | G85: 128 | I85: 6 | J85: 4049 | K85: Loco3_50 | L85: 0 | N85: n/a | Q85: 56/0Domestic Waste | T85: 4.4892 | U85: 6.2619
B86: 56/0 | C86: N/A | D86: Enterprise | G86: 128 | I86: 6 | J86: 4049 | K86: Loco3_50 | L86: 0 | N86: n/a | Q86: 56/0Enterprise | T86: 4.5342 | U86: 6.4086
B87: 56/0 | C87: N/A | D87: European Automotive | G87: 128 | I87: 6 | J87: 4049 | K87: Loco3_50 | L87: 0 | N87: n/a | O87: Keep as per DC Rail excel | Q87: 56/0European Automotive | T87: 4.6385 | U87: 6.6116
B88: 56/0 | C88: N/A | D88: European Conventional | G88: 128 | I88: 6 | J88: 4049 | K88: Loco3_50 | L88: 0 | N88: n/a | O88: Keep as per DC Rail excel | Q88: 56/0European Conventional | T88: 4.5966 | U88: 6.6116
B89: 56/0 | C89: N/A | D89: European Intermodal | G89: 128 | I89: 6 | J89: 4049 | K89: Loco3_50 | L89: 0 | N89: n/a | Q89: 56/0European Intermodal | T89: 4.7528 | U89: 6.9862
B90: 56/0 | C90: N/A | D90: General Merchandise | G90: 128 | I90: 6 | J90: 4049 | K90: Loco3_50 | L90: 0 | N90: n/a | Q90: 56/0General Merchandise | T90: 4.5808 | U90: 6.5601
B91: 56/0 | C91: N/A | D91: Industrial Minerals | G91: 128 | I91: 6 | J91: 4049 | K91: Loco3_50 | L91: 0 | N91: n/a | Q91: 56/0Industrial Minerals | T91: 4.2067 | U91: 5.9845
B92: 56/0 | C92: N/A | D92: Iron Ore | G92: 128 | I92: 6 | J92: 4049 | K92: Loco3_50 | L92: 0 | N92: n/a | O92: Keep as per DC Rail excel | Q92: 56/0Iron Ore | T92: 4.2648 | U92: 6.3103
B93: 56/0 | C93: N/A | D93: Mail and Premium Logistics | G93: 128 | I93: 6 | J93: 4049 | K93: Loco3_50 | L93: 0 | N93: n/a | O93: Keep as per DC Rail excel | Q93: 56/0Mail and Premium Logistics | T93: 6.0863 | U93: 9.5136
B94: 56/0 | C94: N/A | D94: Other | G94: 128 | I94: 6 | J94: 4049 | K94: Loco3_50 | L94: 0 | N94: n/a | Q94: 56/0Other | T94: 4.3074 | U94: 6.3103
B95: 56/0 | C95: N/A | D95: Petroleum | G95: 128 | I95: 6 | J95: 4049 | K95: Loco3_50 | L95: 0 | N95: n/a | Q95: 56/0Petroleum | T95: 4.2778 | U95: 6.2142
B96: 56/0 | C96: N/A | D96: Royal Mail | G96: 128 | I96: 6 | J96: 4049 | K96: Loco3_50 | L96: 0 | N96: n/a | O96: Keep as per DC Rail excel | Q96: 56/0Royal Mail | T96: 6.0863 | U96: 9.5136
B97: 56/0 | C97: N/A | D97: Steel | G97: 128 | I97: 6 | J97: 4049 | K97: Loco3_50 | L97: 0 | N97: n/a | Q97: 56/0Steel | T97: 4.3074 | U97: 6.3103
B98: 57/0 | C98: N/A | D98: Biomass | G98: 114 | I98: 6 | J98: 3487 | K98: Loco3_50 | L98: 0 | N98: n/a | O98: GBRf request to be retained - Use of Cl.57/0 as banking engine on Liv - Drax | Q98: 57/0Biomass | T98: 4.2048 | U98: 6.2337
B99: 57/0 | C99: N/A | D99: Construction Materials | G99: 114 | I99: 6 | J99: 3487 | K99: Loco3_50 | L99: 0 | N99: n/a | Q99: 57/0Construction Materials | T99: 4.1399 | U99: 6.0247
B100: 57/0 | C100: N/A | D100: Domestic Automotive | G100: 114 | I100: 6 | J100: 3487 | K100: Loco3_50 | L100: 0 | N100: n/a | Q100: 57/0Domestic Automotive | T100: 4.2865 | U100: 5.864
B101: 57/0 | C101: N/A | D101: Domestic Intermodal | G101: 114 | I101: 6 | J101: 3487 | K101: Loco3_50 | L101: 0 | N101: n/a | Q101: 57/0Domestic Intermodal | T101: 4.3882 | U101: 6.1912
B102: 57/0 | C102: N/A | D102: Other | G102: 114 | I102: 6 | J102: 3487 | K102: Loco3_50 | L102: 0 | N102: n/a | Q102: 57/0Other | T102: 4.0899 | U102: 5.864
B103: 57/3 | C103: N/A | D103: Construction Materials | G103: 117 | I103: 6 | J103: 3487 | K103: Loco3_50 | L103: 0 | N103: n/a | Q103: 57/3Construction Materials | T103: 4.1681 | U103: 6.0985
B104: 57/3 | C104: N/A | D104: Domestic Automotive | G104: 117 | I104: 6 | J104: 3487 | K104: Loco3_50 | L104: 0 | N104: n/a | Q104: 57/3Domestic Automotive | T104: 4.3209 | U104: 5.9335
B105: 57/3 | C105: N/A | D105: Domestic Intermodal | G105: 117 | I105: 6 | J105: 3487 | K105: Loco3_50 | L105: 0 | N105: n/a | Q105: 57/3Domestic Intermodal | T105: 4.425 | U105: 6.2699
B106: 57/3 | C106: N/A | D106: Mail and Premium Logistics | G106: 117 | I106: 6 | J106: 3487 | K106: Loco3_50 | L106: 0 | N106: n/a | Q106: 57/3Mail and Premium Logistics | T106: 5.6009 | U106: 8.5544
B107: 57/3 | C107: N/A | D107: Other | G107: 117 | I107: 6 | J107: 3487 | K107: Loco3_50 | L107: 0 | N107: n/a | Q107: 57/3Other | T107: 4.117 | U107: 5.9335
B108: 57/3 | C108: N/A | D108: Royal Mail | G108: 117 | I108: 6 | J108: 3487 | K108: Loco3_50 | L108: 0 | N108: n/a | O108: Retain. Possible use, if GBRf are awarded contract. | Q108: 57/3Royal Mail | T108: 5.6009 | U108: 8.5544
B109: 59/0 | C109: N/A | D109: Biomass | G109: 126 | I109: 6 | J109: 3613 | K109: Loco3_50 | L109: 0 | N109: n/a | Q109: 59/0Biomass | T109: 4.3736 | U109: 6.642
B110: 59/0 | C110: N/A | D110: Construction Materials | G110: 126 | I110: 6 | J110: 3613 | K110: Loco3_50 | L110: 0 | N110: n/a | Q110: 59/0Construction Materials | T110: 4.3 | U110: 6.401
B111: 59/0 | C111: N/A | D111: Domestic Automotive | G111: 126 | I111: 6 | J111: 3613 | K111: Loco3_50 | L111: 0 | N111: n/a | Q111: 59/0Domestic Automotive | T111: 4.4729 | U111: 6.2171
B112: 59/0 | C112: N/A | D112: Domestic Intermodal | G112: 126 | I112: 6 | J112: 3613 | K112: Loco3_50 | L112: 0 | N112: n/a | Q112: 59/0Domestic Intermodal | T112: 4.5879 | U112: 6.5929
B113: 59/0 | C113: N/A | D113: Domestic Waste | G113: 126 | I113: 6 | J113: 3613 | K113: Loco3_50 | L113: 0 | N113: n/a | Q113: 59/0Domestic Waste | T113: 4.419 | U113: 6.1725
B114: 59/0 | C114: N/A | D114: Enterprise | G114: 126 | I114: 6 | J114: 3613 | K114: Loco3_50 | L114: 0 | N114: n/a | Q114: 59/0Enterprise | T114: 4.4606 | U114: 6.3081
B115: 59/0 | C115: N/A | D115: Industrial Minerals | G115: 126 | I115: 6 | J115: 3613 | K115: Loco3_50 | L115: 0 | N115: n/a | Q115: 59/0Industrial Minerals | T115: 4.1511 | U115: 5.9164
B116: 59/0 | C116: N/A | D116: Other | G116: 126 | I116: 6 | J116: 3613 | K116: Loco3_50 | L116: 0 | N116: n/a | Q116: 59/0Other | T116: 4.2437 | U116: 6.2171
B117: 59/0 | C117: N/A | D117: Petroleum | G117: 126 | I117: 6 | J117: 3613 | K117: Loco3_50 | L117: 0 | N117: n/a | Q117: 59/0Petroleum | T117: 4.2165 | U117: 6.1284
B118: 59/1 | C118: N/A | D118: Construction Materials | G118: 126 | I118: 6 | J118: 3613 | K118: Loco3_50 | L118: 0 | N118: n/a | Q118: 59/1Construction Materials | T118: 4.3 | U118: 6.401
B119: 59/1 | C119: N/A | D119: Domestic Waste | G119: 126 | I119: 6 | J119: 3613 | K119: Loco3_50 | L119: 0 | N119: n/a | Q119: 59/1Domestic Waste | T119: 4.419 | U119: 6.1725
B120: 59/1 | C120: N/A | D120: Enterprise | G120: 126 | I120: 6 | J120: 3613 | K120: Loco3_50 | L120: 0 | N120: n/a | Q120: 59/1Enterprise | T120: 4.4606 | U120: 6.3081
B121: 59/1 | C121: N/A | D121: Industrial Minerals | G121: 126 | I121: 6 | J121: 3613 | K121: Loco3_50 | L121: 0 | N121: n/a | Q121: 59/1Industrial Minerals | T121: 4.1511 | U121: 5.9164
B122: 59/1 | C122: N/A | D122: Other | G122: 126 | I122: 6 | J122: 3613 | K122: Loco3_50 | L122: 0 | N122: n/a | Q122: 59/1Other | T122: 4.2437 | U122: 6.2171
B123: 59/2 | C123: N/A | D123: Construction Materials | G123: 126 | I123: 6 | J123: 3613 | K123: Loco3_50 | L123: 0 | N123: n/a | Q123: 59/2Construction Materials | T123: 4.3 | U123: 6.401
B124: 59/2 | C124: N/A | D124: Domestic Intermodal | G124: 126 | I124: 6 | J124: 3613 | K124: Loco3_50 | L124: 0 | N124: n/a | Q124: 59/2Domestic Intermodal | T124: 4.5879 | U124: 6.5929
B125: 59/2 | C125: N/A | D125: Domestic Waste | G125: 126 | I125: 6 | J125: 3613 | K125: Loco3_50 | L125: 0 | N125: n/a | Q125: 59/2Domestic Waste | T125: 4.419 | U125: 6.1725
B126: 59/2 | C126: N/A | D126: Enterprise | G126: 126 | I126: 6 | J126: 3613 | K126: Loco3_50 | L126: 0 | N126: n/a | Q126: 59/2Enterprise | T126: 4.4606 | U126: 6.3081
B127: 59/2 | C127: N/A | D127: European Intermodal | G127: 126 | I127: 6 | J127: 3613 | K127: Loco3_50 | L127: 0 | N127: n/a | Q127: 59/2European Intermodal | T127: 4.664 | U127: 6.8431
B128: 59/2 | C128: N/A | D128: Other | G128: 126 | I128: 6 | J128: 3613 | K128: Loco3_50 | L128: 0 | N128: n/a | Q128: 59/2Other | T128: 4.2437 | U128: 6.2171
B129: 59/2 | C129: N/A | D129: Steel | G129: 126 | I129: 6 | J129: 3613 | K129: Loco3_50 | L129: 0 | N129: n/a | Q129: 59/2Steel | T129: 4.2437 | U129: 6.2171
B130: 60/0 | C130: N/A | D130: Biomass | G130: 129 | I130: 6 | J130: 3867 | K130: Class_60 | L130: 0 | N130: n/a | Q130: 60/0Biomass | T130: 3.7177 | U130: 5.711
B131: 60/0 | C131: N/A | D131: Chemicals | G131: 129 | I131: 6 | J131: 3867 | K131: Class_60 | L131: 0 | N131: n/a | Q131: 60/0Chemicals | T131: 3.4577 | U131: 4.8509
B132: 60/0 | C132: N/A | D132: Coal ESI | G132: 129 | I132: 6 | J132: 3867 | K132: Class_60 | L132: 0 | N132: n/a | Q132: 60/0Coal ESI | T132: 3.5257 | U132: 5.2099
B133: 60/0 | C133: N/A | D133: Coal Other | G133: 129 | I133: 6 | J133: 3867 | K133: Class_60 | L133: 0 | N133: n/a | Q133: 60/0Coal Other | T133: 3.583 | U133: 5.2575
B134: 60/0 | C134: N/A | D134: Construction Materials | G134: 129 | I134: 6 | J134: 3867 | K134: Class_60 | L134: 0 | N134: n/a | Q134: 60/0Construction Materials | T134: 3.6431 | U134: 5.4538
B135: 60/0 | C135: N/A | D135: Domestic Automotive | G135: 129 | I135: 6 | J135: 3867 | K135: Class_60 | L135: 0 | N135: n/a | Q135: 60/0Domestic Automotive | T135: 3.8254 | U135: 5.2575
B136: 60/0 | C136: N/A | D136: Domestic Intermodal | G136: 129 | I136: 6 | J136: 3867 | K136: Class_60 | L136: 0 | N136: n/a | Q136: 60/0Domestic Intermodal | T136: 3.9473 | U136: 5.6586
B137: 60/0 | C137: N/A | D137: Domestic Waste | G137: 129 | I137: 6 | J137: 3867 | K137: Class_60 | L137: 0 | N137: n/a | Q137: 60/0Domestic Waste | T137: 3.768 | U137: 5.2099
B138: 60/0 | C138: N/A | D138: Enterprise | G138: 129 | I138: 6 | J138: 3867 | K138: Class_60 | L138: 0 | N138: n/a | Q138: 60/0Enterprise | T138: 3.8124 | U138: 5.3545
B139: 60/0 | C139: N/A | D139: European Automotive | G139: 129 | I139: 6 | J139: 3867 | K139: Class_60 | L139: 0 | N139: n/a | O139: Retained as per DC Rail spreadsheet | Q139: 60/0European Automotive | T139: 3.9177 | U139: 5.5551
B140: 60/0 | C140: N/A | D140: European Conventional | G140: 129 | I140: 6 | J140: 3867 | K140: Class_60 | L140: 0 | N140: n/a | Q140: 60/0European Conventional | T140: 3.8732 | U140: 5.5551
B141: 60/0 | C141: N/A | D141: European Intermodal | G141: 129 | I141: 6 | J141: 3867 | K141: Class_60 | L141: 0 | N141: n/a | Q141: 60/0European Intermodal | T141: 4.0288 | U141: 5.9258
B142: 60/0 | C142: N/A | D142: General Merchandise | G142: 129 | I142: 6 | J142: 3867 | K142: Class_60 | L142: 0 | N142: n/a | O142: Retained as per DC Rail spreadsheet | Q142: 60/0General Merchandise | T142: 3.8581 | U142: 5.5042
B143: 60/0 | C143: N/A | D143: Industrial Minerals | G143: 129 | I143: 6 | J143: 3867 | K143: Class_60 | L143: 0 | N143: n/a | Q143: 60/0Industrial Minerals | T143: 3.4844 | U143: 4.9367
B144: 60/0 | C144: N/A | D144: Iron Ore | G144: 129 | I144: 6 | J144: 3867 | K144: Class_60 | L144: 0 | N144: n/a | Q144: 60/0Iron Ore | T144: 3.5401 | U144: 5.2575
B145: 60/0 | C145: N/A | D145: Mail and Premium Logistics | G145: 129 | I145: 6 | J145: 3867 | K145: Class_60 | L145: 0 | N145: n/a | O145: Retained as per DC Rail spreadsheet | Q145: 60/0Mail and Premium Logistics | T145: 5.3653 | U145: 8.4404
B146: 60/0 | C146: N/A | D146: Other | G146: 129 | I146: 6 | J146: 3867 | K146: Class_60 | L146: 0 | N146: n/a | Q146: 60/0Other | T146: 3.5833 | U146: 5.2575
B147: 60/0 | C147: N/A | D147: Petroleum | G147: 129 | I147: 6 | J147: 3867 | K147: Class_60 | L147: 0 | N147: n/a | Q147: 60/0Petroleum | T147: 3.5535 | U147: 5.1628
B148: 60/0 | C148: N/A | D148: Royal Mail | G148: 129 | I148: 6 | J148: 3867 | K148: Class_60 | L148: 0 | N148: n/a | O148: Retained as per DC Rail spreadsheet | Q148: 60/0Royal Mail | T148: 5.3552 | U148: 8.4404
B149: 60/0 | C149: N/A | D149: Steel | G149: 129 | I149: 6 | J149: 3867 | K149: Class_60 | L149: 0 | N149: n/a | Q149: 60/0Steel | T149: 3.583 | U149: 5.2575
B150: 66/0 | C150: N/A | D150: Biomass | G150: 126 | I150: 6 | J150: 3552 | K150: Class_66 | L150: 0 | N150: n/a | Q150: 66/0Biomass | T150: 2.7382 | U150: 4.1607
B151: 66/0 | C151: N/A | D151: Chemicals | G151: 126 | I151: 6 | J151: 3552 | K151: Class_66 | L151: 0 | N151: n/a | Q151: 66/0Chemicals | T151: 2.4931 | U151: 3.3617
B152: 66/0 | C152: N/A | D152: Coal ESI | G152: 126 | I152: 6 | J152: 3552 | K152: Class_66 | L152: 0 | N152: n/a | Q152: 66/0Coal ESI | T152: 2.5551 | U152: 3.6951
B153: 66/0 | C153: N/A | D153: Coal Other | G153: 126 | I153: 6 | J153: 3552 | K153: Class_66 | L153: 0 | N153: n/a | Q153: 66/0Coal Other | T153: 2.6094 | U153: 3.7394
B154: 66/0 | C154: N/A | D154: Construction Materials | G154: 126 | I154: 6 | J154: 3552 | K154: Class_66 | L154: 0 | N154: n/a | Q154: 66/0Construction Materials | T154: 2.6653 | U154: 3.9217
B155: 66/0 | C155: N/A | D155: Domestic Automotive | G155: 126 | I155: 6 | J155: 3552 | K155: Class_66 | L155: 0 | N155: n/a | Q155: 66/0Domestic Automotive | T155: 2.8383 | U155: 3.7394
B156: 66/0 | C156: N/A | D156: Domestic Intermodal | G156: 126 | I156: 6 | J156: 3552 | K156: Class_66 | L156: 0 | N156: n/a | Q156: 66/0Domestic Intermodal | T156: 2.9521 | U156: 4.112
B157: 66/0 | C157: N/A | D157: Domestic Waste | G157: 126 | I157: 6 | J157: 3552 | K157: Class_66 | L157: 0 | N157: n/a | Q157: 66/0Domestic Waste | T157: 2.7846 | U157: 3.6951
B158: 66/0 | C158: N/A | D158: Enterprise | G158: 126 | I158: 6 | J158: 3552 | K158: Class_66 | L158: 0 | N158: n/a | Q158: 66/0Enterprise | T158: 2.8257 | U158: 3.8295
B159: 66/0 | C159: N/A | D159: European Automotive | G159: 126 | I159: 6 | J159: 3552 | K159: Class_66 | L159: 0 | N159: n/a | Q159: 66/0European Automotive | T159: 2.9229 | U159: 4.0159
B160: 66/0 | C160: N/A | D160: European Conventional | G160: 126 | I160: 6 | J160: 3552 | K160: Class_66 | L160: 0 | N160: n/a | Q160: 66/0European Conventional | T160: 2.8826 | U160: 4.0159
B161: 66/0 | C161: N/A | D161: European Intermodal | G161: 126 | I161: 6 | J161: 3552 | K161: Class_66 | L161: 0 | N161: n/a | Q161: 66/0European Intermodal | T161: 3.0276 | U161: 4.3603
B162: 66/0 | C162: N/A | D162: General Merchandise | G162: 126 | I162: 6 | J162: 3552 | K162: Class_66 | L162: 0 | N162: n/a | Q162: 66/0General Merchandise | T162: 2.8682 | U162: 3.9685
B163: 66/0 | C163: N/A | D163: Industrial Minerals | G163: 126 | I163: 6 | J163: 3552 | K163: Class_66 | L163: 0 | N163: n/a | Q163: 66/0Industrial Minerals | T163: 2.5178 | U163: 3.4414
B164: 66/0 | C164: N/A | D164: Iron Ore | G164: 126 | I164: 6 | J164: 3552 | K164: Class_66 | L164: 0 | N164: n/a | Q164: 66/0Iron Ore | T164: 2.5688 | U164: 3.7394
B165: 66/0 | C165: N/A | D165: Other | G165: 126 | I165: 6 | J165: 3552 | K165: Class_66 | L165: 0 | N165: n/a | Q165: 66/0Other | T165: 2.6095 | U165: 3.7394
B166: 66/0 | C166: N/A | D166: Petroleum | G166: 126 | I166: 6 | J166: 3552 | K166: Class_66 | L166: 0 | N166: n/a | Q166: 66/0Petroleum | T166: 2.5825 | U166: 3.6514
B167: 66/0 | C167: N/A | D167: Royal Mail | G167: 126 | I167: 6 | J167: 3552 | K167: Class_66 | L167: 0 | N167: n/a | Q167: 66/0Royal Mail | T167: 4.2767 | U167: 6.698
B168: 66/0 | C168: N/A | D168: Steel | G168: 126 | I168: 6 | J168: 3552 | K168: Class_66 | L168: 0 | N168: n/a | Q168: 66/0Steel | T168: 2.6095 | U168: 3.7394
B169: 66/3 | C169: N/A | D169: Biomass | G169: 127 | I169: 6 | J169: 3552 | K169: Class_66 | L169: 0 | N169: n/a | O169: Retain. GBRf now operating 66301 - 66305. | Q169: 66/3Biomass | T169: 2.7687 | U169: 4.2225
B170: 66/3 | C170: N/A | D170: Coal ESI | G170: 127 | I170: 6 | J170: 3552 | K170: Class_66 | L170: 0 | N170: n/a | O170: Retain. GBRf now operating 66301 - 66305. | Q170: 66/3Coal ESI | T170: 2.5739 | U170: 3.7517
B171: 66/3 | C171: N/A | D171: Coal Other | G171: 127 | I171: 6 | J171: 3552 | K171: Class_66 | L171: 0 | N171: n/a | O171: Retain. GBRf now operating 66301 - 66305. | Q171: 66/3Coal Other | T171: 2.6283 | U171: 3.7964
B172: 66/3 | C172: N/A | D172: Construction Materials | G172: 127 | I172: 6 | J172: 3552 | K172: Class_66 | L172: 0 | N172: n/a | Q172: 66/3Construction Materials | T172: 2.6847 | U172: 3.9807
B173: 66/3 | C173: N/A | D173: Domestic Automotive | G173: 127 | I173: 6 | J173: 3552 | K173: Class_66 | L173: 0 | N173: n/a | Q173: 66/3Domestic Automotive | T173: 2.8571 | U173: 3.7964
B174: 66/3 | C174: N/A | D174: Domestic Intermodal | G174: 127 | I174: 6 | J174: 3552 | K174: Class_66 | L174: 0 | N174: n/a | Q174: 66/3Domestic Intermodal | T174: 2.972 | U174: 4.1732
B175: 66/3 | C175: N/A | D175: Domestic Waste | G175: 127 | I175: 6 | J175: 3552 | K175: Class_66 | L175: 0 | N175: n/a | O175: Retain. GBRf now operating 66301 - 66305. | Q175: 66/3Domestic Waste | T175: 2.8032 | U175: 3.7517
B176: 66/3 | C176: N/A | D176: European Automotive | G176: 127 | I176: 6 | J176: 3552 | K176: Class_66 | L176: 0 | N176: n/a | O176: Retain. GBRf now operating 66301 - 66305. | Q176: 66/3European Automotive | T176: 2.9424 | U176: 4.076
B177: 66/3 | C177: N/A | D177: European Conventional | G177: 127 | I177: 6 | J177: 3552 | K177: Class_66 | L177: 0 | N177: n/a | O177: Retain. GBRf now operating 66301 - 66305. | Q177: 66/3European Conventional | T177: 2.9023 | U177: 4.076
B178: 66/3 | C178: N/A | D178: European Intermodal | G178: 127 | I178: 6 | J178: 3552 | K178: Class_66 | L178: 0 | N178: n/a | O178: Retain. GBRf now operating 66301 - 66305. | Q178: 66/3European Intermodal | T178: 3.0483 | U178: 4.4245
B179: 66/3 | C179: N/A | D179: General Merchandise | G179: 127 | I179: 6 | J179: 3552 | K179: Class_66 | L179: 0 | N179: n/a | O179: Retain. GBRf now operating 66301 - 66305. | Q179: 66/3General Merchandise | T179: 2.8877 | U179: 4.0281
B180: 66/3 | C180: N/A | D180: Industrial Minerals | G180: 127 | I180: 6 | J180: 3552 | K180: Class_66 | L180: 0 | N180: n/a | O180: Retain. GBRf now operating 66301 - 66305. | Q180: 66/3Industrial Minerals | T180: 2.5359 | U180: 3.4955
B181: 66/3 | C181: N/A | D181: Iron Ore | G181: 127 | I181: 6 | J181: 3552 | K181: Class_66 | L181: 0 | N181: n/a | O181: Retain. GBRf now operating 66301 - 66305. | Q181: 66/3Iron Ore | T181: 2.5876 | U181: 3.7964
B182: 66/3 | C182: N/A | D182: Mail and Premium Logistics | G182: 127 | I182: 6 | J182: 3552 | K182: Class_66 | L182: 0 | N182: n/a | O182: Retain. GBRf now operating 66301 - 66305. | Q182: 66/3Mail and Premium Logistics | T182: 4.306 | U182: 6.7943
B183: 66/3 | C183: N/A | D183: Other | G183: 127 | I183: 6 | J183: 3552 | K183: Class_66 | L183: 0 | N183: n/a | Q183: 66/3Other | T183: 2.6283 | U183: 3.7964
B184: 66/3 | C184: N/A | D184: Petroleum | G184: 127 | I184: 6 | J184: 3552 | K184: Class_66 | L184: 0 | N184: n/a | O184: Retain. GBRf now operating 66301 - 66305. | Q184: 66/3Petroleum | T184: 2.6012 | U184: 3.7076
B185: 66/3 | C185: N/A | D185: Royal Mail | G185: 127 | I185: 6 | J185: 3552 | K185: Class_66 | L185: 0 | N185: n/a | O185: Retain. GBRf now operating 66301 - 66305. | Q185: 66/3Royal Mail | T185: 4.3275 | U185: 6.7943
B186: 66/3 | C186: N/A | D186: Steel | G186: 127 | I186: 6 | J186: 3552 | K186: Class_66 | L186: 0 | N186: n/a | Q186: 66/3Steel | T186: 2.6283 | U186: 3.7964
B187: 66/4 | C187: N/A | D187: Biomass | G187: 127 | I187: 6 | J187: 3552 | K187: Class_66 | L187: 0 | N187: n/a | Q187: 66/4Biomass | T187: 2.7687 | U187: 4.2225
B188: 66/4 | C188: N/A | D188: Chemicals | G188: 127 | I188: 6 | J188: 3552 | K188: Class_66 | L188: 0 | N188: n/a | Q188: 66/4Chemicals | T188: 2.5215 | U188: 3.4151
B189: 66/4 | C189: N/A | D189: Coal ESI | G189: 127 | I189: 6 | J189: 3552 | K189: Class_66 | L189: 0 | N189: n/a | Q189: 66/4Coal ESI | T189: 2.5838 | U189: 3.7517
B190: 66/4 | C190: N/A | D190: Coal Other | G190: 127 | I190: 6 | J190: 3552 | K190: Class_66 | L190: 0 | N190: n/a | Q190: 66/4Coal Other | T190: 2.6388 | U190: 3.7964
B191: 66/4 | C191: N/A | D191: Construction Materials | G191: 127 | I191: 6 | J191: 3552 | K191: Class_66 | L191: 0 | N191: n/a | Q191: 66/4Construction Materials | T191: 2.6951 | U191: 3.9807
B192: 66/4 | C192: N/A | D192: Domestic Automotive | G192: 127 | I192: 6 | J192: 3552 | K192: Class_66 | L192: 0 | N192: n/a | Q192: 66/4Domestic Automotive | T192: 2.8705 | U192: 3.7964
B193: 66/4 | C193: N/A | D193: Domestic Intermodal | G193: 127 | I193: 6 | J193: 3552 | K193: Class_66 | L193: 0 | N193: n/a | Q193: 66/4Domestic Intermodal | T193: 2.9855 | U193: 4.1732
B194: 66/4 | C194: N/A | D194: Domestic Waste | G194: 127 | I194: 6 | J194: 3552 | K194: Class_66 | L194: 0 | N194: n/a | Q194: 66/4Domestic Waste | T194: 2.8161 | U194: 3.7517
B195: 66/4 | C195: N/A | D195: Enterprise | G195: 127 | I195: 6 | J195: 3552 | K195: Class_66 | L195: 0 | N195: n/a | Q195: 66/4Enterprise | T195: 2.8576 | U195: 3.8875
B196: 66/4 | C196: N/A | D196: European Conventional | G196: 127 | I196: 6 | J196: 3552 | K196: Class_66 | L196: 0 | N196: n/a | Q196: 66/4European Conventional | T196: 2.9151 | U196: 4.076
B197: 66/4 | C197: N/A | D197: European Intermodal | G197: 127 | I197: 6 | J197: 3552 | K197: Class_66 | L197: 0 | N197: n/a | Q197: 66/4European Intermodal | T197: 3.0617 | U197: 4.4245
B198: 66/4 | C198: N/A | D198: Industrial Minerals | G198: 127 | I198: 6 | J198: 3552 | K198: Class_66 | L198: 0 | N198: n/a | Q198: 66/4Industrial Minerals | T198: 2.5464 | U198: 3.4955
B199: 66/4 | C199: N/A | D199: Iron Ore | G199: 127 | I199: 6 | J199: 3552 | K199: Class_66 | L199: 0 | N199: n/a | Q199: 66/4Iron Ore | T199: 2.5976 | U199: 3.7964
B200: 66/4 | C200: N/A | D200: Other | G200: 127 | I200: 6 | J200: 3552 | K200: Class_66 | L200: 0 | N200: n/a | Q200: 66/4Other | T200: 2.6388 | U200: 3.7964
... 1486 more rows

Sheet Parameters (hidden)
C5: Vertical | L5: Civils
C6: Ct | D6: 0.89 | E6: 1 | L6: Ct | M6: 1.2 | N6: 1
C7: A | D7: 0.473 | E7: 0.133 | L7: A | M7: 3
C8: S | D8: 0.015 | L8: S | M8: 1.52
C9: S | D9: 0.009
C10: U | D10: 0.284
D11: 0.442
K16: Freight suspension bands | P16: Indexation factors | T16: CP5 indexation factors | W16: CP6 indexation factors
K17: Band | L17: Curving class | N17: Factor | P17: Year | Q17: factor
M18: CP4 model | N18: CP5 model | Q18: Passenger | R18: Freight | S18: Charter | U18: Passenger | V18: Freight | X18: Passenger | Y18: Freight | Z18: Charter
K19: 1 | L19: 2axle-1 | M19: 1.0979552 | N19: 1.098 | P19: 2023/24 | Q19: 1 | R19: 1 | S19: 1 | T19: 2012/13 | U19: 1 | V19: 1 | W19: 2017/18 | X19: 1 | Y19: 1 | Z19: 1
K20: 2 | L20: 2axle-2 | M20: 1.0579552 | N20: 1.058 | T20: 2014/15 | U20: 1.054 | V20: 1.062 | W20: 2019/20 | X20: 1.046 | Y20: 1.05 | Z20: 1.046
C21: Normalising parameters for damage calculations | K21: 3 | L21: 3piece | M21: 1.0179552 | N21: 1.018 | T21: 2015/16 | U21: 1.02 | V21: 1.087 | W21: 2020/21 | X21: 1.014 | Y21: 1.069 | Z21: 1.061
D22: Unsprung mass (kg) | E22: 1000 | K22: 4 | L22: NACO | M22: 0.9779552 | N22: 0.978 | T22: 2016/17 | U22: 1.011 | V22: 1.098 | W22: 2021/22 | X22: 1.004 | Y22: 1.078 | Z22: 1.065
D23: Axleload (t) | E23: 10 | K23: 5 | L23: Y25-1 | M23: 0.9379552 | N23: 0.938 | T23: 2017/18 | U23: 1.022 | V23: 1.117 | W23: 2022/23 | X23: 1.051 | Y23: 1.106 | Z23: 1.119
D24: Speed (mph) | E24: 50 | K24: 6 | L24: Y25-2 | M24: 0.8979552 | N24: 0.898 | T24: 2018/19 | U24: 1.039 | V24: 1.157 | W24: 2023/24 | X24: 1.107 | Y24: 1.205984822 | Z24: 1.239
K25: 7 | L25: Steering | M25: 0.8579552 | N25: 0.858 | Y25: 1.206
K26: 0 | L26: Locomotive | M26: 1 | N26: 1
C28: Conversion factors: convert damage to £/kGTM
D29: Values taken from 'PR23 VUC model v2.4.xlsx'
C30: Track | D30: 11.11070885 | F30: 7.527987332 | G30: CP5 values | H30: 9.817622697 | I30: CP6 values
C31: Civils | D31: 0.1459965947 | F31: 0.09536447389 | H31: 0.1477775547 | M31: Commodity | N31: CP5 Average Speed | O31: CP5 Average Speed (taking into account stopping time) | P31: CP4 speed | S31: Sample passenger vehicles
C32: Surface | D32: 801.8926669 | F32: 376.2943425 | H32: 523.8007069 | P32: Laden | Q32: Empty | S32: Motor | T32: Trailer
C33: Signals | D33: 0.3186329731 | F33: 0.3080169195 | H33: 0.2654507441 | M33: Coal other | N33: 22 | O33: 25 | P33: 35 | Q33: 41 | S33: M | T33: T
C34: Signals (vm) | D34: 0.2792394376 | E34: (pence/vehicle mile) | F34: 0.3093304189 | H34: 0.2395833102 | M34: Iron Ore | N34: 22 | O34: 25 | P34: 32 | Q34: 41 | S34: BDMSO | T34: DTCO
M35: Steel | N35: 22 | O35: 25 | P35: 35 | Q35: 41 | S35: DMBS | T35: DTPMV
M36: Domestic Waste | N36: 21 | O36: 24 | P36: 40 | Q36: 50 | S36: DMCL | T36: DTSO
D37: Curve distribution | G37: Surface damage parameters | K37: CP6 values | M37: Construction Materials | N37: 26 | O37: 29 | P37: 35 | Q37: 41 | S37: DMCL(A) | T37: DTSO(A)
D38: Radius | E38: Length (km): CP5 | F38: CP4 | H38: Grinding Cost | I38: 1184.179327 | J38: GBP/km | K38: 2000 | M38: Petroleum | N38: 20 | O38: 23 | P38: 35 | Q38: 41 | S38: DMCL(B) | T38: DTSO(B)
D39: 200 | E39: 83 | F39: 83.08588726 | H39: Renewal Cost | I39: 232784.9838 | J39: GBP/km | K39: 250000 | M39: Coal ESI | N39: 21 | O39: 24 | P39: 32 | Q39: 41 | S39: DMCO | T39: PDTRBFO
D40: 400 | E40: 334 | F40: 332.343549 | H40: Depth Ground | I40: 0.5 | J40: mm/grinding cycle | K40: 0.5 | M40: European Intermodal | N40: 33 | O40: 38 | P40: 46 | Q40: 47 | S40: DMF | T40: PDTSO
D41: 600 | E41: 778 | F41: 775.4682811 | H41: Side Wear Limit | I41: 10 | J41: mm | K41: 10 | M41: Domestic Automotive | N41: 22 | O41: 25 | P41: 46 | Q41: 47 | S41: DMFO | T41: PDTSO(A)
D42: 800 | E42: 1879 | F42: 1871.606341 | H42: Crack Damage Rate | I42: =0.00001/50 -> 2e-07 | K42: 2e-07 | M42: European Automotive | N42: 27 | O42: 31 | P42: 46 | Q42: 47 | S42: DMRBFO | T42: PDTSO(B)
D43: 1000 | E43: 1193 | F43: 1187.18636 | H43: Wear Damage Rate | I43: =I42*160/110 -> 2.909090909e-07 | K43: 2.909090909e-07 | M43: Industrial Minerals | N43: 16 | O43: 18 | P43: 35 | Q43: 41 | S43: DMRF | T43: PTFO
D44: 1200 | E44: 1193 | F44: 1187.18636 | M44: General Merchandise | N44: 26 | O44: 30 | P44: 40 | Q44: 50 | S44: DMS | T44: PTSO
D45: 1400 | E45: 1193 | F45: 1187.18636 | M45: Royal Mail | N45: 69 | O45: 78 | P45: 67 | Q45: 67 | S45: DMSL | T45: PTSRMB
D46: 1800 | E46: 1885 | F46: 1877.544134 | M46: Mail and Premium Logistics | N46: 69 | O46: 78 | P46: 67 | Q46: 67 | S46: DMSL(A) | T46: TCO
D47: 2200 | E47: 1718 | F47: 1711.934606 | M47: Domestic Intermodal | N47: 29 | O47: 33 | P47: 46 | Q47: 47 | S47: DMSL(B) | T47: TPMV
D48: 2600 | E48: 1718 | F48: 1711.934606 | M48: Engineering haulage | N48: 16 | O48: 18 | P48: 35 | Q48: 41 | S48: DMSO | T48: TSL
D49: 3000 | E49: 1718 | F49: 1711.934606 | M49: Enterprise | N49: 24 | O49: 27 | P49: 40 | Q49: 50 | S49: DMSO(A) | T49: TSO
D50: 4000 | E50: 4294 | F50: 4279.836515 | M50: European Conventional | N50: 28 | O50: 31 | P50: 40 | Q50: 50 | S50: DMSO(B) | T50: TSORMB
D51: 6000 | E51: 0 | F51: 0 | M51: Other | N51: 22 | O51: 25 | P51: 35 | Q51: 41 | S51: MBC | T51: TSRB
D52: 8000 | E52: 0 | F52: 0 | M52: Biomass | N52: 30 | O52: 34 | P52: 35 | Q52: 41 | S52: MC
D53: 10000 | E53: 0 | F53: 0 | M53: Chemicals | N53: 14 | O53: 16 | P53: 35 | Q53: 41 | S53: MF
D54: Straight | E54: 11110 | F54: 11088.42291 | S54: MFL
S55: MFO
D56: Total length (km) | E56: =SUM(E39:E54) -> 29096 | F56: =SUM(F39:F54) -> 29005.67051 | S56: MFO(A)
S57: MFO(B)
C58: VTAC efficiency reduction (%) | F58: 0 | G58: CP5 value | H58: 18.91086177 | I58: CP6 value | J58: 11.41817604 | S58: MOS(B)
C59: CP4 factors (for freight only) | S59: MPMV
C60: CP4 efficiency reduction (%) | F60: 34 | S60: MS
C61: 2009/2010 increment | F61: 1.104 | S61: MSL
C62: 2010/2011 increment | F62: 0.995 | S62: MSO
C63: 2011/2012 increment | F63: 1.046 | S63: MSO(A)
C64: 2012/2013 increment | F64: 1.052 | S64: MSO(A)
S65: MSO(B)
C66: ORR cap as a % CP4-CP5 variance | F66: 0.4276980973 | S66: MSO(C)
S67: MSRMB
F68: 2014/15 | G68: 2015/16 | H68: 2016/17 | I68: 2017/18 | J68: 2018/19 | S68: PMSO
C69: ORR phasing profile for freight charges | F69: 0 | G69: 0 | H69: 0.2 | I69: 0.6 | J69: 1
F70: 2019/20 | G70: 2020/21 | H70: 2021/22 | I70: 2022/23 | J70: 2023/24
C71: ORR phasing profile for freight charges | F71: 0 | G71: 0 | H71: 0.125 | I71: 0.25 | J71: 0.375
F72: 2024/25 | G72: 2025/26 | H72: 2026/27 | I72: 2027/28 | J72: 2028/29
C73: ORR phasing profile for freight charges | F73: 0.2 | G73: 0.4 | H73: 0.6 | I73: 0.8 | J73: 1
E75: RPI versus CPI indexation adjustment | F75: 1 | G75: CP6 | H75: 1.04
E77: Average increase to 2018/19 rate (%) | F77: 7.816414658
E78: NYMR uplift (%) | F78: 6.996828631
E79: Jacobite uplift (%) | F79: 5.267433141
E81: CP6 uncapped rate increase in 2023/24 prices | F81: 0.2756852627

Sheet TGamma (hidden)
A1: NOTES
C2: Curving class | D2: Loco2_50 | E2: Loco3_50 | F2: Class_60 | G2: Class_66 | H2: Pacer_10 | I2: Coach_8 | J2: Coach_12_30 | K2: Coach_12_35 | L2: Coach_12_40 | M2: Coach_12_50 | N2: Coach_12_60 | O2: Coach_16_30 | P2: Coach_16_35 | Q2: Coach_16_40 | R2: Coach_16_50 | S2: Coach_17_30 | T2: Coach_17_40 | U2: Coach_23_30 | V2: Coach_23_40 | W2: Coach_23_50 | X2: Coach_24_30 | Y2: Coach_24_35 | Z2: Coach_24_40 | AA2: Coach_24_50 | AB2: Coach_24_60 | AC2: Coach_26_50 | AD2: Coach_35_50 | AE2: Coach_48_40 | AF2: Coach_48_50 | AG2: Coach_48_60 | AH2: Coach_50_40 | AI2: Coach_50_50 | AJ2: Coach_50_60 | AK2: Coach_60_50 | AL2: Coach_64_30 | AM2: Coach_64_35 | AN2: Coach_64_40 | AO2: Coach_64_50 | AP2: Coach_64_60 | AQ2: Coach_80_30 | AR2: Coach_80_40 | AS2: Coach_80_50 | AT2: Coach_100_40 | AU2: Coach_128_30 | AV2: Coach_128_35 | AW2: Coach_128_40 | AX2: Coach_128_50 | AY2: Tilting_50_50 | AZ2: Artic2_80 | BA2: Artic3 | BB2: Y25_loaded | BC2: Y25_empty | BD2: NACO_loaded | BE2: NACO_empty | BF2: 3piece_empty | BG2: 3piece_loaded | BH2: 2axle_empty | BI2: 2axle_loaded | BJ2: LN25_empty | BK2: LN25_loaded | BL2: Coach_15_30 | BM2: Coach_15_40 | BN2: Coach_15_60 | BO2: Shunter | BP2: Coach_HB_40 | BQ2: Coach_HB_50 | BR2: Coach_HB_60 | BS2: Coach_HB_Cl221 | BT2: Class_68 | BU2: PPM_2axle | BV2: Class_70 | BW2: Cl_88/0 | BX2: Cl_390/HB/T | BY2: Cl_390/HB/M | BZ2: Cl_707/M | CA2: Cl_707/T | CB2: 185HB/M | CC2: Cl_345/M_FLU | CD2: Cl_345/M_RLU | CE2: Cl_345/T | CF2: Cl_385/M | CG2: Cl_385/T | CH2: Cl_717/M | CI2: Cl_717/T | CJ2: Coach_5 | CK2: Coach_5A | CL2: Cl_195/M | CM2: Cl_196/0/M | CN2: Cl_196/1/M | CO2: Cl_331/M | CP2: Cl_ 331/T | CQ2: Cl_397/M | CR2: Cl_ 397/T | CS2: Cl_399/0 | CT2: Cl_700/M | CU2: Cl_ 700/T | CV2: Cl_701/T | CW2: Cl_701/0/M1 | CX2: Cl_701/0/M2 | CY2: Cl_701/5/M1 | CZ2: Cl_701/5/M2 | DA2: Cl_720/5/M | DB2: Cl_ 720/5/T | DC2: Cl_777/M | DD2: Cl_755/4/M | DE2: Cl_755/4/T | DF2: Cl_ 777/T | DG2: Cl_800/M_FLU | DH2: Cl_800/M_RLU | DI2: Cl_ 800/T_FLU | DJ2: Cl_ 800/T_RLU | DK2: Cl_802/M | DL2: Cl_802/M_FLU | DM2: Cl_802/M_RLU | DN2: Cl_ 802/T | DO2: Cl_ 802/T_FLU | DP2: Cl_ 802/T_RLU | DQ2: Cl_803/M | DR2: Cl_ 803/T | DS2: FFAG (L) | DT2: FFAG (T) | DU2: FWAC (L) | DV2: FWAC (T) | DW2: FWAD (L) | DX2: FWAD (T)
C3: Reference | D3: SS015_01 Tgammas Cant Def_Base Case.xls | E3: SS015_01 Tgammas Cant Def_Base Case.xls | F3: SS015_01 Tgammas Cant Def_Base Case.xls | G3: SS015_01 Tgammas Cant Def_Base Case.xls | H3: SS015_01 Tgammas Cant Def_Base Case.xls | I3: C:\K3A7B1 NR Access Ch\TGammaTables\VDM_Vehicle_generic_Stiffness_8_Lube_Yes.csv Wt= 45 CD= 40 | K3: C:\K3A7B1 NR Access Ch\TGammaTables\VDM_Vehicle_generic_Stiffness_12_Lube_Yes.csv Wt= 35 CD= 40 profile= mod type2 | L3: C:\K3A7B1 NR Access Ch\TGammaTables\VDM_Vehicle_generic_Stiffness_12_Lube_Yes.csv Wt= 40 CD= 40 profile= mod type2 | M3: C:\K3A7B1 NR Access Ch\TGammaTables\VDM_Vehicle_generic_Stiffness_12_Lube_Yes.csv Wt= 50 CD= 40 profile= mod type2 | O3: C:\K3A7B1 NR Access Ch\TGammaTables\VDM_Vehicle_generic_Stiffness_16_Lube_Yes.csv | P3: C:\K3A7B1 NR Access Ch\TGammaTables\VDM_Vehicle_generic_Stiffness_16_Lube_Yes.csv Wt= 35 CD= 40 profile= mod type2 | Q3: C:\K3A7B1 NR Access Ch\TGammaTables\VDM_Vehicle_generic_Stiffness_16_Lube_Yes.csv Wt= 50 CD= 40 profile= mod type2 | R3: C:\K3A7B1 NR Access Ch\TGammaTables\VDM_Vehicle_generic_Stiffness_16_Lube_Yes.csv Wt= 50 CD= 40 profile= mod type2 | S3: Veh:generic_PYS:17_Weight:30_Con:mod type2_Lube:Yes_CD:40 | T3: Veh:generic_PYS:17_Weight:40_Con:mod type2_Lube:Yes_CD:40 | U3: Veh:generic_PYS:23_Weight:30_Con:mod type2_Lube:Yes_CD:40 | V3: Veh:generic_PYS:23_Weight:40_Con:mod type2_Lube:Yes_CD:40 | W3: Veh:generic_PYS:23_Weight:50_Con:mod type2_Lube:Yes_CD:40 | Y3: C:\K3A7B1 NR Access Ch\TGammaTables\VDM_Vehicle_generic_Stiffness_24_Lube_Yes.csv Wt= 35 CD= 40 profile= mod type2 | Z3: C:\K3A7B1 NR Access Ch\TGammaTables\VDM_Vehicle_generic_Stiffness_24_Lube_Yes.csv Wt= 40 CD= 40 profile= mod type2 | AA3: C:\K3A7B1 NR Access Ch\TGammaTables\VDM_Vehicle_generic_Stiffness_24_Lube_Yes.csv Wt= 50 CD= 40 profile= mod type2 | AB3: Veh:generic_PYS:24_Weight:60_Con:mod type2_Lube:Yes_CD:40 | AC3: Veh:generic_PYS:26_Weight:50_Con:mod type2_Lube:Yes_CD:40 | AD3: Veh:generic_PYS:35_Weight:50_Con:mod type2_Lube:Yes_CD:40 | AE3: C:\K3A7B1 NR Access Ch\TGammaTables\VDM_Vehicle_generic_Stiffness_48_Lube_Yes.csv Wt= 40 CD= 40 profile= mod type2 | AF3: C:\K3A7B1 NR Access Ch\TGammaTables\VDM_Vehicle_generic_Stiffness_48_Lube_Yes.csv Wt= 50 CD= 40 profile= mod type2 | AG3: C:\K3A7B1 NR Access Ch\TGammaTables\VDM_Vehicle_generic_Stiffness_48_Lube_Yes.csv | AH3: Veh:generic_PYS:50_Weight:40_Con:mod type2_Lube:Yes_CD:40 | AI3: Veh:generic_PYS:50_Weight:50_Con:mod type2_Lube:Yes_CD:40 | AJ3: Veh:generic_PYS:50_Weight:60_Con:mod type2_Lube:Yes_CD:40 | AK3: Veh:generic_PYS:60_Weight:50_Con:mod type2_Lube:Yes_CD:40 | AM3: C:\K3A7B1 NR Access Ch\TGammaTables\VDM_Vehicle_generic_Stiffness_64_Lube_Yes.csv Wt= 35 CD= 40 profile= mod type2 | AN3: C:\K3A7B1 NR Access Ch\TGammaTables\VDM_Vehicle_generic_Stiffness_64_Lube_Yes.csv Wt= 40 CD= 40 profile= mod type2 | AO3: C:\K3A7B1 NR Access Ch\TGammaTables\VDM_Vehicle_generic_Stiffness_64_Lube_Yes.csv Wt= 50 CD= 40 profile= mod type2 | AP3: C:\K3A7B1 NR Access Ch\TGammaTables\VDM_Vehicle_generic_Stiffness_64_Lube_Yes.csv | AQ3: Veh:generic_PYS:80_Weight:30_Con:mod type2_Lube:Yes_CD:40 | AR3: Veh:generic_PYS:80_Weight:40_Con:mod type2_Lube:Yes_CD:40 | AS3: Veh:generic_PYS:80_Weight:50_Con:mod type2_Lube:Yes_CD:40 | AT3: Veh:generic_PYS:100_Weight:40_Con:mod type2_Lube:Yes_CD:40 | AV3: C:\K3A7B1 NR Access Ch\TGammaTables\VDM_Vehicle_generic_Stiffness_128_Lube_Yes.csv Wt= 35 CD= 40 profile= mod type2 | AW3: C:\K3A7B1 NR Access Ch\TGammaTables\VDM_Vehicle_generic_Stiffness_128_Lube_Yes.csv Wt= 40 CD= 40 profile= mod type2 | AX3: C:\K3A7B1 NR Access Ch\TGammaTables\VDM_Vehicle_generic_Stiffness_128_Lube_Yes.csv Wt= 50 CD= 40 profile= mod type2 | AY3: Temporary values until CD value agreed | AZ3: SS015_01 Tgammas Cant Def_Base Case.xls | BA3: SS015_01 Tgammas Cant Def_Base Case.xls | BB3: SS015_01 Tgammas Cant Def_Base Case.xls | BC3: SS015_01 Tgammas Cant Def_Base Case.xls | BD3: SS015_01 Tgammas Cant Def_Base Case.xls | BE3: SS015_01 Tgammas Cant Def_Base Case.xls | BF3: SS015_01 Tgammas Cant Def_Base Case.xls | BG3: SS015_01 Tgammas Cant Def_Base Case.xls | BH3: SS015_01 Tgammas Cant Def_Base Case.xls | BI3: SS015_01 Tgammas Cant Def_Base Case.xls | BL3: Interpolate | BM3: Interpolate | BN3: Interpolate | BO3: Assume half Loco3_50 | BS3: HALL bush for Cl221 DEMU | BU3: Cl139
B4: Radius
A5: Wheelset 1 | B5: 200 | D5: 727.9726335 | E5: 926.050333 | F5: 857.559087 | G5: 645.1879207 | H5: 703.096985 | I5: 158.9858704 | J5: 149.5829315 | K5: 164.2506409 | L5: 178.9183502 | M5: 203.2501984 | N5: 227.5820465 | O5: 154.3118134 | P5: 173.1998291 | Q5: 192.0878448 | R5: 222.378418 | S5: 154.246109 | T5: 193.8979492 | U5: 159.8379059 | V5: 202.8609772 | W5: 243.1985016 | X5: 161.562851 | Y5: 182.6726532 | Z5: 203.7824554 | AA5: 244.872345 | AB5: 280.4165955 | AC5: 247.867569 | AD5: 257.420166 | AE5: 217.5355072 | AF5: 263.4876404 | AG5: 309.4397736 | AH5: 218.1276093 | AI5: 264.5214539 | AJ5: 312.7772827 | AK5: 268.5058899 | AL5: 170.5964355 | AM5: 195.8780823 | AN5: 221.159729 | AO5: 269.7956543 | AP5: 318.4315796 | AQ5: 169.6213379 | AR5: 223.2370148 | AS5: 272.9187317 | AT5: 224.8818359 | AU5: 171.0529022 | AV5: 198.7123413 | AW5: 226.3717804 | AX5: 277.9349365 | AY5: 263.4876404 | AZ5: 181.8725773 | BA5: 589.4653766 | BB5: 239.6389519 | BC5: 112.1539912 | BD5: 530.2744362 | BE5: 148.8394261 | BF5: 143.577871 | BG5: 522.9594316 | BH5: 175.8757559 | BI5: 589.2576448 | BL5: =J5+(O5-J5)*0.75 -> 153.1295929 | BM5: =L5+(Q5-L5)*0.75 -> 188.7954712 | BN5: =N5+(R5-N5)*0.75 -> 223.6793251 | BO5: =E5/2 -> 463.0251665 | BP5: 151.1863819 | BQ5: 171.8981838 | BR5: 190.5219086 | BS5: 222.232718 | BT5: 460 | BU5: 107.9984714 | BV5: 568.7 | BW5: 460 | BX5: 225.88 | BY5: 229.96 | BZ5: 134 | CA5: 114.3 | CB5: 201.2 | CC5: 137.77 | CD5: 145.43 | CE5: 108.97 | CF5: 203.1 | CG5: 168.6 | CH5: 141.247 | CI5: 104.593 | CJ5: 169.87 | CK5: 168.02 | CL5: 207.6 | CM5: 207.6 | CN5: 200.35 | CO5: 212.6 | CP5: 172.4 | CQ5: 205.6 | CR5: 194.4 | CS5: 134.3333 | CT5: 159.539 | CU5: 146.609 | CV5: 113.5 | CW5: 154.8 | CX5: 117.2 | CY5: 166.8 | CZ5: 117 | DA5: 149.32175 | DB5: 161.846 | DC5: 180.5 | DD5: 190.5219086 | DE5: 171.8981838 | DF5: 169 | DG5: 249 | DH5: 249 | DI5: 175.55 | DJ5: 242.7 | DK5: 249 | DL5: 249 | DM5: 249 | DN5: 242.7 | DO5: 209.125 | DP5: 242.7 | DQ5: 220.9 | DR5: 239.8 | DS5: 208.244 | DT5: 89.743 | DU5: 225.087 | DV5: 92.981 | DW5: 225.087 | DX5: 92.981
B6: 400 | D6: 359.8306031 | E6: 437.1590785 | F6: 368.8897346 | G6: 50.18501486 | H6: 158.432999 | I6: 57.96814346 | J6: 72.48693085 | K6: 76.00466919 | L6: 79.52240753 | M6: 83.26874542 | N6: 87.01508331 | O6: 77.04065704 | P6: 83.02623749 | Q6: 89.01181793 | R6: 97.84325409 | S6: 76.52616119 | T6: 90.59909058 | U6: 80.68473816 | V6: 97.01605988 | W6: 110.4172592 | X6: 81.74926758 | Y6: 89.77443695 | Z6: 97.79960632 | AA6: 111.5678864 | AB6: 124.124588 | AC6: 113.5997391 | AD6: 120.3470383 | AE6: 107.309433 | AF6: 125.4387589 | AG6: 143.5680847 | AH6: 107.6462021 | AI6: 126.0126114 | AJ6: 143.6492615 | AK6: 128.382309 | AL6: 88.39097595 | AM6: 98.89676666 | AN6: 109.4025574 | AO6: 129.1491089 | AP6: 148.8956604 | AQ6: 90.32037354 | AR6: 110.6723709 | AS6: 131.2376404 | AT6: 111.696434 | AU6: 94.00270844 | AV6: 103.3023987 | AW6: 112.6020889 | AX6: 134.0690002 | AY6: 125.4387589 | AZ6: 44.47254861 | BA6: 373.9886688 | BB6: 86.50478978 | BC6: 64.64587038 | BD6: 284.4024086 | BE6: 93.90261715 | BF6: 86.09645827 | BG6: 346.8428178 | BH6: 106.8364941 | BI6: 143.4790653 | BL6: =J6+(O6-J6)*0.75 -> 75.90222549 | BM6: =L6+(Q6-L6)*0.75 -> 86.63946533 | BN6: =N6+(R6-N6)*0.75 -> 95.1362114 | BO6: =E6/2 -> 218.5795393 | BP6: 60.36858293 | BQ6: 57.87782578 | BR6: 60.76168533 | BS6: 85.15784972 | BT6: 203 | BU6: 75.69224932 | BV6: 312.2 | BW6: 203 | BX6: 94.82 | BY6: 97.83 | BZ6: 57.5 | CA6: 47.7 | CB6: 64.5 | CC6: 53.29 | CD6: 56.57 | CE6: 42.53 | CF6: 94.2 | CG6: 76.2 | CH6: 97.405 | CI6: 82.704 | CJ6: 76.42 | CK6: 76.68 | CL6: 90.23333333 | CM6: 89.15 | CN6: 86.725 | CO6: 92.55 | CP6: 79.5 | CQ6: 96.16666667 | CR6: 90.7 | CS6: 62.33333 | CT6: 59.459 | CU6: 57.002 | CV6: 51.2 | CW6: 67.5 | CX6: 53.1 | CY6: 71 | CZ6: 53.1 | DA6: 64.72925 | DB6: 67.966 | DC6: 72.5 | DD6: 60.76168533 | DE6: 60.76168533 | DF6: 70 | DG6: 110.3 | DH6: 110.3 | DI6: 66.95 | DJ6: 108.3 | DK6: 110.3 | DL6: 110.3 | DM6: 110.3 | DN6: 108.3 | DO6: 87.625 | DP6: 108.3 | DQ6: 102.4 | DR6: 107.7 | DS6: 81.779 | DT6: 38.101 | DU6: 88.298 | DV6: 39.717 | DW6: 88.298 | DX6: 39.717
B7: 600 | D7: 207.4932087 | E7: 255.8512294 | F7: 188.1590365 | G7: 4.355903596 | H7: 33.9220009 | I7: 40.8034935 | J7: 47.44301987 | K7: 54.36294556 | L7: 61.28287125 | M7: 69.22151947 | N7: 77.16016769 | O7: 46.68290329 | P7: 53.89714813 | Q7: 61.11139297 | R7: 73.68005371 | S7: 46.16686249 | T7: 61.06096268 | U7: 45.51959229 | V7: 60.77964401 | W7: 74.4338913 | X7: 45.84191513 | Y7: 53.29039383 | Z7: 60.73887253 | AA7: 74.46148682 | AB7: 86.37200928 | AC7: 74.51204681 | AD7: 74.64984894 | AE7: 59.89548874 | AF7: 74.52462769 | AG7: 89.15376663 | AH7: 59.83059692 | AI7: 74.50512695 | AJ7: 88.37255096 | AK7: 74.42779541 | AL7: 43.87282944 | AM7: 51.67562103 | AN7: 59.47841263 | AO7: 74.38391876 | AP7: 89.2894249 | AQ7: 45.6049881 | AR7: 59.2630806 | AS7: 74.23897552 | AT7: 59.07141495 | AU7: 46.06732941 | AV7: 52.47757339 | AW7: 58.88781738 | AX7: 73.95928955 | AY7: 74.52462769 | AZ7: 16.31321796 | BA7: 200.2247554 | BB7: 49.94262678 | BC7: 37.97915786 | BD7: 131.1729548 | BE7: 34.94362938 | BF7: 39.45702665 | BG7: 144.7184094 | BH7: 1.090979641 | BI7: 2.598873535 | BL7: 46.87293243 | BM7: 61.15426254 | BN7: 74.55008221 | BO7: 127.9256147 | BP7: 44.41477912 | BQ7: 42.88770829 | BR7: 39.86100184 | BS7: 70.25053945 | BT7: 127 | BU7: 46.30120678 | BV7: 194 | BW7: 127 | BX7: 66.36 | BY7: 67.52 | BZ7: 55.6 | CA7: 46.3 | CB7: 48.7 | CC7: 41.6 | CD7: 45.1 | CE7: 30.2 | CF7: 50.7 | CG7: 44.5 | CH7: 53.714 | CI7: 46.688 | CJ7: 69.03 | CK7: 66.68 | CL7: 84.26666667 | CM7: 86.35 | CN7: 83.025 | CO7: 84.95 | CP7: 69.35 | CQ7: 79.3 | CR7: 74.9 | CS7: 37.33333 | CT7: 52.803 | CU7: 46.441 | CV7: 42.7 | CW7: 59.3 | CX7: 44.1 | CY7: 60.9 | CZ7: 44.1 | DA7: 56.56 | DB7: 59.202 | DC7: 45 | DD7: 39.86100184 | DE7: 39.86100184 | DF7: 49 | DG7: 63.3 | DH7: 63.3 | DI7: 34.3 | DJ7: 61.75 | DK7: 63.3 | DL7: 63.3 | DM7: 63.3 | DN7: 61.75 | DO7: 48.025 | DP7: 61.75 | DQ7: 57.3 | DR7: 61.2 | DS7: 46.696 | DT7: 29.336 | DU7: 46.514 | DV7: 31.545 | DW7: 46.514 | DX7: 31.545
B8: 800 | D8: 126.8813131 | E8: 151.8914955 | F8: 115.3165564 | G8: 2.512647075 | H8: 17.5939999 | I8: 17.63652611 | J8: 42.9534874 | K8: 42.17050552 | L8: 41.38752365 | M8: 37.53070068 | N8: 33.67387772 | O8: 49.93640137 | P8: 50.67326736 | Q8: 51.41013336 | R8: 50.39439774 | S8: 49.08774948 | T8: 53.80159378 | U8: 52.78537369 | V8: 61.13991165 | W8: 65.38814545 | X8: 54.73815536 | Y8: 58.39776611 | Z8: 62.05737686 | AA8: 66.78492737 | AB8: 71.22553253 | AC8: 69.28894043 | AD8: 77.22672272 | AE8: 72.24273682 | AF8: 83.72452545 | AG8: 95.20631409 | AH8: 72.63187408 | AI8: 84.46034241 | AJ8: 96.49531555 | AK8: 87.4162674 | AL8: 59.45553589 | AM8: 67.06214142 | AN8: 74.66874695 | AO8: 88.33907318 | AP8: 102.0093994 | AQ8: 59.09852219 | AR8: 74.93434906 | AS8: 89.46073914 | AT8: 74.93585968 | AU8: 59.43196869 | AV8: 67.18670654 | AW8: 74.9414444 | AX8: 89.78736115 | AY8: 83.72452545 | AZ8: 10.92128236 | BA8: 159.9042776 | BB8: 41.85864963 | BC8: 18.67946949 | BD8: 121.9443613 | BE8: 38.25325597 | BF8: 31.04883286 | BG8: 89.06104105 | BH8: 1.269883599 | BI8: 0.7503660301 | BL8: 48.19067287 | BM8: 48.90448093 | BN8: 46.21426773 | BO8: 75.94574775 | BP8: 28.61170093 | BQ8: 24.56513341 | BR8: 21.99517105 | BS8: 33.73180981 | BT8: 94 | BU8: 53.7861902 | BV8: 131.1 | BW8: 94 | BX8: 39.46 | BY8: 41.07 | BZ8: 30.9 | CA8: 25.8 | CB8: 28.9 | CC8: 23.18 | CD8: 25.19 | CE8: 16.74 | CF8: 34.2 | CG8: 23.9 | CH8: 30.476 | CI8: 25.855 | CJ8: 43.57 | CK8: 46.62 | CL8: 52.1 | CM8: 51.1 | CN8: 50.175 | CO8: 53.8 | CP8: 46.65 | CQ8: 56.2 | CR8: 53.6 | CS8: 20 | CT8: 27.413 | CU8: 24.105 | CV8: 23.5 | CW8: 33.2 | CX8: 24.3 | CY8: 33.6 | CZ8: 24.3 | DA8: 31.641 | DB8: 32.598 | DC8: 25 | DD8: 21.99517105 | DE8: 21.99517105 | DF8: 27 | DG8: 40.1 | DH8: 40.1 | DI8: 17.35 | DJ8: 22.75 | DK8: 40.1 | DL8: 40.1 | DM8: 40.1 | DN8: 22.75 | DO8: 29.05 | DP8: 22.75 | DQ8: 44.4 | DR8: 41.3 | DS8: 26.597 | DT8: 18.384 | DU8: 27.012 | DV8: 20.606 | DW8: 27.012 | DX8: 20.606
B9: 1000 | D9: 120.482981 | E9: 105.7858201 | F9: 106.3505215 | G9: 1.671236308 | H9: 9.60299969 | I9: 11.34964752 | J9: 28.89890099 | K9: 25.81937027 | L9: 22.73983955 | M9: 19.42765617 | N9: 16.11547279 | O9: 34.34018707 | P9: 33.38278961 | Q9: 32.42539215 | R9: 28.65140533 | S9: 32.97800827 | T9: 34.02360916 | U9: 35.97723389 | V9: 40.47255707 | W9: 42.08254623 | X9: 37.10761642 | Y9: 39.12422562 | Z9: 41.14083481 | AA9: 43.10038376 | AB9: 43.289711 | AC9: 44.97490311 | AD9: 50.95145035 | AE9: 48.85404587 | AF9: 55.9829216 | AG9: 63.11179733 | AH9: 49.15903473 | AI9: 56.53245926 | AJ9: 64.09851837 | AK9: 58.74159622 | AL9: 41.64850616 | AM9: 46.21068192 | AN9: 50.77285767 | AO9: 59.43572617 | AP9: 68.09859467 | AQ9: 41.51670456 | AR9: 51.9718895 | AS9: 61.52905655 | AT9: 52.92905426 | AU9: 42.71260834 | AV9: 48.23042679 | AW9: 53.74824524 | AX9: 64.68087006 | AY9: 55.9829216 | AZ9: 10.05982118 | BA9: 106.5910917 | BB9: 21.72969378 | BC9: 25.87118184 | BD9: 107.6796283 | BE9: 17.84696558 | BF9: 11.11448261 | BG9: 72.02606295 | BH9: 1.554395957 | BI9: 0.4157490185 | BL9: 32.97986555 | BM9: 30.004004 | BN9: 25.5174222 | BO9: 52.89291005 | BP9: 18.70909733 | BQ9: 15.12004596 | BR9: 13.16858903 | BS9: 18.00710286 | BT9: 93 | BU9: 42.03899572 | BV9: 102.2 | BW9: 93 | BX9: 23.13 | BY9: 24.18 | BZ9: 17.4 | CA9: 15.3 | CB9: 18.8 | CC9: 13.37 | CD9: 14.7 | CE9: 9.08 | CF9: 20.2 | CG9: 13.6 | CH9: 16.716 | CI9: 16.117 | CJ9: 28.43 | CK9: 31.24 | CL9: 33.83333333 | CM9: 33.05 | CN9: 32.65 | CO9: 35.2 | CP9: 31.25 | CQ9: 38.16666667 | CR9: 36.7 | CS9: 12.66667 | CT9: 14.479 | CU9: 13.451 | CV9: 13.7 | CW9: 20.4 | CX9: 14.2 | CY9: 20.4 | CZ9: 14.2 | DA9: 19.3215 | DB9: 20.004 | DC9: 15 | DD9: 13.16858903 | DE9: 13.16858903 | DF9: 15.5 | DG9: 23.6 | DH9: 23.6 | DI9: 9.25 | DJ9: 24.1 | DK9: 23.6 | DL9: 23.6 | DM9: 23.6 | DN9: 24.1 | DO9: 16.675 | DP9: 24.1 | DQ9: 26.7 | DR9: 24.5 | DS9: 16.993 | DT9: 12.864 | DU9: 16.862 | DV9: 14.569 | DW9: 16.862 | DX9: 14.569
B10: 1200 | D10: 112.9778762 | E10: 96.01177838 | F10: 68.43058725 | G10: 1.341200943 | H10: 6.49900007 | I10: 7.5299716 | J10: 16.70650196 | K10: 15.77397633 | L10: 14.84145069 | M10: 12.6297121 | N10: 10.41797352 | O10: 22.64378929 | P10: 21.30536461 | Q10: 19.96693993 | R10: 18.37264061 | S10: 22.75479507 | T10: 21.23204422 | U10: 25.67230034 | V10: 27.65056229 | W10: 26.24343872 | X10: 26.71876144 | Y10: 27.51379395 | Z10: 28.30882645 | AA10: 27.23261833 | AB10: 27.89098167 | AC10: 29.24362564 | AD10: 35.07812119 | AE10: 35.32538986 | AF10: 39.43308258 | AG10: 43.5407753 | AH10: 35.58948135 | AI10: 39.90536118 | AJ10: 44.48109818 | AK10: 41.79235458 | AL10: 30.28167725 | AM10: 33.59619904 | AN10: 36.91072083 | AO10: 42.37622452 | AP10: 47.84172821 | AQ10: 30.28476524 | AR10: 37.77048111 | AS10: 44.03689194 | AT10: 38.43741226 | AU10: 31.08020782 | AV10: 35.04683304 | AW10: 39.01345825 | AX10: 46.38393784 | AY10: 39.43308258 | AZ10: 8.41975242 | BA10: 112.5569576 | BB10: 12.62066783 | BC10: 25.76174256 | BD10: 51.24102251 | BE10: 7.567177919 | BF10: 7.99940093 | BG10: 27.53656958 | BH10: 1.360403779 | BI10: 0.8587038577 | BL10: 21.15946746 | BM10: 18.68556762 | BN10: 16.38397384 | BO10: 48.00588919 | BP10: 12.81712478 | BQ10: 10.1457694 | BR10: 9.018707464 | BS10: 12.27775264 | BT10: 93 | BU10: 33.09885176 | BV10: 109.1 | BW10: 93 | BX10: 13.27 | BY10: 13.93 | BZ10: 10.4 | CA10: 10.5 | CB10: 13.8 | CC10: 9.18 | CD10: 9.97 | CE10: 6.54 | CF10: 12.4 | CG10: 8.3 | CH10: 9.986 | CI10: 8.961 | CJ10: 18.75 | CK10: 21.64 | CL10: 22.56666667 | CM10: 21.6 | CN10: 21.55 | CO10: 23.35 | CP10: 21.65 | CQ10: 30.5 | CR10: 26.5 | CS10: 9 | CT10: 10.163 | CU10: 9.406 | CV10: 8.8 | CW10: 12.9 | CX10: 9.1 | CY10: 12.9 | CZ10: 9.1 | DA10: 12.2925 | DB10: 12.564 | DC10: 11.5 | DD10: 9.018707464 | DE10: 9.018707464 | DF10: 11.5 | DG10: 14.3 | DH10: 14.3 | DI10: 5.95 | DJ10: 14.65 | DK10: 14.3 | DL10: 14.3 | DM10: 14.3 | DN10: 14.65 | DO10: 10.3 | DP10: 14.65 | DQ10: 17 | DR10: 14.9 | DS10: 12.913 | DT10: 7.776 | DU10: 12.96 | DV10: 9.055 | DW10: 12 | DX10: 9.055
B11: 1400 | D11: 86.8848768 | E11: 99.6999905 | F11: 52.37263488 | G11: 1.392562767 | H11: 4.60599995 | I11: 5.526565075 | J11: 12.03274727 | K11: 11.35372353 | L11: 10.67469978 | M11: 8.999741554 | N11: 7.324783325 | O11: 15.18198776 | P11: 14.63954926 | Q11: 14.09711075 | R11: 12.78639507 | S11: 15.5962553 | T11: 14.86982155 | U11: 18.69837952 | V11: 18.8110199 | W11: 17.98731422 | X11: 19.70076752 | Y11: 19.5298233 | Z11: 19.35887909 | AA11: 18.61994362 | AB11: 18.87609482 | AC11: 19.81679153 | AD11: 24.27401924 | AE11: 26.70967102 | AF11: 28.57772827 | AG11: 30.44578552 | AH11: 26.98623276 | AI11: 29.069664 | AJ11: 31.59292412 | AK11: 31.0768795 | AL11: 23.93479347 | AM11: 26.17990875 | AN11: 28.42502403 | AO11: 31.71627235 | AP11: 35.00752068 | AQ11: 23.96392059 | AR11: 29.47192001 | AS11: 33.64688873 | AT11: 30.08890152 | AU11: 24.90848923 | AV11: 27.73836136 | AW11: 30.56823349 | AX11: 35.75120163 | AY11: 28.57772827 | AZ11: 5.673560187 | BA11: 115.148443 | BB11: 12.92493615 | BC11: 23.61714885 | BD11: 33.26112493 | BE11: 7.419778708 | BF11: 6.070493419 | BG11: 29.57810055 | BH11: 1.25714505 | BI11: 0.7888456143 | BL11: 14.39467764 | BM11: 13.24150801 | BN11: 11.42099214 | BO11: 49.84999525 | BP11: 9.54833685 | BQ11: 7.585951507 | BR11: 6.860418616 | BS11: 8.865000934 | BT11: 74 | BU11: 27.72337334 | BV11: 111.8 | BW11: 74 | BX11: 8.88 | BY11: 9.34 | BZ11: 6.6 | CA11: 6.4 | CB11: 11.1 | CC11: 6.89 | CD11: 7.45 | CE11: 5 | CF11: 8.5 | CG11: 5.8 | CH11: 4.711 | CI11: 4.749 | CJ11: 13.43 | CK11: 15.3 | CL11: 16.3 | CM11: 15.65 | CN11: 15.6 | CO11: 16.85 | CP11: 15.15 | CQ11: 18.6 | CR11: 18.2 | CS11: 6.666667 | CT11: 7.587 | CU11: 6.976 | CV11: 6.6 | CW11: 9.5 | CX11: 6.9 | CY11: 9.6 | CZ11: 6.9 | DA11: 9.04875 | DB11: 9.319 | DC11: 8.5 | DD11: 6.860418616 | DE11: 6.860418616 | DF11: 8.5 | DG11: 9.8 | DH11: 9.8 | DI11: 4.25 | DJ11: 5.55 | DK11: 9.8 | DL11: 9.8 | DM11: 9.8 | DN11: 5.55 | DO11: 7.15 | DP11: 5.55 | DQ11: 11.2 | DR11: 10.2 | DS11: 9.591 | DT11: 5.714 | DU11: 9.703 | DV11: 7.093 | DW11: 9.703 | DX11: 7.093
B12: 1800 | D12: 59.14556284 | E12: 84.37263427 | F12: 20.01260524 | G12: 0.7880481112 | H12: 2.72900009 | I12: 3.271509409 | J12: 7.390413284 | K12: 6.826934338 | L12: 6.263455391 | M12: 5.176198483 | N12: 4.088941574 | O12: 8.974321365 | P12: 8.604365349 | Q12: 8.234409332 | R12: 7.233991146 | S12: 9.011368752 | T12: 8.633609772 | U12: 10.50348949 | V12: 10.51054287 | W12: 9.989545822 | X12: 10.92975521 | Y12: 10.84538174 | Z12: 10.76100826 | AA12: 10.30132294 | AB12: 10.51702499 | AC12: 10.88328075 | AD12: 12.91492939 | AE12: 14.6100359 | AF12: 14.88854408 | AG12: 15.16705227 | AH12: 14.80760956 | AI12: 15.13154125 | AJ12: 16.54040718 | AK12: 16.17672157 | AL12: 15.13396931 | AM12: 15.52803326 | AN12: 15.92209721 | AO12: 16.52718544 | AP12: 17.13227367 | AQ12: 15.43140316 | AR12: 16.91015816 | AS12: 17.62989426 | AT12: 17.73889732 | AU12: 16.84093475 | AV12: 17.67668915 | AW12: 18.51244354 | AX12: 19.58532524 | AY12: 14.88854408 | AZ12: 1.882508322 | BA12: 95.95482388 | BB12: 8.411807011 | BC12: 13.04057074 | BD12: 25.31801927 | BE12: 3.041424365 | BF12: 4.900308286 | BG12: 16.94537627 | BH12: 1.541132235 | BI12: 0.7684682452 | BL12: 8.578344345 | BM12: 7.741670847 | BN12: 6.447728753 | BO12: 42.18631714 | BP12: 6.488949154 | BQ12: 5.227530028 | BR12: 4.878121886 | BS12: 5.170830175 | BT12: 46 | BU12: 18.3825943 | BV12: 98.4 | BW12: 46 | BX12: 4.96 | BY12: 5.38 | BZ12: 4.7 | CA12: 4.1 | CB12: 8.5 | CC12: 4.34 | CD12: 4.67 | CE12: 3.21 | CF12: 5.2 | CG12: 3.6 | CH12: 2.04 | CI12: 1.972 | CJ12: 7.86 | CK12: 9.1 | CL12: 9.833333333 | CM12: 9.35 | CN12: 9.325 | CO12: 9.95 | CP12: 8.9 | CQ12: 10.53333333 | CR12: 10.3 | CS12: 4 | CT12: 4.546 | CU12: 4.141 | CV12: 4 | CW12: 5.7 | CX12: 4.2 | CY12: 5.8 | CZ12: 4.2 | DA12: 5.47275 | DB12: 5.587 | DC12: 6 | DD12: 4.878121886 | DE12: 4.878121886 | DF12: 6 | DG12: 5.7 | DH12: 5.7 | DI12: 2.6 | DJ12: 5.75 | DK12: 5.7 | DL12: 5.7 | DM12: 5.7 | DN12: 5.75 | DO12: 4.175 | DP12: 5.75 | DQ12: 6.5 | DR12: 5.8 | DS12: 7.016 | DT12: 3.666 | DU12: 6.985 | DV12: 4.749 | DW12: 6.985 | DX12: 4.749
B13: 2200 | D13: 24.86041958 | E13: 69.79714381 | F13: 12.11938717 | G13: 0.8386405618 | H13: 1.60599995 | I13: 1.321617961 | J13: 4.83634901 | K13: 4.450992107 | L13: 4.065635204 | M13: 2.530205011 | N13: 0.9947748184 | O13: 5.775091171 | P13: 5.485990524 | Q13: 5.196889877 | R13: 4.48574543 | S13: 5.789705753 | T13: 5.427850246 | U13: 6.57492733 | V13: 6.505697727 | W13: 6.041119576 | X13: 6.858596325 | Y13: 6.752690792 | Z13: 6.646785259 | AA13: 6.217130661 | AB13: 6.381161213 | AC13: 6.542510033 | AD13: 7.665757656 | AE13: 8.660260201 | AF13: 8.687632561 | AG13: 8.715004921 | AH13: 8.763308525 | AI13: 8.806470871 | AJ13: 9.801994324 | AK13: 9.312070847 | AL13: 8.917160034 | AM13: 9.13028717 | AN13: 9.343414307 | AO13: 9.488485336 | AP13: 9.633556366 | AQ13: 9.057214737 | AR13: 9.802516937 | AS13: 10.05836582 | AT13: 10.19137955 | AU13: 9.775912285 | AV13: 10.16476536 | AW13: 10.55361843 | AX13: 11.02809143 | AY13: 8.687632561 | AZ13: 2.653619958 | BA13: 87.8142985 | BB13: 7.662132188 | BC13: 7.319861855 | BD13: 19.83645769 | BE13: 2.811896251 | BF13: 3.317178449 | BG13: 17.61355846 | BH13: 1.392421025 | BI13: 0.7101944551 | BL13: 5.540405631 | BM13: 4.914076209 | BN13: 3.613002777 | BO13: 34.8985719 | BP13: 5.135989839 | BQ13: 4.235799098 | BR13: 4.030039071 | BS13: 2.29240729 | BT13: 31 | BU13: 19.58603387 | BV13: 72.9 | BW13: 31 | BX13: 3.05 | BY13: 3.39 | BZ13: 1.7 | CA13: 2.2 | CB13: 7.4 | CC13: 2.3 | CD13: 2.57 | CE13: 1.42 | CF13: 3.5 | CG13: 2.4 | CH13: 1.033 | CI13: 1.002 | CJ13: 5.03 | CK13: 5.84 | CL13: 6.533333333 | CM13: 6.05 | CN13: 6.075 | CO13: 6.4 | CP13: 5.65 | CQ13: 6.466666667 | CR13: 6.3 | CS13: 2 | CT13: 2.183 | CU13: 2.005 | CV13: 2.1 | CW13: 3.5 | CX13: 2.3 | CY13: 3.3 | CZ13: 2.3 | DA13: 3.3355 | DB13: 3.206 | DC13: 3.5 | DD13: 4.030039071 | DE13: 4.030039071 | DF13: 3.5 | DG13: 3.8 | DH13: 3.8 | DI13: 1.65 | DJ13: 3.85 | DK13: 3.8 | DL13: 3.8 | DM13: 3.8 | DN13: 3.85 | DO13: 2.75 | DP13: 3.85 | DQ13: 4.1 | DR13: 3.9 | DS13: 3.809 | DT13: 2.93 | DU13: 3.752 | DV13: 3.497 | DW13: 3.752 | DX13: 3.497
B14: 2600 | D14: 26.13497214 | E14: 59.41448269 | F14: 5.280630894 | G14: 0.8230342131 | H14: 1.05599999 | I14: 0.8132129312 | J14: 2.834089756 | K14: 2.524048567 | L14: 2.214007378 | M14: 1.463810444 | N14: 0.7136135101 | O14: 3.635664701 | P14: 3.330071449 | Q14: 3.024478197 | R14: 2.408752441 | S14: 3.951849222 | T14: 3.207206964 | U14: 4.343540668 | V14: 4.281405449 | W14: 3.578490973 | X14: 4.527540207 | Y14: 4.444758892 | Z14: 4.361977577 | AA14: 3.722553015 | AB14: 3.742574453 | AC14: 4.001504421 | AD14: 4.784113884 | AE14: 5.346935749 | AF14: 5.326206207 | AG14: 5.305476665 | AH14: 5.396433353 | AI14: 5.386102676 | AJ14: 6.010996819 | AK14: 5.629585266 | AL14: 5.515614986 | AM14: 5.594407082 | AN14: 5.673199177 | AO14: 5.706898689 | AP14: 5.740598202 | AQ14: 5.551819801 | AR14: 5.888821125 | AS14: 5.945291996 | AT14: 6.075169086 | AU14: 5.947666645 | AV14: 6.098809242 | AW14: 6.249951839 | AX14: 6.368489265 | AY14: 5.326206207 | AZ14: 3.912926637 | BA14: 72.60769499 | BB14: 6.652277764 | BC14: 9.018565406 | BD14: 14.59518452 | BE14: 1.63536035 | BF14: 2.885015265 | BG14: 15.30847435 | BH14: 1.12274965 | BI14: 3.729515041 | BL14: 3.435270965 | BM14: 2.821860492 | BN14: 1.984967709 | BO14: 29.70724135 | BP14: 4.343297382 | BQ14: 3.673181566 | BR14: 3.404260052 | BS14: 1.362585547 | BT14: 21.5 | BU14: 19.26526467 | BV14: 54.8 | BW14: 21.5 | BX14: 1.66 | BY14: 1.92 | BZ14: 1.2 | CA14: 1.3 | CB14: 6.8 | CC14: 1.61 | CD14: 1.77 | CE14: 1.07 | CF14: 2.5 | CG14: 1.7 | CH14: 0.635 | CI14: 0.522 | CJ14: 3.62 | CK14: 4.3 | CL14: 4.7 | CM14: 4.3 | CN14: 4.35 | CO14: 4.65 | CP14: 4.15 | CQ14: 4.933333333 | CR14: 4.8 | CS14: 2 | CT14: 1.407 | CU14: 1.232 | CV14: 1.4 | CW14: 2.3 | CX14: 1.5 | CY14: 2.2 | CZ14: 1.5 | DA14: 2.14225 | DB14: 2.093 | DC14: 2.5 | DD14: 3.404260052 | DE14: 3.404260052 | DF14: 2.5 | DG14: 2.8 | DH14: 2.8 | DI14: 1.2 | DJ14: 2.8 | DK14: 2.8 | DL14: 2.8 | DM14: 2.8 | DN14: 2.8 | DO14: 2 | DP14: 2.8 | DQ14: 3 | DR14: 2.8 | DS14: 2.978 | DT14: 2.561 | DU14: 2.855 | DV14: 2.787 | DW14: 2.855 | DX14: 2.787
B15: 3000 | D15: 19.66502937 | E15: 46.21769696 | F15: 3.527588151 | G15: 0.7696811174 | H15: 0.787999988 | I15: 0.8429247737 | J15: 2.136769652 | K15: 1.787709594 | L15: 1.438649535 | M15: 0.9814761281 | N15: 0.524302721 | O15: 2.562948704 | P15: 2.325244665 | Q15: 2.087540627 | R15: 1.497162104 | S15: 2.622822523 | T15: 2.203632355 | U15: 3.15073061 | V15: 2.806232691 | W15: 2.340988398 | X15: 3.30118227 | Y15: 3.096508265 | Z15: 2.891834259 | AA15: 2.432089806 | AB15: 2.408221245 | AC15: 2.605115175 | AD15: 3.24993968 | AE15: 4.120481491 | AF15: 3.907945871 | AG15: 3.695410252 | AH15: 4.146486282 | AI15: 3.989087582 | AJ15: 4.259912968 | AK15: 4.334359169 | AL15: 3.777899265 | AM15: 4.031076908 | AN15: 4.284254551 | AO15: 4.441977024 | AP15: 4.599699497 | AQ15: 3.928625584 | AR15: 4.274368763 | AS15: 4.711802483 | AT15: 4.387528419 | AU15: 4.209172249 | AV15: 4.357089043 | AW15: 4.505005836 | AX15: 4.920901299 | AY15: 3.907945871 | AZ15: 4.097095501 | BA15: 54.30240139 | BB15: 6.22015374 | BC15: 8.136663145 | BD15: 14.95513879 | BE15: 1.779145588 | BF15: 2.058211045 | BG15: 10.3745057 | BH15: 1.135188273 | BI15: 3.685575248 | BL15: 2.456403941 | BM15: 1.925317854 | BN15: 1.253947258 | BO15: 23.10884848 | BP15: 3.810258512 | BQ15: 3.147618289 | BR15: 3.023609154 | BS15: 1.014817312 | BT15: 16 | BU15: 7.903707651 | BV15: 42.9 | BW15: 16 | BX15: 1.1 | BY15: 1.24 | BZ15: 0.8 | CA15: 0.7 | CB15: 6.3 | CC15: 1.2 | CD15: 1.31 | CE15: 0.8 | CF15: 1.9 | CG15: 1.3 | CH15: 0.489 | CI15: 0.373 | CJ15: 2.64 | CK15: 3.26 | CL15: 3.5 | CM15: 3.15 | CN15: 3.2 | CO15: 3.45 | CP15: 3.05 | CQ15: 3.533333333 | CR15: 3.4 | CS15: 1.666666667 | CT15: 0.894 | CU15: 0.799 | CV15: 1.1 | CW15: 1.7 | CX15: 1.1 | CY15: 1.7 | CZ15: 1.1 | DA15: 1.562 | DB15: 1.546 | DC15: 2 | DD15: 3.023609154 | DE15: 3.023609154 | DF15: 2 | DG15: 2.1 | DH15: 2.1 | DI15: 0.9 | DJ15: 2.1 | DK15: 2.1 | DL15: 2.1 | DM15: 2.1 | DN15: 2.1 | DO15: 1.5 | DP15: 2.1 | DQ15: 2.3 | DR15: 2.1 | DS15: 2.406 | DT15: 2.36 | DU15: 2.261 | DV15: 2.424 | DW15: 2.261 | DX15: 2.424
B16: 4000 | D16: 9.594976484 | E16: 23.45335359 | F16: 1.476662818 | G16: 0.02552754189 | H16: 1.26400006 | I16: 0.5629244447 | J16: 0.9010406733 | K16: 0.8407623768 | L16: 0.7804840803 | M16: 0.7187742591 | N16: 0.6570644379 | O16: 1.049210548 | P16: 0.9977104068 | Q16: 0.9462102652 | R16: 0.880705297 | S16: 1.212872386 | T16: 0.980301023 | U16: 1.433474422 | V16: 1.242422342 | W16: 1.094655991 | X16: 1.541306376 | Y16: 1.394963741 | Z16: 1.248621106 | AA16: 1.128498673 | AB16: 1.229005218 | AC16: 1.212365627 | AD16: 1.484567404 | AE16: 1.686567664 | AF16: 1.633823991 | AG16: 1.581080317 | AH16: 1.701498747 | AI16: 1.656312943 | AJ16: 1.792022228 | AK16: 1.777705908 | AL16: 2.921020865 | AM16: 2.35712719 | AN16: 1.793233514 | AO16: 1.827977896 | AP16: 1.862722278 | AQ16: 2.612009287 | AR16: 1.925233245 | AS16: 1.984516263 | AT16: 2.642963171 | AU16: 2.930969238 | AV16: 2.842497587 | AW16: 2.754025936 | AX16: 2.100766182 | AY16: 1.633823991 | AZ16: 0 | BA16: 54.66117719 | BB16: 6.786351047 | BC16: 7.598336043 | BD16: 12.9921239 | BE16: 3.071126327 | BF16: 1.468188625 | BG16: 5.84655056 | BH16: 0.8793861261 | BI16: 0 | BL16: 1.01216808 | BM16: 0.9047787189 | BN16: 0.8247950822 | BO16: 11.7266768 | BP16: 3.244062595 | BQ16: 2.786190949 | BR16: 2.817951108 | BS16: 0.6541712699 | BT16: 8.4 | BU16: 8.228910465 | BV16: 24.4 | BW16: 8.4 | BX16: 1.26 | BY16: 1.27 | BZ16: 0.5 | CA16: 0.4 | CB16: 6.1 | CC16: 0.77 | CD16: 0.84 | CE16: 0.54 | CF16: 1.1 | CG16: 0.8 | CH16: 0.329 | CI16: 0.243 | CJ16: 1.53 | CK16: 1.86 | CL16: 1.966666667 | CM16: 1.85 | CN16: 1.825 | CO16: 1.9 | CP16: 1.75 | CQ16: 2.133333333 | CR16: 2 | CS16: 1.666666667 | CT16: 0.849 | CU16: 0.828 | CV16: 0.7 | CW16: 1.1 | CX16: 0.7 | CY16: 1.1 | CZ16: 0.7 | DA16: 1.00575 | DB16: 1.044 | DC16: 1 | DD16: 2.817951108 | DE16: 2.817951108 | DF16: 1 | DG16: 1.3 | DH16: 1.3 | DI16: 0.6 | DJ16: 1.3 | DK16: 1.3 | DL16: 1.3 | DM16: 1.3 | DN16: 1.3 | DO16: 0.95 | DP16: 1.3 | DQ16: 1.4 | DR16: 1.3 | DS16: 1.231 | DT16: 1.605 | DU16: 1.171 | DV16: 1.654 | DW16: 1.171 | DX16: 1.654
B17: 6000 | D17: 3.787051863 | E17: 10.95636106 | F17: 0.1204546577 | G17: 0 | H17: 0.906000018 | I17: 0.2004301101 | J17: 0.5218656063 | K17: 0.4834066629 | L17: 0.4449477196 | M17: 0.3334434927 | N17: 0.2219392657 | O17: 0.6465371847 | P17: 0.6069741249 | Q17: 0.5674110651 | R17: 0.4796615839 | S17: 0.637697756 | T17: 0.590169787 | U17: 0.717633545 | V17: 0.703290343 | W17: 0.634261787 | X17: 0.7389811873 | Y17: 0.723418951 | Z17: 0.7078567147 | AA17: 0.6409820914 | AB17: 0.720949054 | AC17: 0.670356929 | AD17: 0.727329552 | AE17: 0.8489063382 | AF17: 0.7947702408 | AG17: 0.7406341434 | AH17: 0.857467353 | AI17: 0.789037406 | AJ17: 0.90817821 | AK17: 0.817915142 | AL17: 0.9769141078 | AM17: 0.9388464093 | AN17: 0.9007787108 | AO17: 0.8324519992 | AP17: 0.7641252875 | AQ17: 1.126970887 | AR17: 0.93592912 | AS17: 0.842952728 | AT17: 0.977248549 | AU17: 1.245025039 | AV17: 1.116568923 | AW17: 0.9881128073 | AX17: 0.8873206377 | AY17: 0.7947702408 | AZ17: 0 | BA17: 26.08567442 | BB17: 5.190405077 | BC17: 5.175918928 | BD17: 10.74315481 | BE17: 1.647539195 | BF17: 0.8547738578 | BG17: 6.691651661 | BH17: 1.019291481 | BI17: 0.2382520592 | BL17: 0.6153692901 | BM17: 0.5367952287 | BN17: 0.4152310044 | BO17: 5.478180532 | BP17: 2.71436139 | BQ17: 2.676831694 | BR17: 2.759465337 | BS17: 0.4767188683 | BT17: 3.5 | BU17: 0 | BV17: 11.3 | BW17: 3.5 | BX17: 1.45 | BY17: 1.46 | BZ17: 0.2 | CA17: 0.3 | CB17: 5.8 | CC17: 0.61 | CD17: 0.64 | CE17: 0.49 | CF17: 0.6 | CG17: 0.5 | CH17: 0.266 | CI17: 0.189 | CJ17: 0.9 | CK17: 1.08 | CL17: 1.266666667 | CM17: 1.1 | CN17: 1.125 | CO17: 1.4 | CP17: 1.05 | CQ17: 1.266666667 | CR17: 1.2 | CS17: 1.666666667 | CT17: 0.932 | CU17: 0.93 | CV17: 0.5 | CW17: 0.7 | CX17: 0.5 | CY17: 0.7 | CZ17: 0.5 | DA17: 0.64775 | DB17: 0.647 | DC17: 2 | DD17: 2.759465337 | DE17: 2.759465337 | DF17: 1 | DG17: 0.7 | DH17: 0.7 | DI17: 0.4 | DJ17: 0.7 | DK17: 0.7 | DL17: 0.7 | DM17: 0.7 | DN17: 0.7 | DO17: 0.55 | DP17: 0.7 | DQ17: 0.7 | DR17: 0.7 | DS17: 0.723 | DT17: 1.212 | DU17: 1.171 | DV17: 1.654 | DW17: 1.171 | DX17: 1.654
B18: 8000 | D18: 1.773264283 | E18: 5.878345791 | F18: 0 | G18: 0 | H18: 0.723999977 | I18: 0 | J18: 0.3638381064 | K18: 0.2997427583 | L18: 0.2356474102 | M18: 0.1040442958 | N18: -0.02755881846 | O18: 0.4512991607 | P18: 0.395452261 | Q18: 0.3396053612 | R18: 0.19826594 | S18: 0.449376315 | T18: 0.361762583 | U18: 0.484042525 | V18: 0.424967915 | W18: 0.282037467 | X18: 0.5105580688 | Y18: 0.4741999209 | Z18: 0.437841773 | AA18: 0.2858991027 | AB18: 0.323239505 | AC18: 0.286960572 | AD18: 0.279565811 | AE18: 0.4539536238 | AF18: 0.2678607106 | AG18: 0.08176779747 | AH18: 0.45357734 | AI18: 0.270895958 | AJ18: 0.317575157 | AK18: 0.266308218 | AL18: 0.5638132989 | AM18: 0.5042666793 | AN18: 0.4447200596 | AO18: 0.2468655854 | AP18: 0.04901111126 | AQ18: 0.525309861 | AR18: 0.428973526 | AS18: 0.236024141 | AT18: 0.415514648 | AU18: 0.5291775167 | AV18: 0.4694326818 | AW18: 0.4096878469 | AX18: 0.1841836572 | AY18: 0.2678607106 | AZ18: 0 | BA18: 14.34899103 | BB18: 2.97950523 | BC18: 4.055805584 | BD18: 9.527582644 | BE18: 2.165995674 | BF18: 0.3957384492 | BG18: 2.430031694 | BH18: 1.115444997 | BI18: 0.3568280714 | BL18: 0.4294338971 | BM18: 0.3136158735 | BN18: 0.1418097503 | BO18: 2.939172896 | BT18: 0 | BU18: 0 | BV18: 7.5 | BW18: 0 | BX18: 1.55 | BY18: 1.57 | BZ18: 0.4 | CA18: 0.5 | CB18: 0 | CC18: 0.57 | CD18: 0.6 | CE18: 0.46 | CF18: 0.5 | CG18: 0.4 | CH18: 0.283 | CI18: 0.2 | CJ18: 0.94 | CK18: 0.98 | CL18: 1.1 | CM18: 1 | CN18: 0.975 | CO18: 1.65 | CP18: 1 | CQ18: 1.266666667 | CR18: 1.1 | CS18: 1.666666667 | CT18: 0.958 | CU18: 0.96 | CV18: 0.5 | CW18: 0.6 | CX18: 0.5 | CY18: 0.6 | CZ18: 0.5 | DA18: 0.5955 | DB18: 0.582 | DC18: 1 | DD18: 0 | DE18: 0 | DF18: 1 | DG18: 0.6 | DH18: 0.6 | DI18: 0.4 | DJ18: 0.6 | DK18: 0.6 | DL18: 0.6 | DM18: 0.6 | DN18: 0.6 | DO18: 0.5 | DP18: 0.6 | DQ18: 0.5 | DR18: 0.6 | DS18: 0.506 | DT18: 0.593 | DU18: 1.171 | DV18: 1.654 | DW18: 1.171 | DX18: 1.654
B19: 10000 | D19: 0.8118185781 | E19: 3.581760533 | F19: 0 | G19: 0 | H19: 0.606999993 | I19: 0 | J19: 0.2452139109 | K19: 0.1676171422 | L19: 0.09002037346 | M19: 0 | N19: -0.09002037346 | O19: 0.3031416237 | P19: 0.2438079566 | Q19: 0.1844742894 | R19: 0.02323717996 | S19: 0.317109436 | T19: 0.187669337 | U19: 0.334583074 | V19: 0.218391567 | W19: 0.037045315 | X19: 0.3617608994 | Y19: 0.2908643484 | Z19: 0.2199677974 | AA19: 0.0332817696 | AB19: 0.063352309 | AC19: 0.026313011 | AE19: 0.1321249604 | AF19: 0 | AG19: -0.1321249604 | AH19: 0.136645481 | AL19: 0.3104368895 | AM19: 0.2030566037 | AN19: 0.09567631781 | AO19: 0 | AP19: -0.09567631781 | AQ19: 0.240860999 | AR19: 0.044387124 | AU19: 0.2314766049 | AV19: 0.1157383025 | AW19: 0 | AX19: 0 | AY19: 0 | AZ19: 0 | BA19: 8.175063582 | BB19: 1.788504421 | BC19: 4.686859033 | BD19: 5.908341704 | BE19: 3.343200151 | BF19: 0.6068706973 | BG19: 2.674315374 | BH19: 1.179650705 | BI19: 0.3857691159 | BL19: 0.2886596955 | BM19: 0.1608608104 | BN19: -0.005077208392 | BO19: 1.790880267 | BT19: 0 | BU19: 0 | BV19: 5.4 | BW19: 0 | BX19: 1.63 | BY19: 1.67 | BZ19: 0.3 | CA19: 0.5 | CB19: 0 | CC19: 0.54 | CD19: 0.57 | CE19: 0.44 | CF19: 0.4 | CG19: 0.3 | CH19: 0.333 | CI19: 0.219 | CJ19: 0.97 | CK19: 1 | CL19: 1.066666667 | CM19: 1 | CN19: 0.95 | CO19: 1.65 | CP19: 1.05 | CQ19: 1.366666667 | CR19: 1.2 | CS19: 1.666666667 | CT19: 0.982 | CU19: 0.988 | CV19: 0.4 | CW19: 0.6 | CX19: 0.4 | CY19: 0.6 | CZ19: 0.4 | DA19: 0.57125 | DB19: 0.561 | DC19: 1 | DD19: 0 | DE19: 0 | DF19: 1 | DG19: 0.5 | DH19: 0.5 | DI19: 0.35 | DJ19: 0.5 | DK19: 0.5 | DL19: 0.5 | DM19: 0.5 | DN19: 0.5 | DO19: 0.425 | DP19: 0.5 | DQ19: 0.4 | DR19: 0.5 | DS19: 0.401 | DT19: 0.621 | DU19: 1.171 | DV19: 1.654 | DW19: 1.171 | DX19: 1.654
A21: Wheelset 2 | B21: 200 | D21: 293.6773385 | E21: 208.5765548 | F21: 259.4198364 | G21: 208.8041755 | H21: 286.199005 | I21: 0 | J21: 0 | K21: 0 | L21: 0 | M21: 0 | N21: 0 | O21: 0 | P21: 0 | Q21: 0 | R21: 0 | X21: 0 | Y21: 0 | Z21: 0 | AA21: 0 | AE21: 0 | AF21: 0 | AG21: 0 | AL21: 0 | AM21: 0 | AN21: 0 | AO21: 0 | AP21: 0 | AU21: 0 | AV21: 0 | AW21: 0 | AX21: 0 | AY21: 0 | AZ21: 560.6071376 | BA21: 303.2096547 | BB21: 40.40695932 | BC21: 5.244814964 | BD21: 152.8098467 | BE21: 69.90579207 | BF21: 65.70731849 | BG21: 157.5091129 | BH21: 84.48139184 | BI21: 278.6641929 | BL21: =J21+(O21-J21)*0.75 -> 0 | BM21: =L21+(Q21-L21)*0.75 -> 0 | BN21: =N21+(R21-N21)*0.75 -> 0 | BO21: =E21/2 -> 104.2882774 | BU21: 123.0417324 | BV21: 110.5 | BW21: 195 | BX21: 0 | BY21: 0 | BZ21: 53.7 | CA21: 43.4 | CB21: 0 | CC21: 0 | CD21: 0 | CE21: 0 | CF21: 18.6 | CG21: 15.2 | CH21: 79.08 | CI21: 64.248 | CJ21: 107.56 | CK21: 96.98 | CL21: 112.6666667 | CM21: 106.6 | CN21: 108.65 | CO21: 119.6 | CP21: 109.6 | CQ21: 127.5666667 | CR21: 121.9 | CS21: 35 | CT21: 153.019 | CU21: 140.557 | CV21: 0 | CW21: 0 | CX21: 0 | CY21: 0 | CZ21: 0 | DA21: 0 | DB21: 0 | DC21: 54 | DD21: 0 | DE21: 0 | DF21: 60.5 | DG21: 33.1 | DH21: 33.1 | DI21: 23.15 | DJ21: 33.2 | DK21: 33.1 | DL21: 33.1 | DM21: 33.1 | DN21: 33.2 | DO21: 28.175 | DP21: 33.2 | DQ21: 35.7 | DR21: 33.5 | DS21: 34.334 | DT21: 35.352 | DU21: 34.199 | DV21: 36.964 | DW21: 34.199 | DX21: 36.964
B22: 400 | D22: 52.10344955 | E22: 159.0552517 | F22: 119.2344502 | G22: 23.01718925 | H22: 44.4199982 | I22: 0 | J22: 0 | K22: 0 | L22: 0 | M22: 0 | N22: 0 | O22: 0 | P22: 0 | Q22: 0 | R22: 0 | X22: 0 | Y22: 0 | Z22: 0 | AA22: 0 | AE22: 0 | AF22: 0 | AG22: 0 | AL22: 0 | AM22: 0 | AN22: 0 | AO22: 0 | AP22: 0 | AU22: 0 | AV22: 0 | AW22: 0 | AX22: 0 | AY22: 0 | AZ22: 291.3218858 | BA22: 74.49436225 | BB22: 9.464297403 | BC22: 1.564797789 | BD22: 7.750387471 | BE22: 6.525535139 | BF22: 6.795371901 | BG22: 7.904525929 | BH22: 21.19679739 | BI22: 60.05615316 | BL22: =J22+(O22-J22)*0.75 -> 0 | BM22: =L22+(Q22-L22)*0.75 -> 0 | BN22: =N22+(R22-N22)*0.75 -> 0 | BO22: =E22/2 -> 79.52762586 | BP22: 4.167543428 | BQ22: 4.114910304 | BR22: 4.382818834 | BS22: 3.57175409 | BT22: 24 | BU22: 22.49341562 | BV22: 105.2 | BW22: 24 | BX22: 7.53 | BY22: 7.77 | BZ22: 0.9 | CA22: 1.1 | CB22: 10.4 | CC22: 2.21 | CD22: 2.32 | CE22: 1.79 | CF22: 6.1 | CG22: 4.7 | CH22: 0.377 | CI22: 0.139 | CJ22: 3.13 | CK22: 3.76 | CL22: 3.633333333 | CM22: 3.35 | CN22: 3.325 | CO22: 3.8 | CP22: 3.55 | CQ22: 4.5 | CR22: 4.4 | CS22: 6.333333333 | CT22: 60.073 | CU22: 53.524 | CV22: 2.1 | CW22: 2.8 | CX22: 2.2 | CY22: 3 | CZ22: 2.2 | DA22: 2.60625 | DB22: 2.84 | DC22: 5.5 | DD22: 4.382818834 | DE22: 4.382818834 | DF22: 5 | DG22: 7.5 | DH22: 7.5 | DI22: 5.25 | DJ22: 7.2 | DK22: 7.5 | DL22: 7.5 | DM22: 7.5 | DN22: 7.2 | DO22: 6.225 | DP22: 7.2 | DQ22: 6.5 | DR22: 7.1 | DS22: 3.203 | DT22: 0.247 | DU22: 4.295 | DV22: 0.268 | DW22: 4.295 | DX22: 0.268
B23: 600 | D23: 1.342514932 | E23: 67.30276788 | F23: 35.93952225 | G23: 5.053131421 | H23: 19.3379993 | I23: 0.332919538 | J23: 0.6075022221 | K23: 0.7853735089 | L23: 0.9632447958 | M23: 0.9852131605 | N23: 1.007181525 | O23: 0.3463386297 | P23: 0.4251347184 | Q23: 0.5039308071 | R23: 0.5936681032 | S23: 0.301711708 | T23: 0.425402969 | U23: 0.198999569 | V23: 0.235951647 | W23: 0.229468599 | X23: 0.1922773421 | Y23: 0.2087121904 | Z23: 0.2251470387 | AA23: 0.2145151943 | AB23: 0.127623782 | AC23: 0.187537476 | AD23: 0.115676329 | AE23: 0.1033691168 | AF23: 0.08136726171 | AG23: 0.05936540663 | AH23: 0.101579495 | AL23: 0.1913761646 | AM23: 0.09568808228 | AN23: 0 | AO23: 0 | AP23: 0 | AU23: 0 | AV23: 0 | AW23: 0 | AX23: 0 | AY23: 0.08136726171 | AZ23: 153.4505171 | BA23: 0.5899892853 | BB23: 1.815823895 | BC23: 0.5719591221 | BD23: 0 | BE23: 0.2028827304 | BF23: 0.7010621673 | BG23: 0.4156047279 | BH23: 0.8300364811 | BI23: 1.852009847 | BL23: 0.4116295278 | BM23: 0.6187593043 | BN23: 0.6970464587 | BO23: 33.65138394 | BP23: 1.350684277 | BQ23: 1.310360877 | BR23: 1.543195729 | BS23: 1.443815135 | BT23: 4.2 | BU23: 0.2367104595 | BV23: 78.5 | BW23: 4.2 | BX23: 0.25 | BY23: 0.17 | BZ23: 4.8 | CA23: 5.6 | CB23: 10 | CC23: 0.88 | CD23: 0.92 | CE23: 0.73 | CF23: 6.4 | CG23: 4.2 | CH23: 3.278 | CI23: 3.951 | CJ23: 2.37 | CK23: 2.34 | CL23: 2.566666667 | CM23: 2.85 | CN23: 2.95 | CO23: 2.75 | CP23: 3.35 | CQ23: 3.733333333 | CR23: 3.6 | CS23: 11 | CT23: 53.205 | CU23: 47.529 | CV23: 0.9 | CW23: 1.3 | CX23: 0.9 | CY23: 1.2 | CZ23: 0.9 | DA23: 1.14725 | DB23: 1.147 | DC23: 3 | DD23: 1.543195729 | DE23: 1.543195729 | DF23: 6 | DG23: 5.6 | DH23: 5.6 | DI23: 1.95 | DJ23: 5.05 | DK23: 5.6 | DL23: 5.6 | DM23: 5.6 | DN23: 5.05 | DO23: 3.5 | DP23: 5.05 | DQ23: 3.7 | DR23: 4.8 | DS23: 1.402 | DT23: 2.762 | DU23: 1.836 | DV23: 2.227 | DW23: 1.836 | DX23: 2.227
B24: 800 | D24: 0 | E24: 43.53662372 | F24: 23.21687165 | G24: 2.956513492 | H24: 10.9569998 | I24: 0.05938158929 | J24: 3.340358257 | K24: 2.869411707 | L24: 2.398465157 | M24: 1.508122325 | N24: 0.6177794933 | O24: 7.952363014 | P24: 5.507231712 | Q24: 3.06210041 | R24: 2.154585361 | S24: 5.811151028 | T24: 5.327810764 | U24: 6.276947021 | V24: 5.903386593 | W24: 4.993183613 | X24: 6.448720455 | Y24: 6.209169865 | Z24: 5.969619274 | AA24: 5.07758522 | AB24: 3.90120101 | AC24: 5.230335712 | AD24: 5.726419926 | AE24: 6.765647888 | AF24: 6.116184235 | AG24: 5.466720581 | AH24: 6.798669338 | AI24: 6.160710812 | AJ24: 4.899567127 | AK24: 6.342995167 | AL24: 7.311237335 | AM24: 7.143648148 | AN24: 6.97605896 | AO24: 6.402602673 | AP24: 5.829146385 | AQ24: 7.195495605 | AR24: 7.005456924 | AS24: 6.447751522 | AT24: 7.0088377 | AU24: 7.458065987 | AV24: 7.236306667 | AW24: 7.014547348 | AX24: 6.402704239 | AY24: 6.116184235 | AZ24: 159.4963602 | BA24: 1.155236669 | BB24: 0 | BC24: 0.00525280252 | BD24: 0 | BE24: 1.55614336 | BF24: 1.222663761 | BG24: 0 | BH24: 0.9841967222 | BI24: 0.6409055031 | BL24: 6.799361825 | BM24: 2.896191597 | BN24: 1.770383894 | BO24: 21.76831186 | BP24: 1.829335002 | BQ24: 1.659728594 | BR24: 1.709264851 | BS24: 0.8692326361 | BT24: 0.5 | BU24: 1.946647133 | BV24: 78.8 | BW24: 0.5 | BX24: 0.36 | BY24: 0.43 | BZ24: 3.2 | CA24: 4.2 | CB24: 9.1 | CC24: 0.65 | CD24: 0.76 | CE24: 0.34 | CF24: 4.9 | CG24: 2.5 | CH24: 3.232 | CI24: 3.396 | CJ24: 3.18 | CK24: 3.74 | CL24: 3.333333333 | CM24: 3.35 | CN24: 3.575 | CO24: 3.65 | CP24: 4.75 | CQ24: 5.8 | CR24: 5.8 | CS24: 5 | CT24: 28.818 | CU24: 24.871 | CV24: 0.9 | CW24: 1.4 | CX24: 0.9 | CY24: 1.2 | CZ24: 0.9 | DA24: 1.3125 | DB24: 1.138 | DC24: 0.7 | DD24: 1.709264851 | DE24: 1.709264851 | DF24: 4.5 | DG24: 3.9 | DH24: 3.9 | DI24: 1.1 | DJ24: 3.75 | DK24: 3.9 | DL24: 3.9 | DM24: 3.9 | DN24: 3.75 | DO24: 2.425 | DP24: 3.75 | DQ24: 2.7 | DR24: 3.7 | DS24: 1.089 | DT24: 1.544 | DU24: 1.33 | DV24: 1.223 | DW24: 1.33 | DX24: 1.223
B25: 1000 | D25: 5.113233282 | E25: 10.11734607 | F25: 5.133518092 | G25: 2.055846065 | H25: 7.10300016 | I25: 0.5874889493 | J25: 3.188830912 | K25: 2.087386847 | L25: 0.985942781 | M25: 0.4918542504 | N25: -0.002234280109 | O25: 7.775299311 | P25: 5.228255749 | Q25: 2.681212187 | R25: 1.187407494 | S25: 5.988950253 | T25: 2.972265005 | U25: 6.6868577 | V25: 5.720170498 | W25: 4.509825706 | X25: 7.030203819 | Y25: 6.433523178 | Z25: 5.836842537 | AA25: 4.626091957 | AB25: 2.098150492 | AC25: 4.834730625 | AD25: 5.523055077 | AE25: 7.343353271 | AF25: 6.093379498 | AG25: 4.843405724 | AH25: 7.410919189 | AI25: 6.157662868 | AJ25: 4.891841412 | AK25: 6.420853138 | AL25: 8.049937248 | AM25: 7.893493176 | AN25: 7.737049103 | AO25: 6.505092621 | AP25: 5.273136139 | AQ25: 8.155785561 | AR25: 7.906763554 | AS25: 6.764172554 | AT25: 8.045311928 | AU25: 8.506008148 | AV25: 8.342176437 | AW25: 8.178344727 | AX25: 7.173573017 | AY25: 6.093379498 | AZ25: 138.4428001 | BA25: 6.024727851 | BB25: 0 | BC25: 0.001359262428 | BD25: 1.952101403 | BE25: 3.282102168 | BF25: 2.188159406 | BG25: 1.259465302 | BH25: 1.057240329 | BI25: 0.2998307535 | BL25: 6.628682211 | BM25: 2.257394835 | BN25: 0.8899970502 | BO25: 5.058673035 | BP25: 2.071905702 | BQ25: 1.716564786 | BR25: 1.743360431 | BS25: 0.6044582615 | BT25: 1.2 | BU25: 3.563485082 | BV25: 81.4 | BW25: 1.2 | BX25: 0.22 | BY25: 0.21 | BZ25: 1.9 | CA25: 2.9 | CB25: 8 | CC25: 0.43 | CD25: 0.5 | CE25: 0.22 | CF25: 3.8 | CG25: 2.2 | CH25: 1.229 | CI25: 1.949 | CJ25: 1.96 | CK25: 2.82 | CL25: 2.2 | CM25: 2.1 | CN25: 2.175 | CO25: 2.4 | CP25: 3.1 | CQ25: 4.1 | CR25: 4.1 | CS25: 5 | CT25: 15.164 | CU25: 13.914 | CV25: 0.5 | CW25: 1 | CX25: 0.6 | CY25: 0.8 | CZ25: 0.6 | DA25: 0.888 | DB25: 0.81 | DC25: 0.8 | DD25: 1.743360431 | DE25: 1.743360431 | DF25: 3 | DG25: 3.1 | DH25: 3.1 | DI25: 1.15 | DJ25: 2.85 | DK25: 3.1 | DL25: 3.1 | DM25: 3.1 | DN25: 2.85 | DO25: 2 | DP25: 2.85 | DQ25: 2.2 | DR25: 2.7 | DS25: 0.884 | DT25: 0.471 | DU25: 1.076 | DV25: 0.346 | DW25: 1.076 | DX25: 0.346
B26: 1200 | D26: 8.389402452 | E26: 2.583624264 | F26: 1.488309163 | G26: 1.530641896 | H26: 4.98500013 | I26: 0.6715510488 | J26: 1.308466733 | K26: 1.132551432 | L26: 0.9566361308 | M26: 0.7432634234 | N26: 0.5298907161 | O26: 2.235198259 | P26: 1.785046101 | Q26: 1.334893942 | R26: 0.9921478033 | S26: 2.834333181 | T26: 1.451184273 | U26: 4.541827679 | V26: 2.594231367 | W26: 1.572204113 | X26: 4.700581551 | Y26: 3.764817715 | Z26: 2.829053879 | AA26: 1.638111115 | AB26: 1.492012143 | AC26: 1.848218918 | AD26: 3.223327875 | AE26: 5.465975285 | AF26: 4.177953243 | AG26: 2.889931202 | AH26: 5.570590973 | AI26: 4.282008648 | AJ26: 3.527131319 | AK26: 4.725570679 | AL26: 7.140168667 | AM26: 6.637138367 | AN26: 6.134108067 | AO26: 4.89054203 | AP26: 3.646975994 | AQ26: 7.297230721 | AR26: 6.549332619 | AS26: 5.408252716 | AT26: 6.885378361 | AU26: 7.883545876 | AV26: 7.530567646 | AW26: 7.177589417 | AX26: 6.295646667 | AY26: 4.177953243 | AZ26: 107.5039212 | BA26: 17.18358649 | BB26: 0 | BC26: 0.4195119223 | BD26: 4.487897181 | BE26: 2.162247491 | BF26: 1.764780772 | BG26: 3.062230313 | BH26: 1.015934773 | BI26: 0.664012307 | BL26: 2.003515378 | BM26: 1.240329489 | BN26: 0.8765835315 | BO26: 1.291812132 | BP26: 2.124955097 | BQ26: 1.813242436 | BR26: 1.870511852 | BS26: 1.242556981 | BT26: 2.5 | BU26: 4.213550578 | BV26: 65.3 | BW26: 2.5 | BX26: 0.26 | BY26: 0.17 | BZ26: 1.4 | CA26: 2.4 | CB26: 7.3 | CC26: 0.28 | CD26: 0.33 | CE26: 0.16 | CF26: 3.1 | CG26: 1.8 | CH26: 0.711 | CI26: 0.69 | CJ26: 1.76 | CK26: 2.2 | CL26: 1.9 | CM26: 1.75 | CN26: 1.9 | CO26: 2.1 | CP26: 2.25 | CQ26: 2.7 | CR26: 2.6 | CS26: 5 | CT26: 10.607 | CU26: 9.769 | CV26: 0.4 | CW26: 0.6 | CX26: 0.4 | CY26: 0.5 | CZ26: 0.4 | DA26: 0.5815 | DB26: 0.497 | DC26: 3 | DD26: 1.870511852 | DE26: 1.870511852 | DF26: 3 | DG26: 2.8 | DH26: 2.8 | DI26: 0.85 | DJ26: 2.65 | DK26: 2.8 | DL26: 2.8 | DM26: 2.8 | DN26: 2.65 | DO26: 1.75 | DP26: 2.65 | DQ26: 2 | DR26: 2.6 | DS26: 0.794 | DT26: 0.512 | DU26: 0.935 | DV26: 0.448 | DW26: 0.935 | DX26: 0.448
B27: 1400 | D27: 6.245737985 | E27: 0.05873293741 | F27: 0.5551510312 | G27: 1.433396611 | H27: 3.64899993 | I27: 0.8348895311 | J27: 1.475734949 | K27: 1.254511595 | L27: 1.03328824 | M27: 0.9284763336 | N27: 0.8236644268 | O27: 1.718057752 | P27: 1.577260017 | Q27: 1.436462283 | R27: 0.9937109947 | S27: 1.618606806 | T27: 1.511347771 | U27: 2.538810015 | V27: 1.831216216 | W27: 1.590250254 | X27: 2.454870462 | Y27: 2.158076286 | Z27: 1.86128211 | AA27: 1.648643017 | AB27: 1.256435633 | AC27: 1.758245468 | AD27: 2.112251282 | AE27: 3.25519681 | AF27: 2.535023212 | AG27: 1.814849615 | AH27: 3.328755856 | AI27: 2.613536835 | AJ27: 2.451546431 | AK27: 2.941455126 | AL27: 4.455670834 | AM27: 4.091612339 | AN27: 3.727553844 | AO27: 3.048046827 | AP27: 2.36853981 | AQ27: 4.713545322 | AR27: 4.020554543 | AS27: 3.377227068 | AT27: 4.3290658 | AU27: 5.154844284 | AV27: 4.888813019 | AW27: 4.622781754 | AX27: 4.06901598 | AY27: 2.535023212 | AZ27: 64.66771047 | BA27: 20.81266572 | BB27: 0.3256151901 | BC27: 0.869285505 | BD27: 6.831751658 | BE27: 2.264245958 | BF27: 1.251727299 | BG27: 4.876205273 | BH27: 0.9970372868 | BI27: 0.6617833725 | BL27: 1.657477051 | BM27: 1.335668772 | BN27: 0.9511993527 | BO27: 0.02936646871 | BP27: 2.18191757 | BQ27: 1.87070782 | BR27: 1.875791507 | BS27: 1.422295391 | BT27: 2.7 | BU27: 4.762559394 | BV27: 49 | BW27: 2.7 | BX27: 0.31 | BY27: 0.22 | BZ27: 2.1 | CA27: 1.5 | CB27: 6.8 | CC27: 0.29 | CD27: 0.33 | CE27: 0.19 | CF27: 2.4 | CG27: 1.4 | CH27: 0.541 | CI27: 0.379 | CJ27: 1.43 | CK27: 1.86 | CL27: 1.533333333 | CM27: 1.45 | CN27: 1.575 | CO27: 1.7 | CP27: 2.1 | CQ27: 2.533333333 | CR27: 2.5 | CS27: 5 | CT27: 7.936 | CU27: 7.276 | CV27: 0.4 | CW27: 0.6 | CX27: 0.4 | CY27: 0.5 | CZ27: 0.4 | DA27: 0.525 | DB27: 0.457 | DC27: 3 | DD27: 1.875791507 | DE27: 1.875791507 | DF27: 3 | DG27: 2.1 | DH27: 2.1 | DI27: 0.6 | DJ27: 2.1 | DK27: 2.1 | DL27: 2.1 | DM27: 2.1 | DN27: 2.1 | DO27: 1.35 | DP27: 2.1 | DQ27: 2 | DR27: 2.1 | DS27: 0.836 | DT27: 0.579 | DU27: 0.963 | DV27: 0.505 | DW27: 0.963 | DX27: 0.505
B28: 1800 | D28: 10.35524626 | E28: 4.391136458 | F28: 0.9242027421 | G28: 0.9071095972 | H28: 1.76999998 | I28: 1.135512948 | J28: 1.544635892 | K28: 1.401239872 | L28: 1.257843852 | M28: 1.387716413 | N28: 1.517588973 | O28: 2.035928488 | P28: 1.805024862 | Q28: 1.574121237 | R28: 1.499691606 | S28: 1.858246446 | T28: 1.647918105 | U28: 2.022161961 | V28: 1.991808534 | W28: 1.643203974 | X28: 2.087271214 | Y28: 2.053289413 | Z28: 2.019307613 | AA28: 1.652237415 | AB28: 1.582284093 | AC28: 1.721069217 | AD28: 2.122017384 | AE28: 2.417505264 | AF28: 2.346487522 | AG28: 2.27546978 | AH28: 2.437362432 | AI28: 2.370738029 | AJ28: 2.110386848 | AK28: 2.4723773 | AL28: 2.380723238 | AM28: 2.465974331 | AN28: 2.551225424 | AO28: 2.505918503 | AP28: 2.460611582 | AQ28: 2.350432873 | AR28: 2.629369497 | AS28: 2.611190319 | AT28: 2.676529646 | AU28: 2.45021987 | AV28: 2.584717989 | AW28: 2.719216108 | AX28: 2.813480616 | AY28: 2.346487522 | AZ28: 36.88801774 | BA28: 21.05557818 | BB28: 0.3690208926 | BC28: 1.758753577 | BD28: 6.383516637 | BE28: 0.5351782017 | BF28: 1.157158751 | BG28: 1.862383212 | BH28: 1.103080448 | BI28: 0.8958614221 | BL28: 1.913105339 | BM28: 1.495051891 | BN28: 1.504165947 | BO28: 2.195568229 | BP28: 2.17458929 | BQ28: 1.924697453 | BR28: 1.977964181 | BS28: 1.906180338 | BT28: 2.4 | BU28: 6.382535007 | BV28: 31.2 | BW28: 2.4 | BX28: 0.59 | BY28: 0.56 | BZ28: 1.6 | CA28: 1.6 | CB28: 6.4 | CC28: 0.56 | CD28: 0.64 | CE28: 0.33 | CF28: 1.4 | CG28: 0.8 | CH28: 0.484 | CI28: 0.445 | CJ28: 1.39 | CK28: 1.7 | CL28: 1.466666667 | CM28: 1.4 | CN28: 1.5 | CO28: 1.6 | CP28: 1.95 | CQ28: 2.366666667 | CR28: 2.3 | CS28: 3 | CT28: 4.86 | CU28: 4.358 | CV28: 0.5 | CW28: 0.7 | CX28: 0.5 | CY28: 0.6 | CZ28: 0.5 | DA28: 0.6215 | DB28: 0.573 | DC28: 3.5 | DD28: 1.977964181 | DE28: 1.977964181 | DF28: 3.5 | DG28: 1.2 | DH28: 1.2 | DI28: 0.45 | DJ28: 1.2 | DK28: 1.2 | DL28: 1.2 | DM28: 1.2 | DN28: 1.2 | DO28: 0.825 | DP28: 1.2 | DQ28: 1.1 | DR28: 1.2 | DS28: 1.079 | DT28: 0.873 | DU28: 1.101 | DV28: 0.724 | DW28: 1.101 | DX28: 0.724
B29: 2200 | D29: 11.77152094 | E29: 1.718928597 | F29: 0.1577051609 | G29: 0.8566604967 | H29: 1.273 | I29: 0.6657354236 | J29: 1.523782849 | K29: 1.546911478 | L29: 1.570040107 | M29: 0.812451601 | N29: 0.05486309528 | O29: 2.029663324 | P29: 1.916204214 | Q29: 1.802745104 | R29: 1.900666595 | S29: 2.082381725 | T29: 1.852508187 | U29: 2.182128668 | V29: 2.150815725 | W29: 2.145614386 | X29: 2.324132681 | Y29: 2.261769772 | Z29: 2.199406862 | AA29: 2.173025608 | AB29: 2.145487785 | AC29: 2.223748207 | AD29: 2.402902603 | AE29: 2.517368555 | AF29: 2.572559595 | AG29: 2.627750635 | AH29: 2.528790712 | AI29: 2.590965033 | AJ29: 2.463201284 | AK29: 2.645444632 | AL29: 2.474408865 | AM29: 2.533268452 | AN29: 2.592128038 | AO29: 2.645112991 | AP29: 2.698097944 | AQ29: 2.461606264 | AR29: 2.641346931 | AS29: 2.690817595 | AT29: 2.680599689 | AU29: 2.577309608 | AV29: 2.64691329 | AW29: 2.716516972 | AX29: 2.786161661 | AY29: 2.572559595 | AZ29: 26.56904335 | BA29: 21.93031926 | BB29: 0.8140145528 | BC29: 2.097920246 | BD29: 4.314625394 | BE29: 0.5843873767 | BF29: 0.6274268773 | BG29: 3.63991446 | BH29: 1.012353814 | BI29: 0.8117608178 | BL29: 1.903193206 | BM29: 1.744568855 | BN29: 1.43921572 | BO29: 0.8594642984 | BP29: 2.160033988 | BQ29: 1.935552804 | BR29: 2.060366879 | BS29: 1.058167978 | BT29: 1.5 | BU29: 9.325697474 | BV29: 20.3 | BW29: 1.5 | BX29: 0.93 | BY29: 0.91 | BZ29: 1.3 | CA29: 0.8 | CB29: 6.2 | CC29: 0.46 | CD29: 0.52 | CE29: 0.26 | CF29: 0.9 | CG29: 0.8 | CH29: 0.463 | CI29: 0.375 | CJ29: 1.48 | CK29: 1.7 | CL29: 1.633333333 | CM29: 1.55 | CN29: 1.625 | CO29: 1.75 | CP29: 2 | CQ29: 2.4 | CR29: 2.4 | CS29: 2 | CT29: 2.441 | CU29: 2.162 | CV29: 0.2 | CW29: 0.6 | CX29: 0.2 | CY29: 0.3 | CZ29: 0.2 | DA29: 0.43275 | DB29: 0.294 | DC29: 2 | DD29: 2.060366879 | DE29: 2.060366879 | DF29: 2 | DG29: 0.8 | DH29: 0.8 | DI29: 0.6 | DJ29: 0.8 | DK29: 0.8 | DL29: 0.8 | DM29: 0.8 | DN29: 0.8 | DO29: 0.7 | DP29: 0.8 | DQ29: 0.7 | DR29: 0.8 | DS29: 0.587 | DT29: 1.099 | DU29: 0.614 | DV29: 0.931 | DW29: 0.614 | DX29: 0.931
B30: 2600 | D30: 12.42265966 | E30: 1.590237601 | F30: 0.1348405448 | G30: 0.8047635814 | H30: 0.925999999 | I30: 0.2008445859 | J30: 0.5206152201 | K30: 0.64557302 | L30: 0.7705308199 | M30: 0.8796731234 | N30: 0.9888154268 | O30: 0.860706985 | P30: 0.7984551191 | Q30: 0.7362032533 | R30: 0.9887038469 | S30: 2.242940664 | T30: 0.727769434 | U30: 2.353134394 | V30: 2.374683857 | W30: 0.935652375 | X30: 2.488812923 | Y30: 2.448970795 | Z30: 2.409128666 | AA30: 0.9295055866 | AB30: 1.137846708 | AC30: 1.029553652 | AD30: 2.769287825 | AE30: 2.693223238 | AF30: 2.969115019 | AG30: 3.2450068 | AH30: 2.699929953 | AI30: 2.991766691 | AJ30: 2.96202302 | AK30: 3.087336779 | AL30: 2.55657196 | AM30: 2.647411823 | AN30: 2.738251686 | AO30: 3.118587732 | AP30: 3.498923779 | AQ30: 2.537461996 | AR30: 2.768388271 | AS30: 3.206843376 | AT30: 2.793712616 | AU30: 2.614600897 | AV30: 2.715800762 | AW30: 2.817000628 | AX30: 3.235939741 | AY30: 2.969115019 | AZ30: 17.20429831 | BA30: 23.47771548 | BB30: 1.001568567 | BC30: 2.538022276 | BD30: 1.793912874 | BE30: 0.2064971691 | BF30: 0.6425987582 | BG30: 2.983484068 | BH30: 0.8641979788 | BI30: 5.886542919 | BL30: 0.7756840438 | BM30: 0.7447851449 | BN30: 0.9887317419 | BO30: 0.7951188003 | BP30: 2.086459196 | BQ30: 1.967833605 | BR30: 2.044442272 | BS30: 1.14762931 | BT30: 1.1 | BU30: 9.440561979 | BV30: 14.4 | BW30: 1.1 | BX30: 1.02 | BY30: 0.99 | BZ30: 0.6 | CA30: 0.5 | CB30: 6.1 | CC30: 0.34 | CD30: 0.35 | CE30: 0.28 | CF30: 1 | CG30: 0.7 | CH30: 0.479 | CI30: 0.389 | CJ30: 0.35 | CK30: 0.82 | CL30: 0.6333333333 | CM30: 0.5 | CN30: 0.5 | CO30: 0.5 | CP30: 0.9 | CQ30: 1.133333333 | CR30: 1.2 | CS30: 2.333333 | CT30: 1.627 | CU30: 1.393 | CV30: 0.2 | CW30: 0.3 | CX30: 0.2 | CY30: 0.4 | CZ30: 0.2 | DA30: 0.2895 | DB30: 0.36 | DC30: 2 | DD30: 2.044442272 | DE30: 2.044442272 | DF30: 2 | DG30: 1.1 | DH30: 1.1 | DI30: 0.5 | DJ30: 1 | DK30: 1.1 | DL30: 1.1 | DM30: 1.1 | DN30: 1 | DO30: 0.75 | DP30: 1 | DQ30: 1 | DR30: 1 | DS30: 0.427 | DT30: 0.473 | DU30: 0.429 | DV30: 0.37 | DW30: 0.429 | DX30: 0.37
B31: 3000 | D31: 9.516227798 | E31: 1.565250244 | F31: 0.1034540883 | G31: 0.7298548558 | H31: 0.70599997 | I31: 0.2061659694 | J31: 0.7753992677 | K31: 0.7776602507 | L31: 0.7799212337 | M31: 0.2888096273 | N31: -0.2023019791 | O31: 0.6552826762 | P31: 0.7866915464 | Q31: 0.9181004167 | R31: 1.013272405 | S31: 0.803655684 | T31: 0.913882971 | U31: 0.89487803 | V31: 0.892199576 | W31: 1.155287981 | X31: 0.8642481565 | Y31: 0.8764551878 | Z31: 0.888662219 | AA31: 1.153459311 | AB31: 1.283982992 | AC31: 1.148860097 | AD31: 1.120376348 | AE31: 1.127073765 | AF31: 1.087288857 | AG31: 1.047503948 | AH31: 1.177724481 | AI31: 1.083000422 | AJ31: 1.29434216 | AK31: 1.06929028 | AL31: 2.49015975 | AM31: 1.991046786 | AN31: 1.491933823 | AO31: 1.078908443 | AP31: 0.6658830643 | AQ31: 2.061884165 | AR31: 1.949029803 | AS31: 1.200058222 | AT31: 2.017011404 | AU31: 2.136648655 | AV31: 2.110738039 | AW31: 2.084827423 | AX31: 1.597833514 | AY31: 1.087288857 | AZ31: 11.5209745 | BA31: 24.61697325 | BB31: 1.259965755 | BC31: 2.128261282 | BD31: 2.945140474 | BE31: 0.3417428979 | BF31: 0.4182873598 | BG31: 0.9127259348 | BH31: 0.8644524337 | BI31: 5.959059468 | BL31: 0.6853118241 | BM31: 0.8835556209 | BN31: 0.7093788087 | BO31: 0.7826251222 | BP31: 2.020136909 | BQ31: 1.929370027 | BR31: 2.031990758 | BS31: 0.7293257491 | BT31: 1 | BU31: 5.355717318 | BV31: 10.4 | BW31: 1 | BX31: 1.06 | BY31: 1.19 | BZ31: 0.4 | CA31: 0.3 | CB31: 5.9 | CC31: 0.44 | CD31: 0.45 | CE31: 0.38 | CF31: 0.9 | CG31: 0.6 | CH31: 0.502 | CI31: 0.407 | CJ31: 0.38 | CK31: 0.42 | CL31: 0.5 | CM31: 0.5 | CN31: 0.5 | CO31: 0.6 | CP31: 0.6 | CQ31: 0.9 | CR31: 1 | CS31: 2 | CT31: 0.95 | CU31: 0.852 | CV31: 0.2 | CW31: 0.4 | CX31: 0.2 | CY31: 0.4 | CZ31: 0.2 | DA31: 0.3265 | DB31: 0.397 | DC31: 1 | DD31: 2.031990758 | DE31: 2.031990758 | DF31: 1 | DG31: 0.9 | DH31: 0.9 | DI31: 0.5 | DJ31: 0.9 | DK31: 0.9 | DL31: 0.9 | DM31: 0.9 | DN31: 0.9 | DO31: 0.7 | DP31: 0.9 | DQ31: 0.8 | DR31: 0.9 | DS31: 0.309 | DT31: 0.478 | DU31: 0.258 | DV31: 0.381 | DW31: 0.258 | DX31: 0.381
B32: 4000 | D32: 1.808268454 | E32: 0 | F32: 0 | G32: 0.1056248176 | H32: 0.726999998 | I32: 0.1764315963 | J32: 0.3919988573 | K32: 0.3562583625 | L32: 0.3205178678 | M32: 0.3968206048 | N32: 0.4731233418 | O32: 0.1046172082 | P32: 0.2601310313 | Q32: 0.4156448543 | R32: 0.5760393739 | S32: 0.525315404 | T32: 0.395318061 | U32: 0.920054972 | V32: 0.459204078 | W32: 0.533560216 | X32: 0.9776566029 | Y32: 0.7431772351 | Z32: 0.5086978674 | AA32: 0.5300261974 | AB32: 0.618849516 | AC32: 0.522964239 | AD32: 0.675079465 | AE32: 1.159449816 | AF32: 0.9942379594 | AG32: 0.829026103 | AH32: 1.169276237 | AI32: 1.039753437 | AJ32: 1.106611609 | AK32: 1.170822263 | AL32: 0.741574049 | AM32: 0.9854117632 | AN32: 1.229249477 | AO32: 1.176951885 | AP32: 1.124654293 | AQ32: 1.508777022 | AR32: 1.19656086 | AS32: 1.207381964 | AT32: 1.011641741 | AU32: 1.966051102 | AV32: 1.698055983 | AW32: 1.430060863 | AX32: 1.312612414 | AY32: 0.9942379594 | AZ32: 2.407526948 | BA32: 17.05439205 | BB32: 2.073939609 | BC32: 2.596851357 | BD32: 3.881129716 | BE32: 1.069100301 | BF32: 0.09890094655 | BG32: 0 | BH32: 0.8231257949 | BI32: 0.2032165582 | BL32: 0.1764626205 | BM32: 0.3918631077 | BN32: 0.5503103659 | BO32: 0 | BP32: 2.174295768 | BQ32: 1.986575886 | BR32: 2.091563015 | BS32: 0.8492380255 | BT32: 1 | BU32: 4.683272298 | BV32: 5.7 | BW32: 1 | BX32: 1.2 | BY32: 1.22 | BZ32: 0.5 | CA32: 0.4 | CB32: 5.9 | CC32: 0.4 | CD32: 0.42 | CE32: 0.31 | CF32: 0.7 | CG32: 0.5 | CH32: 0.514 | CI32: 0.4 | CJ32: 0.35 | CK32: 0.48 | CL32: 0.5333333333 | CM32: 0.5 | CN32: 0.475 | CO32: 0.5 | CP32: 0.4 | CQ32: 0.8333333333 | CR32: 0.7 | CS32: 2.333333 | CT32: 0.847 | CU32: 0.843 | CV32: 0.3 | CW32: 0.5 | CX32: 0.3 | CY32: 0.5 | CZ32: 0.3 | DA32: 0.43225 | DB32: 0.506 | DC32: 2 | DD32: 2.091563015 | DE32: 2.091563015 | DF32: 1.5 | DG32: 0.8 | DH32: 0.8 | DI32: 0.4 | DJ32: 0.8 | DK32: 0.8 | DL32: 0.8 | DM32: 0.8 | DN32: 0.8 | DO32: 0.6 | DP32: 0.8 | DQ32: 0.8 | DR32: 0.8 | DS32: 0.537 | DT32: 0.315 | DU32: 0.575 | DV32: 0.252 | DW32: 0.575 | DX32: 0.252
B33: 6000 | D33: 1.303384682 | E33: 0 | F33: 0 | G33: 0 | H33: 0.529999971 | I33: 0.213858813 | J33: 0.3331153393 | K33: 0.3496342897 | L33: 0.3661532402 | M33: 0.4986224174 | N33: 0.6310915947 | O33: 0.4357899427 | P33: 0.4657565653 | Q33: 0.4957231879 | R33: 0.6255019307 | S33: 0.484530449 | T33: 0.518972456 | U33: 0.577095032 | V33: 0.631089807 | W33: 0.766347528 | X33: 0.5681949854 | Y33: 0.6035032272 | Z33: 0.6388114691 | AA33: 0.7860508561 | AB33: 0.912910104 | AC33: 0.808660686 | AD33: 0.883692324 | AE33: 0.8072088361 | AF33: 0.938952148 | AG33: 1.07069546 | AH33: 0.800388098 | AI33: 0.934534609 | AJ33: 1.073271155 | AK33: 0.967367351 | AL33: 0.7556332946 | AM33: 0.8133817911 | AN33: 0.8711302876 | AO33: 0.9755621552 | AP33: 1.079994023 | AQ33: 0.865699232 | AR33: 0.909459233 | AS33: 1.020916104 | AT33: 0.943117261 | AU33: 0.8593831658 | AV33: 0.9140888453 | AW33: 0.9687945247 | AX33: 1.094901443 | AY33: 0.938952148 | AZ33: 0 | BA33: 10.52181966 | BB33: 1.992161574 | BC33: 3.227673429 | BD33: 4.358077325 | BE33: 0.6308691294 | BF33: 0.01809682275 | BG33: 1.80399567 | BH33: 0.9172275711 | BI33: 0.7356121494 | BL33: 0.4101212919 | BM33: 0.463330701 | BN33: 0.6268993467 | BO33: 0 | BP33: 2.146488644 | BQ33: 2.06623162 | BR33: 2.168828068 | BS33: 1.026217742 | BT33: 0.5 | BU33: 0 | BV33: 3.5 | BW33: 0.5 | BX33: 1.33 | BY33: 1.38 | BZ33: 0.6 | CA33: 0.2 | CB33: 5.7 | CC33: 0.57 | CD33: 0.6 | CE33: 0.47 | CF33: 0.5 | CG33: 0.4 | CH33: 0.424 | CI33: 0.318 | CJ33: 0.73 | CK33: 0.84 | CL33: 0.6333333333 | CM33: 0.6 | CN33: 0.55 | CO33: 1.5 | CP33: 0.75 | CQ33: 1.233333333 | CR33: 0.6 | CS33: 2.333333 | CT33: 0.907 | CU33: 0.912 | CV33: 0.4 | CW33: 0.5 | CX33: 0.4 | CY33: 0.5 | CZ33: 0.4 | DA33: 0.55325 | DB33: 0.541 | DC33: 2.5 | DD33: 2.168828068 | DE33: 2.168828068 | DF33: 2 | DG33: 0.6 | DH33: 0.6 | DI33: 0.4 | DJ33: 0.55 | DK33: 0.6 | DL33: 0.6 | DM33: 0.6 | DN33: 0.55 | DO33: 0.475 | DP33: 0.55 | DQ33: 0.5 | DR33: 0.5 | DS33: 0.439 | DT33: 0.05 | DU33: 0.575 | DV33: 0.252 | DW33: 0.575 | DX33: 0.252
B34: 8000 | D34: 0.6457689176 | E34: 0 | F34: 0 | G34: 0 | H34: 0.474000007 | I34: 0.2311045825 | J34: 0.3916275501 | K34: 0.4084070623 | L34: 0.4251865745 | M34: 0.5523740053 | N34: 0.6795614362 | O34: 0.4766761065 | P34: 0.5192039609 | Q34: 0.5617318153 | R34: 0.7522888184 | S34: 0.515818715 | T34: 0.592491806 | U34: 0.620481968 | V34: 0.716726899 | W34: 0.910203218 | X34: 0.6035301089 | Y34: 0.668251574 | Z34: 0.7329730392 | AA34: 0.9249138236 | AB34: 1.092821598 | AC34: 0.953415394 | AD34: 1.041266084 | AE34: 0.8692594767 | AF34: 1.126019716 | AG34: 1.382779956 | AH34: 0.879227817 | AI34: 1.141190648 | AJ34: 1.327782989 | AK34: 1.194533348 | AL34: 0.7479987741 | AM34: 0.8321027756 | AN34: 0.9162067771 | AO34: 1.215873718 | AP34: 1.515540659 | AQ34: 0.811982036 | AR34: 0.933803618 | AS34: 1.288679838 | AT34: 0.9670645 | AU34: 0.8051413894 | AV34: 0.8980392814 | AW34: 0.9909371734 | AX34: 1.363700747 | AY34: 1.126019716 | AZ34: 0 | BA34: 6.669093996 | BB34: 1.097590539 | BC34: 3.687167853 | BD34: 4.583625294 | BE34: 1.474657451 | BF34: 0 | BG34: 0 | BH34: 0.9602389684 | BI34: 0.8406721763 | BL34: 0.4554139674 | BM34: 0.5275955051 | BN34: 0.7341069728 | BO34: 0 | BT34: 0 | BU34: 0 | BV34: 1.9 | BW34: 0 | BX34: 1.49 | BY34: 1.57 | BZ34: 0.3 | CA34: 0.1 | CB34: 0 | CC34: 0.63 | CD34: 0.67 | CE34: 0.49 | CF34: 0.4 | CG34: 0.3 | CH34: 0.44 | CI34: 0.295 | CJ34: 1.24 | CK34: 1.12 | CL34: 1 | CM34: 0.9 | CN34: 0.9 | CO34: 2.25 | CP34: 1.25 | CQ34: 1.666666667 | CR34: 1.2 | CS34: 2.333333 | CT34: 0.933 | CU34: 0.932 | CV34: 0.5 | CW34: 0.6 | CX34: 0.5 | CY34: 0.6 | CZ34: 0.5 | DA34: 0.655 | DB34: 0.609 | DC34: 2 | DD34: 0 | DE34: 0 | DF34: 2 | DG34: 0.5 | DH34: 0.5 | DI34: 0.4 | DJ34: 0.5 | DK34: 0.5 | DL34: 0.5 | DM34: 0.5 | DN34: 0.5 | DO34: 0.45 | DP34: 0.5 | DQ34: 0.4 | DR34: 0.5 | DS34: 0.415 | DT34: 0.127 | DU34: 0.575 | DV34: 0.252 | DW34: 0.575 | DX34: 0.252
B35: 10000 | D35: 0.2333968888 | E35: 0 | F35: 0 | G35: 0 | H35: 0.423000008 | I35: 0.2641165257 | J35: 0.3688818216 | K35: 0.4081919789 | L35: 0.4475021362 | M35: 0.5718812346 | N35: 0.6962603331 | O35: 0.4882576466 | P35: 0.5613283515 | Q35: 0.6343990564 | R35: 0.8545846939 | S35: 0.549575865 | T35: 0.676864862 | U35: 0.655231178 | V35: 0.801383734 | W35: 1.0427562 | X35: 0.6536605954 | Y35: 0.7375147343 | Z35: 0.8213688731 | AA35: 1.061870098 | AB35: 1.231576562 | AC35: 1.098992944 | AD35: 1.24360168 | AE35: 0.9952067733 | AF35: 1.386599779 | AG35: 1.777992785 | AH35: 0.998660386 | AI35: 1.402879596 | AJ35: 1.64291513 | AK35: 1.470005512 | AL35: 0.7458146811 | AM35: 0.9114989638 | AN35: 1.077183247 | AO35: 1.489665747 | AP35: 1.902148247 | AQ35: 0.836608887 | AR35: 1.144906163 | AS35: 1.561417341 | AT35: 1.184032559 | AU35: 0.7956655025 | AV35: 1.001649022 | AW35: 1.207632542 | AX35: 1.696457505 | AY35: 1.386599779 | AZ35: 0 | BA35: 4.942549543 | BB35: 0.720264247 | BC35: 3.696582508 | BD35: 2.514134132 | BE35: 2.65050198 | BF35: 0.1965046274 | BG35: 0.2303356053 | BH35: 0.9835756855 | BI35: 0.8878974701 | BL35: 0.4584136903 | BM35: 0.5876748264 | BN35: 0.8150036037 | BO35: 0 | BT35: 0 | BU35: 0 | BV35: 1.1 | BW35: 0 | BX35: 1.64 | BY35: 1.72 | BZ35: 0.2 | CA35: 0.3 | CB35: 0 | CC35: 0.66 | CD35: 0.7 | CE35: 0.51 | CF35: 0.4 | CG35: 0.3 | CH35: 0.504 | CI35: 0.319 | CJ35: 1.46 | CK35: 1.38 | CL35: 1.233333333 | CM35: 1.1 | CN35: 1.1 | CO35: 2.8 | CP35: 1.45 | CQ35: 1.966666667 | CR35: 1.4 | CS35: 2.333333 | CT35: 0.96 | CU35: 0.958 | CV35: 0.6 | CW35: 0.6 | CX35: 0.5 | CY35: 0.6 | CZ35: 0.5 | DA35: 0.69825 | DB35: 0.647 | DC35: 2 | DD35: 0 | DE35: 0 | DF35: 2 | DG35: 0.5 | DH35: 0.5 | DI35: 0.4 | DJ35: 0.5 | DK35: 0.5 | DL35: 0.5 | DM35: 0.5 | DN35: 0.5 | DO35: 0.45 | DP35: 0.5 | DQ35: 0.4 | DR35: 0.5 | DS35: 0.41 | DT35: 0.052 | DU35: 0.575 | DV35: 0.252 | DW35: 0.575 | DX35: 0.252
A37: Wheelset 3 | B37: 200 | D37: 663.0456577 | E37: 330.9211791 | F37: 372.25974 | G37: 197.496982 | I37: =I5 -> 158.9858704 | J37: 149.5829315 | K37: 164.2506409 | L37: 178.9183502 | M37: 203.2501984 | N37: 227.5820465 | O37: 154.3118134 | P37: 173.1998291 | Q37: 192.0878448 | R37: 222.378418 | S37: 154.246109 | T37: 193.8979492 | U37: 159.8379059 | V37: 202.8609772 | W37: 243.1985016 | X37: 161.562851 | Y37: 182.6726532 | Z37: 203.7824554 | AA37: 244.872345 | AB37: 280.4165955 | AC37: 247.867569 | AD37: 257.420166 | AE37: 217.5355072 | AF37: 263.4876404 | AG37: 309.4397736 | AH37: 218.1276093 | AI37: 264.5214539 | AJ37: 312.7772827 | AK37: 268.5058899 | AL37: 170.5964355 | AM37: 195.8780823 | AN37: 221.159729 | AO37: 269.7956543 | AP37: 318.4315796 | AQ37: 169.6213379 | AR37: 223.2370148 | AS37: 272.9187317 | AT37: 224.8818359 | AU37: 171.0529022 | AV37: 198.7123413 | AW37: 226.3717804 | AX37: 277.9349365 | AY37: 263.4876404 | BA37: 560.6071376 | BB37: 203.3942619 | BC37: 63.97911425 | BD37: 417.8766506 | BE37: 119.254309 | BF37: 138.9516963 | BG37: 414.2177345 | BL37: =J37+(O37-J37)*0.75 -> 153.1295929 | BM37: =L37+(Q37-L37)*0.75 -> 188.7954712 | BN37: =N37+(R37-N37)*0.75 -> 223.6793251 | BO37: =E37/2 -> 165.4605896 | BP37: 151.1863819 | BQ37: 171.8981838 | BR37: 190.5219086 | BS37: 207.0777898 | BT37: 450 | BV37: 432.8 | BW37: 450 | BX37: 222.42 | BY37: 234.19 | BZ37: 127.7 | CA37: 111.7 | CB37: 187.7 | CC37: 143.22 | CD37: 147.51 | CE37: 102.73 | CF37: 172.7 | CG37: 133.9 | CH37: 95.598 | CI37: 53.121 | CJ37: 153.64 | CK37: 149.12 | CL37: 186.7333333 | CM37: 192.05 | CN37: 193.8 | CO37: 171.35 | CP37: 154.2 | CQ37: 179.6 | CR37: 169.3 | CT37: 142.679 | CU37: 127.885 | CV37: 105 | CW37: 145.5 | CX37: 120.6 | CY37: 143.8 | CZ37: 120.6 | DA37: 142.172 | DB37: 113.79 | DC37: 118 | DG37: 214.9 | DH37: 214.9 | DI37: 142.2 | DJ37: 208.85 | DK37: 214.9 | DL37: 214.9 | DM37: 214.9 | DN37: 208.85 | DO37: 175.525 | DP37: 208.85 | DQ37: 189.8 | DR37: 206.1 | DS37: 177.46 | DT37: 48.91 | DU37: 193.422 | DV37: 59.297 | DW37: 193.422 | DX37: 59.297
B38: 400 | D38: 340.6373879 | E38: 100.4138937 | F38: 69.58634343 | G38: 2.61567216 | I38: 57.96814346 | J38: 72.48693085 | K38: 76.00466919 | L38: 79.52240753 | M38: 83.26874542 | N38: 87.01508331 | O38: 77.04065704 | P38: 83.02623749 | Q38: 89.01181793 | R38: 97.84325409 | S38: 76.52616119 | T38: 90.59909058 | U38: 80.68473816 | V38: 97.01605988 | W38: 110.4172592 | X38: 81.74926758 | Y38: 89.77443695 | Z38: 97.79960632 | AA38: 111.5678864 | AB38: 124.124588 | AC38: 113.5997391 | AD38: 120.3470383 | AE38: 107.309433 | AF38: 125.4387589 | AG38: 143.5680847 | AH38: 107.6462021 | AI38: 126.0126114 | AJ38: 143.6492615 | AK38: 128.382309 | AL38: 88.39097595 | AM38: 98.89676666 | AN38: 109.4025574 | AO38: 129.1491089 | AP38: 148.8956604 | AQ38: 90.32037354 | AR38: 110.6723709 | AS38: 131.2376404 | AT38: 111.696434 | AU38: 94.00270844 | AV38: 103.3023987 | AW38: 112.6020889 | AX38: 134.0690002 | AY38: 125.4387589 | BA38: 291.3218858 | BB38: 31.49766675 | BC38: 25.96975025 | BD38: 172.6551696 | BE38: 61.78831663 | BF38: 86.33236396 | BG38: 181.8321077 | BL38: =J38+(O38-J38)*0.75 -> 75.90222549 | BM38: =L38+(Q38-L38)*0.75 -> 86.63946533 | BN38: =N38+(R38-N38)*0.75 -> 95.1362114 | BO38: =E38/2 -> 50.20694687 | BP38: 60.36858293 | BQ38: 57.87782578 | BR38: 60.76168533 | BS38: 77.0333136 | BT38: 201 | BV38: 146.4 | BW38: 201 | BX38: 93.2 | BY38: 99.2 | BZ38: 47.5 | CA38: 38.5 | CB38: 62.9 | CC38: 58.34 | CD38: 60.77 | CE38: 32.46 | CF38: 77.1 | CG38: 55.4 | CH38: 49.013 | CI38: 39.496 | CJ38: 68.61 | CK38: 68.4 | CL38: 80.73333333 | CM38: 82.85 | CN38: 83.625 | CO38: 76.65 | CP38: 71.5 | CQ38: 85.4 | CR38: 80.4 | CT38: 51.462 | CU38: 52.458 | CV38: 45.1 | CW38: 62.2 | CX38: 51.3 | CY38: 61.4 | CZ38: 51.3 | DA38: 60.328 | DB38: 44.713 | DC38: 39 | DG38: 92.8 | DH38: 92.8 | DI38: 43.45 | DJ38: 91.1 | DK38: 92.8 | DL38: 92.8 | DM38: 92.8 | DN38: 91.1 | DO38: 67.275 | DP38: 91.1 | DQ38: 87.6 | DR38: 90.7 | DS38: 83.285 | DT38: 30.11 | DU38: 85.049 | DV38: 33.368 | DW38: 85.049 | DX38: 33.368
B39: 600 | D39: 196.1908397 | E39: 29.78206322 | F39: 32.65269938 | G39: 2.73961582 | I39: 40.8034935 | J39: 47.44301987 | K39: 54.36294556 | L39: 61.28287125 | M39: 69.22151947 | N39: 77.16016769 | O39: 46.68290329 | P39: 53.89714813 | Q39: 61.11139297 | R39: 73.68005371 | S39: 46.16686249 | T39: 61.06096268 | U39: 45.51959229 | V39: 60.77964401 | W39: 74.4338913 | X39: 45.84191513 | Y39: 53.29039383 | Z39: 60.73887253 | AA39: 74.46148682 | AB39: 86.37200928 | AC39: 74.51204681 | AD39: 74.64984894 | AE39: 59.89548874 | AF39: 74.52462769 | AG39: 89.15376663 | AH39: 59.83059692 | AI39: 74.50512695 | AJ39: 88.37255096 | AK39: 74.42779541 | AL39: 43.87282944 | AM39: 51.67562103 | AN39: 59.47841263 | AO39: 74.38391876 | AP39: 89.2894249 | AQ39: 45.6049881 | AR39: 59.2630806 | AS39: 74.23897552 | AT39: 59.07141495 | AU39: 46.06732941 | AV39: 52.47757339 | AW39: 58.88781738 | AX39: 73.95928955 | AY39: 74.52462769 | BA39: 153.4505171 | BB39: 19.36901237 | BC39: 13.90644337 | BD39: 123.8443543 | BE39: 24.88811007 | BF39: 29.37495812 | BG39: 96.76939681 | BL39: 46.87293243 | BM39: 61.15426254 | BN39: 74.55008221 | BO39: 14.89103161 | BP39: 44.41477912 | BQ39: 42.88770829 | BR39: 39.86100184 | BS39: 66.97507061 | BT39: 126 | BV39: 55.9 | BW39: 126 | BX39: 64.22 | BY39: 67.74 | BZ39: 52 | CA39: 42.6 | CB39: 46.1 | CC39: 53.38 | CD39: 56.17 | CE39: 27.76 | CF39: 47.2 | CG39: 31.5 | CH39: 45.16 | CI39: 36.543 | CJ39: 67.92 | CK39: 68.04 | CL39: 80.83333333 | CM39: 81.75 | CN39: 82.65 | CO39: 76.6 | CP39: 70.65 | CQ39: 78.76666667 | CR39: 75.7 | CT39: 45.191 | CU39: 40.24 | CV39: 39.1 | CW39: 57.1 | CX39: 44.7 | CY39: 56.7 | CZ39: 44.7 | DA39: 56.306 | DB39: 40.016 | DC39: 24 | DG39: 61.7 | DH39: 61.7 | DI39: 25.4 | DJ39: 61.15 | DK39: 61.7 | DL39: 61.7 | DM39: 61.7 | DN39: 61.15 | DO39: 43.275 | DP39: 61.15 | DQ39: 56.8 | DR39: 60.7 | DS39: 39.249 | DT39: 21.502 | DU39: 38.633 | DV39: 25.108 | DW39: 38.633 | DX39: 25.108
B40: 800 | D40: 126.4412488 | E40: 16.86394461 | F40: 14.16937074 | G40: 1.294210045 | I40: 17.63652611 | J40: 42.9534874 | K40: 42.17050552 | L40: 41.38752365 | M40: 37.53070068 | N40: 33.67387772 | O40: 49.93640137 | P40: 50.67326736 | Q40: 51.41013336 | R40: 50.39439774 | S40: 49.08774948 | T40: 53.80159378 | U40: 52.78537369 | V40: 61.13991165 | W40: 65.38814545 | X40: 54.73815536 | Y40: 58.39776611 | Z40: 62.05737686 | AA40: 66.78492737 | AB40: 71.22553253 | AC40: 69.28894043 | AD40: 77.22672272 | AE40: 72.24273682 | AF40: 83.72452545 | AG40: 95.20631409 | AH40: 72.63187408 | AI40: 84.46034241 | AJ40: 96.49531555 | AK40: 87.4162674 | AL40: 59.45553589 | AM40: 67.06214142 | AN40: 74.66874695 | AO40: 88.33907318 | AP40: 102.0093994 | AQ40: 59.09852219 | AR40: 74.93434906 | AS40: 89.46073914 | AT40: 74.93585968 | AU40: 59.43196869 | AV40: 67.18670654 | AW40: 74.9414444 | AX40: 89.78736115 | AY40: 83.72452545 | BA40: 159.4963602 | BB40: 7.952184306 | BC40: 6.210828095 | BD40: 40.82550173 | BE40: 22.40094003 | BF40: 33.04831716 | BG40: 74.81502295 | BL40: 48.19067287 | BM40: 48.90448093 | BN40: 46.21426773 | BO40: 8.431972303 | BP40: 28.61170093 | BQ40: 24.56513341 | BR40: 21.99517105 | BS40: 31.51238777 | BT40: 94 | BV40: 23.6 | BW40: 94 | BX40: 39.57 | BY40: 40.86 | BZ40: 29 | CA40: 23.6 | CB40: 26.6 | CC40: 29.47 | CD40: 30.84 | CE40: 14.84 | CF40: 25.2 | CG40: 16.1 | CH40: 28.269 | CI40: 22.725 | CJ40: 40.46 | CK40: 42.92 | CL40: 48.3 | CM40: 48.3 | CN40: 48.85 | CO40: 46.25 | CP40: 43.2 | CQ40: 50.83333333 | CR40: 48.3 | CT40: 23.467 | CU40: 20.069 | CV40: 21.8 | CW40: 32.5 | CX40: 23.9 | CY40: 32.3 | CZ40: 23.9 | DA40: 32.28825 | DB40: 22.489 | DC40: 14 | DG40: 32.6 | DH40: 32.6 | DI40: 12.25 | DJ40: 33.1 | DK40: 32.6 | DL40: 32.6 | DM40: 32.6 | DN40: 33.1 | DO40: 22.675 | DP40: 33.1 | DQ40: 36.5 | DR40: 33.6 | DS40: 21.133 | DT40: 12.37 | DU40: 20.633 | DV40: 13.877 | DW40: 20.795 | DX40: 13.877
B41: 1000 | D41: 121.4635032 | E41: 7.31349842 | F41: 6.404616228 | G41: 0.8259042987 | I41: 11.34964752 | J41: 28.89890099 | K41: 25.81937027 | L41: 22.73983955 | M41: 19.42765617 | N41: 16.11547279 | O41: 34.34018707 | P41: 33.38278961 | Q41: 32.42539215 | R41: 28.65140533 | S41: 32.97800827 | T41: 34.02360916 | U41: 35.97723389 | V41: 40.47255707 | W41: 42.08254623 | X41: 37.10761642 | Y41: 39.12422562 | Z41: 41.14083481 | AA41: 43.10038376 | AB41: 43.289711 | AC41: 44.97490311 | AD41: 50.95145035 | AE41: 48.85404587 | AF41: 55.9829216 | AG41: 63.11179733 | AH41: 49.15903473 | AI41: 56.53245926 | AJ41: 64.09851837 | AK41: 58.74159622 | AL41: 41.64850616 | AM41: 46.21068192 | AN41: 50.77285767 | AO41: 59.43572617 | AP41: 68.09859467 | AQ41: 41.51670456 | AR41: 51.9718895 | AS41: 61.52905655 | AT41: 52.92905426 | AU41: 42.71260834 | AV41: 48.23042679 | AW41: 53.74824524 | AX41: 64.68087006 | AY41: 55.9829216 | BA41: 138.4428001 | BB41: 4.116520022 | BC41: 2.259096052 | BD41: 29.43167747 | BE41: 11.82025053 | BF41: 14.47024444 | BG41: 30.41529869 | BL41: 32.97986555 | BM41: 30.004004 | BN41: 25.5174222 | BO41: 3.65674921 | BP41: 18.70909733 | BQ41: 15.12004596 | BR41: 13.16858903 | BS41: 17.30013108 | BT41: 93 | BV41: 10.9 | BW41: 93 | BX41: 22.97 | BY41: 24.69 | BZ41: 16.7 | CA41: 14.3 | CB41: 17.2 | CC41: 18.3 | CD41: 19.45 | CE41: 8.46 | CF41: 14.5 | CG41: 8.9 | CH41: 19.39 | CI41: 15.728 | CJ41: 26.42 | CK41: 29.14 | CL41: 31.56666667 | CM41: 31.2 | CN41: 31.6 | CO41: 31.15 | CP41: 29.5 | CQ41: 34.93333333 | CR41: 33.5 | CT41: 13.122 | CU41: 11.885 | CV41: 12.3 | CW41: 20.2 | CX41: 15 | CY41: 20.1 | CZ41: 15 | DA41: 20.132 | DB41: 12.619 | DC41: 8.5 | DG41: 18.8 | DH41: 18.8 | DI41: 6.65 | DJ41: 19.25 | DK41: 18.8 | DL41: 18.8 | DM41: 18.8 | DN41: 19.25 | DO41: 12.95 | DP41: 19.25 | DQ41: 21.9 | DR41: 19.6 | DS41: 15.19 | DT41: 8.139 | DU41: 14.51 | DV41: 9.026 | DW41: 14.51 | DX41: 9.026
B42: 1200 | D42: 108.5337393 | E42: 3.244636473 | F42: 5.742492348 | G42: 0.6542594484 | I42: 7.5299716 | J42: 16.70650196 | K42: 15.77397633 | L42: 14.84145069 | M42: 12.6297121 | N42: 10.41797352 | O42: 22.64378929 | P42: 21.30536461 | Q42: 19.96693993 | R42: 18.37264061 | S42: 22.75479507 | T42: 21.23204422 | U42: 25.67230034 | V42: 27.65056229 | W42: 26.24343872 | X42: 26.71876144 | Y42: 27.51379395 | Z42: 28.30882645 | AA42: 27.23261833 | AB42: 27.89098167 | AC42: 29.24362564 | AD42: 35.07812119 | AE42: 35.32538986 | AF42: 39.43308258 | AG42: 43.5407753 | AH42: 35.58948135 | AI42: 39.90536118 | AJ42: 44.48109818 | AK42: 41.79235458 | AL42: 30.28167725 | AM42: 33.59619904 | AN42: 36.91072083 | AO42: 42.37622452 | AP42: 47.84172821 | AQ42: 30.28476524 | AR42: 37.77048111 | AS42: 44.03689194 | AT42: 38.43741226 | AU42: 31.08020782 | AV42: 35.04683304 | AW42: =AW10 -> 39.01345825 | AX42: =AX10 -> 46.38393784 | AY42: =AY10 -> 39.43308258 | BA42: 107.5039212 | BB42: 2.618991217 | BC42: 0.8358669608 | BD42: 22.97641148 | BE42: 8.91930279 | BF42: 9.730092351 | BG42: 21.46829422 | BL42: 21.15946746 | BM42: 18.68556762 | BN42: 16.38397384 | BO42: 1.622318236 | BP42: 12.81712478 | BQ42: 10.1457694 | BR42: 9.018707464 | BS42: 11.73597755 | BT42: 93 | BV42: 1.9 | BW42: 93 | BX42: 13.1 | BY42: 14.07 | BZ42: 10.4 | CA42: 9 | CB42: 12.7 | CC42: 11.88 | CD42: 12.52 | CE42: 6.21 | CF42: 8.9 | CG42: 5.7 | CH42: 11.166 | CI42: 9.02 | CJ42: 17.28 | CK42: 19.68 | CL42: 20.8 | CM42: 20.45 | CN42: 20.75 | CO42: 20.65 | CP42: 19.8 | CQ42: 24.56666667 | CR42: 23.9 | CT42: 9.128 | CU42: 8.231 | CV42: 8.4 | CW42: 13 | CX42: 9.6 | CY42: 12.9 | CZ42: 9.6 | DA42: 12.989 | DB42: 8.625 | DC42: 7 | DG42: 11.4 | DH42: 11.4 | DI42: 4.4 | DJ42: 11.65 | DK42: 11.4 | DL42: 11.4 | DM42: 11.4 | DN42: 11.65 | DO42: 8.025 | DP42: 11.65 | DQ42: 13.4 | DR42: 11.9 | DS42: 10.874 | DT42: 5.787 | DU42: 10.794 | DV42: 6.485 | DW42: 10.794 | DX42: 6.485
B43: 1400 | D43: 84.6423681 | E43: 0.9672016202 | F43: 3.720460888 | G43: 0.6746667002 | I43: =I11 -> 5.526565075 | J43: 12.03274727 | K43: 11.35372353 | L43: 10.67469978 | M43: 8.999741554 | N43: 7.324783325 | O43: 15.18198776 | P43: 14.63954926 | Q43: 14.09711075 | R43: 12.78639507 | S43: 15.5962553 | T43: 14.86982155 | U43: 18.69837952 | V43: 18.8110199 | W43: 17.98731422 | X43: 19.70076752 | Y43: 19.5298233 | Z43: 19.35887909 | AA43: 18.61994362 | AB43: 18.87609482 | AC43: 19.81679153 | AD43: 24.27401924 | AE43: 26.70967102 | AF43: 28.57772827 | AG43: 30.44578552 | AH43: 26.98623276 | AI43: 29.069664 | AJ43: 31.59292412 | AK43: 31.0768795 | AL43: 23.93479347 | AM43: 26.17990875 | AN43: 28.42502403 | AO43: 31.71627235 | AP43: 35.00752068 | AQ43: 23.96392059 | AR43: 29.47192001 | AS43: 33.64688873 | AT43: 30.08890152 | AU43: 24.90848923 | AV43: 27.73836136 | AW43: 30.56823349 | AX43: 35.75120163 | AY43: 28.57772827 | BA43: 64.66771047 | BB43: 1.33598865 | BC43: 0.5458668844 | BD43: 15.18999852 | BE43: 7.625422106 | BF43: 6.723081274 | BG43: 13.41266121 | BL43: 14.39467764 | BM43: 13.24150801 | BN43: 11.42099214 | BO43: 0.4836008101 | BP43: 9.54833685 | BQ43: 7.585951507 | BR43: 6.860418616 | BS43: 8.531819477 | BT43: 73 | BV43: 1.2 | BW43: 73 | BX43: 8.71 | BY43: 9.48 | BZ43: 6.3 | CA43: 5.8 | CB43: 10.2 | CC43: 8.85 | CD43: 9.29 | CE43: 4.76 | CF43: 6.3 | CG43: 4.1 | CH43: 5.49 | CI43: 4.993 | CJ43: 12.48 | CK43: 14.2 | CL43: 15.16666667 | CM43: 14.85 | CN43: 15.075 | CO43: 14.85 | CP43: 14.15 | CQ43: 16.86666667 | CR43: 15.4 | CT43: 6.608 | CU43: 5.907 | CV43: 6.3 | CW43: 9.6 | CX43: 7.1 | CY43: 9.5 | CZ43: 7.1 | DA43: 9.558 | DB43: 6.491 | DC43: 5.5 | DG43: 8 | DH43: 8 | DI43: 3.1 | DJ43: 8.15 | DK43: 8 | DL43: 8 | DM43: 8 | DN43: 8.15 | DO43: 5.625 | DP43: 8.15 | DQ43: 9.3 | DR43: 8.3 | DS43: 8.512 | DT43: 4.412 | DU43: 8.414 | DV43: 4.858 | DW43: 8.414 | DX43: 4.858
B44: 1800 | D44: 55.67377421 | E44: 2.752755674 | F44: 0 | G44: 0.4513488558 | I44: 3.271509409 | J44: 7.390413284 | K44: 6.826934338 | L44: 6.263455391 | M44: 5.176198483 | N44: 4.088941574 | O44: 8.974321365 | P44: 8.604365349 | Q44: 8.234409332 | R44: 7.233991146 | S44: 9.011368752 | T44: 8.633609772 | U44: 10.50348949 | V44: 10.51054287 | W44: 9.989545822 | X44: 10.92975521 | Y44: 10.84538174 | Z44: 10.76100826 | AA44: 10.30132294 | AB44: 10.51702499 | AC44: 10.88328075 | AD44: 12.91492939 | AE44: 14.6100359 | AF44: 14.88854408 | AG44: 15.16705227 | AH44: 14.80760956 | AI44: 15.13154125 | AJ44: 16.54040718 | AK44: 16.17672157 | AL44: 15.13396931 | AM44: 15.52803326 | AN44: 15.92209721 | AO44: 16.52718544 | AP44: 17.13227367 | AQ44: 15.43140316 | AR44: 16.91015816 | AS44: 17.62989426 | AT44: 17.73889732 | AU44: 16.84093475 | AV44: 17.67668915 | AW44: 18.51244354 | AX44: 19.58532524 | AY44: 14.88854408 | BA44: 36.88801774 | BB44: 1.282057653 | BC44: 0.8907825345 | BD44: 7.11571161 | BE44: 6.314980513 | BF44: 4.650246608 | BG44: 8.063346319 | BL44: 8.578344345 | BM44: 7.741670847 | BN44: 6.447728753 | BO44: 1.376377837 | BP44: 6.488949154 | BQ44: 5.227530028 | BR44: 4.878121886 | BS44: 4.934550988 | BT44: 45 | BV44: 1.4 | BW44: 45 | BX44: 4.77 | BY44: 5.61 | BZ44: 4.5 | CA44: 3.7 | CB44: 8 | CC44: 5.38 | CD44: 5.62 | CE44: 2.11 | CF44: 4 | CG44: 2.6 | CH44: 2.215 | CI44: 1.986 | CJ44: 7.3 | CK44: 8.42 | CL44: 9.133333333 | CM44: 8.85 | CN44: 9 | CO44: 8.7 | CP44: 8.3 | CQ44: 9.533333333 | CR44: 9.3 | CT44: 3.8 | CU44: 3.351 | CV44: 3.8 | CW44: 5.8 | CX44: 4.4 | CY44: 5.8 | CZ44: 4.4 | DA44: 5.844 | DB44: 3.953 | DC44: 5 | DG44: 4.7 | DH44: 4.7 | DI44: 1.85 | DJ44: 4.75 | DK44: 4.7 | DL44: 4.7 | DM44: 4.7 | DN44: 4.75 | DO44: 3.3 | DP44: 4.75 | DQ44: 5.3 | DR44: 4.8 | DS44: 4.233 | DT44: 2.651 | DU44: 4.058 | DV44: 2.951 | DW44: 4.058 | DX44: 2.951
B45: 2200 | D45: 21.36291921 | E45: 2.079992809 | F45: 0.8471693594 | G45: 0.4477019825 | I45: 1.321617961 | J45: 4.83634901 | K45: 4.450992107 | L45: 4.065635204 | M45: 2.530205011 | N45: 0.9947748184 | O45: 5.775091171 | P45: 5.485990524 | Q45: 5.196889877 | R45: 4.48574543 | S45: 5.789705753 | T45: 5.427850246 | U45: 6.57492733 | V45: 6.505697727 | W45: 6.041119576 | X45: 6.858596325 | Y45: 6.752690792 | Z45: 6.646785259 | AA45: 6.217130661 | AB45: 6.381161213 | AC45: 6.542510033 | AD45: 7.665757656 | AE45: 8.660260201 | AF45: 8.687632561 | AG45: 8.715004921 | AH45: 8.763308525 | AI45: 8.806470871 | AJ45: 9.801994324 | AK45: 9.312070847 | AL45: 8.917160034 | AM45: 9.13028717 | AN45: 9.343414307 | AO45: 9.488485336 | AP45: 9.633556366 | AQ45: 9.057214737 | AR45: 9.802516937 | AS45: 10.05836582 | AT45: 10.19137955 | AU45: 9.775912285 | AV45: 10.16476536 | AW45: 10.55361843 | AX45: 11.02809143 | AY45: 8.687632561 | BA45: 26.56904335 | BB45: 1.241366603 | BC45: 1.007538059 | BD45: 5.261361752 | BE45: 2.554827264 | BF45: 3.29876317 | BG45: 5.542572165 | BL45: 5.540405631 | BM45: 4.914076209 | BN45: 3.613002777 | BO45: 1.039996404 | BP45: 5.135989839 | BQ45: 4.235799098 | BR45: 4.030039071 | BS45: 2.187970663 | BT45: 30 | BV45: 2.2 | BW45: 30 | BX45: 2.9 | BY45: 3.64 | BZ45: 2.3 | CA45: 1.5 | CB45: 7 | CC45: 3.32 | CD45: 3.56 | CE45: 1.27 | CF45: 2.7 | CG45: 1.7 | CH45: 1.143 | CI45: 1.008 | CJ45: 4.68 | CK45: 5.42 | CL45: 6.033333333 | CM45: 5.75 | CN45: 5.9 | CO45: 5.6 | CP45: 5.25 | CQ45: 5.833333333 | CR45: 5.7 | CT45: 1.983 | CU45: 1.698 | CV45: 2 | CW45: 3.9 | CX45: 2.6 | CY45: 3.9 | CZ45: 2.6 | DA45: 3.94775 | DB45: 2.036 | DC45: 2.5 | DG45: 3.2 | DH45: 3.2 | DI45: 1.2 | DJ45: 3.2 | DK45: 3.2 | DL45: 3.2 | DM45: 3.2 | DN45: 3.2 | DO45: 2.2 | DP45: 3.2 | DQ45: 3.4 | DR45: 3.2 | DS45: 2.599 | DT45: 1.722 | DU45: 2.462 | DV45: 1.91 | DW45: 2.462 | DX45: 1.91
B46: 2600 | D46: 25.18658351 | E46: 1.273242429 | F46: 1.942072559 | G46: 0.4315566159 | I46: 0.8132129312 | J46: 2.834089756 | K46: 2.524048567 | L46: 2.214007378 | M46: 1.463810444 | N46: 0.7136135101 | O46: 3.635664701 | P46: 3.330071449 | Q46: 3.024478197 | R46: 2.408752441 | S46: 3.951849222 | T46: 3.207206964 | U46: 4.343540668 | V46: 4.281405449 | W46: 3.578490973 | X46: 4.527540207 | Y46: 4.444758892 | Z46: 4.361977577 | AA46: 3.722553015 | AB46: 3.742574453 | AC46: 4.001504421 | AD46: 4.784113884 | AE46: 5.346935749 | AF46: 5.326206207 | AG46: 5.305476665 | AH46: 5.396433353 | AI46: 5.386102676 | AJ46: 6.010996819 | AK46: 5.629585266 | AL46: 5.515614986 | AM46: 5.594407082 | AN46: 5.673199177 | AO46: 5.706898689 | AP46: 5.740598202 | AQ46: 5.551819801 | AR46: 5.888821125 | AS46: 5.945291996 | AT46: 6.075169086 | AU46: 5.947666645 | AV46: 6.098809242 | AW46: 6.249951839 | AX46: 6.368489265 | AY46: 5.326206207 | BA46: 17.20429831 | BB46: 1.349424999 | BC46: 1.234476013 | BD46: 3.606124548 | BE46: 2.938690394 | BF46: 2.057006606 | BG46: 3.969112982 | BL46: 3.435270965 | BM46: 2.821860492 | BN46: 1.984967709 | BO46: 0.6366212146 | BP46: 4.343297382 | BQ46: 3.673181566 | BR46: 3.404260052 | BS46: 1.213602478 | BT46: 21 | BV46: 1.9 | BW46: 21 | BX46: 1.66 | BY46: 2.2 | BZ46: 1.2 | CA46: 0.5 | CB46: 6.4 | CC46: 2.18 | CD46: 2.33 | CE46: 0.98 | CF46: 1.9 | CG46: 1.2 | CH46: 0.581 | CI46: 0.513 | CJ46: 3.36 | CK46: 4.1 | CL46: 4.333333333 | CM46: 4.1 | CN46: 4.2 | CO46: 4.1 | CP46: 3.9 | CQ46: 4.466666667 | CR46: 4.4 | CT46: 1.19 | CU46: 0.881 | CV46: 1.3 | CW46: 2.5 | CX46: 1.7 | CY46: 2.5 | CZ46: 1.7 | DA46: 2.52025 | DB46: 1.329 | DC46: 2 | DG46: 2.3 | DH46: 2.3 | DI46: 0.9 | DJ46: 2.3 | DK46: 2.3 | DL46: 2.3 | DM46: 2.3 | DN46: 2.3 | DO46: 1.6 | DP46: 2.3 | DQ46: 2.5 | DR46: 2.3 | DS46: 1.403 | DT46: 1.057 | DU46: 1.307 | DV46: 1.095 | DW46: 1.307 | DX46: 1.095
B47: 3000 | D47: 18.86278786 | E47: 1.022249193 | F47: 1.002659669 | G47: 0.4129318946 | I47: 0.8429247737 | J47: 2.136769652 | K47: 1.787709594 | L47: 1.438649535 | M47: 0.9814761281 | N47: 0.524302721 | O47: 2.562948704 | P47: 2.325244665 | Q47: 2.087540627 | R47: 1.497162104 | S47: 2.622822523 | T47: 2.203632355 | U47: 3.15073061 | V47: 2.806232691 | W47: 2.340988398 | X47: 3.30118227 | Y47: 3.096508265 | Z47: 2.891834259 | AA47: 2.432089806 | AB47: 2.408221245 | AC47: 2.605115175 | AD47: 3.24993968 | AE47: 4.120481491 | AF47: 3.907945871 | AG47: 3.695410252 | AH47: 4.146486282 | AI47: 3.989087582 | AJ47: 4.259912968 | AK47: 4.334359169 | AL47: 3.777899265 | AM47: 4.031076908 | AN47: 4.284254551 | AO47: 4.441977024 | AP47: 4.599699497 | AQ47: 3.928625584 | AR47: 4.274368763 | AS47: 4.711802483 | AT47: 4.387528419 | AU47: 4.209172249 | AV47: 4.357089043 | AW47: 4.505005836 | AX47: 4.920901299 | AY47: 3.907945871 | BA47: 11.5209745 | BB47: 1.443421825 | BC47: 1.366593964 | BD47: 2.921230528 | BE47: 1.126957388 | BF47: 1.48585412 | BG47: 3.509327751 | BL47: 2.456403941 | BM47: 1.925317854 | BN47: 1.253947258 | BO47: 0.5111245963 | BP47: 3.810258512 | BQ47: 3.147618289 | BR47: 3.023609154 | BS47: 0.9277292408 | BT47: 15.7 | BV47: 1.3 | BW47: 15.7 | BX47: 1.12 | BY47: 1.56 | BZ47: 0.5 | CA47: 0.2 | CB47: 6 | CC47: 1.54 | CD47: 1.65 | CE47: 0.76 | CF47: 1.5 | CG47: 0.9 | CH47: 0.402 | CI47: 0.294 | CJ47: 2.45 | CK47: 3.02 | CL47: 3.233333333 | CM47: 3 | CN47: 3.1 | CO47: 3 | CP47: 2.9 | CQ47: 3.2 | CR47: 3.2 | CT47: 0.836 | CU47: 0.735 | CV47: 1 | CW47: 1.8 | CX47: 1.2 | CY47: 1.7 | CZ47: 1.2 | DA47: 1.80575 | DB47: 1.062 | DC47: 2 | DG47: 1.8 | DH47: 1.8 | DI47: 0.7 | DJ47: 1.8 | DK47: 1.8 | DL47: 1.8 | DM47: 1.8 | DN47: 1.8 | DO47: 1.25 | DP47: 1.8 | DQ47: 1.9 | DR47: 1.8 | DS47: 1.036 | DT47: 0.865 | DU47: 0.942 | DV47: 0.778 | DW47: 0.942 | DX47: 0.778
B48: 4000 | D48: 9.192064429 | E48: 0 | F48: 0 | G48: 0 | I48: 0.5629244447 | J48: 0.9010406733 | K48: 0.8407623768 | L48: 0.7804840803 | M48: 0.7187742591 | N48: 0.6570644379 | O48: 1.049210548 | P48: 0.9977104068 | Q48: 0.9462102652 | R48: 0.880705297 | S48: 1.212872386 | T48: 0.980301023 | U48: 1.433474422 | V48: 1.242422342 | W48: 1.094655991 | X48: 1.541306376 | Y48: 1.394963741 | Z48: 1.248621106 | AA48: 1.128498673 | AB48: 1.229005218 | AC48: 1.212365627 | AD48: 1.484567404 | AE48: 1.686567664 | AF48: 1.633823991 | AG48: 1.581080317 | AH48: 1.701498747 | AI48: 1.656312943 | AJ48: 1.792022228 | AK48: 1.777705908 | AL48: 2.921020865 | AM48: 2.35712719 | AN48: 1.793233514 | AO48: 1.827977896 | AP48: 1.862722278 | AQ48: 2.612009287 | AR48: 1.925233245 | AS48: 1.984516263 | AT48: 2.642963171 | AU48: 2.930969238 | AV48: 2.842497587 | AW48: =AW16 -> 2.754025936 | AX48: =AX16 -> 2.100766182 | AY48: =AY16 -> 1.633823991 | BA48: 2.407526948 | BB48: 1.535554332 | BC48: 2.059865328 | BD48: 2.593941312 | BE48: 1.110068921 | BF48: 0.8712056541 | BG48: 2.356057666 | BL48: 1.01216808 | BM48: 0.9047787189 | BN48: 0.8247950822 | BO48: 0 | BP48: 3.244062595 | BQ48: 2.786190949 | BR48: 2.817951108 | BS48: 0.6080507831 | BT48: 8.3 | BV48: 1.5 | BW48: 8.3 | BX48: 1.22 | BY48: 1.24 | BZ48: 0.3 | CA48: 0.2 | CB48: 5.9 | CC48: 0.99 | CD48: 1.03 | CE48: 0.53 | CF48: 0.9 | CG48: 0.6 | CH48: 0.265 | CI48: 0.186 | CJ48: 1.52 | CK48: 1.74 | CL48: 1.866666667 | CM48: 1.8 | CN48: 1.825 | CO48: 1.75 | CP48: 1.7 | CQ48: 2.066666667 | CR48: 1.9 | CT48: 0.761 | CU48: 0.752 | CV48: 0.6 | CW48: 1 | CX48: 0.8 | CY48: 1 | CZ48: 0.8 | DA48: 1.05725 | DB48: 0.659 | DC48: 2.5 | DG48: 1.1 | DH48: 1.1 | DI48: 0.5 | DJ48: 1.1 | DK48: 1.1 | DL48: 1.1 | DM48: 1.1 | DN48: 1.1 | DO48: 0.8 | DP48: 1.1 | DQ48: 1.2 | DR48: 1.1 | DS48: 0.648 | DT48: 0.469 | DU48: 0.595 | DV48: 0.412 | DW48: 0.595 | DX48: 0.412
B49: 6000 | D49: 3.614916642 | E49: 0 | F49: 0 | G49: 0 | I49: =I17 -> 0.2004301101 | J49: 0.5218656063 | K49: 0.4834066629 | L49: 0.4449477196 | M49: 0.3334434927 | N49: 0.2219392657 | O49: 0.6465371847 | P49: 0.6069741249 | Q49: 0.5674110651 | R49: 0.4796615839 | S49: 0.637697756 | T49: 0.590169787 | U49: 0.717633545 | V49: 0.703290343 | W49: 0.634261787 | X49: 0.7389811873 | Y49: 0.723418951 | Z49: 0.7078567147 | AA49: 0.6409820914 | AB49: 0.720949054 | AC49: 0.670356929 | AD49: 0.727329552 | AE49: 0.8489063382 | AF49: 0.7947702408 | AG49: 0.7406341434 | AH49: 0.857467353 | AI49: 0.789037406 | AJ49: 0.90817821 | AK49: 0.817915142 | AL49: 0.9769141078 | AM49: 0.9388464093 | AN49: 0.9007787108 | AO49: 0.8324519992 | AP49: 0.7641252875 | AQ49: 1.126970887 | AR49: 0.93592912 | AS49: 0.842952728 | AT49: 0.977248549 | AU49: 1.245025039 | AV49: 1.116568923 | AW49: 0.9881128073 | AX49: 0.8873206377 | AY49: 0.7947702408 | BA49: 0 | BB49: 0.8573542804 | BC49: 2.96281571 | BD49: 1.527146849 | BE49: 0.8102540698 | BF49: 0.576269712 | BG49: 1.184901624 | BL49: 0.6153692901 | BM49: 0.5367952287 | BN49: 0.4152310044 | BO49: 0 | BP49: 2.71436139 | BQ49: 2.676831694 | BR49: 2.759465337 | BS49: 0.4603996233 | BT49: 3.4 | BV49: 2.1 | BW49: 3.4 | BX49: 1.41 | BY49: 1.45 | BZ49: 0.3 | CA49: 0.4 | CB49: 5.7 | CC49: 0.85 | CD49: 0.86 | CE49: 0.51 | CF49: 0.6 | CG49: 0.4 | CH49: 0.219 | CI49: 0.161 | CJ49: 0.88 | CK49: 1.06 | CL49: 1.166666667 | CM49: 1.1 | CN49: 1.15 | CO49: 1.3 | CP49: 1 | CQ49: 1.233333333 | CR49: 1.1 | CT49: 0.809 | CU49: 0.802 | CV49: 0.5 | CW49: 0.8 | CX49: 0.7 | CY49: 0.8 | CZ49: 0.7 | DA49: 0.7765 | DB49: 0.514 | DC49: 2.5 | DG49: 0.7 | DH49: 0.7 | DI49: 0.4 | DJ49: 0.7 | DK49: 0.7 | DL49: 0.7 | DM49: 0.7 | DN49: 0.7 | DO49: 0.55 | DP49: 0.7 | DQ49: 0.7 | DR49: 0.7 | DS49: 0.402 | DT49: 0.192 | DU49: 0.595 | DV49: 0.412 | DW49: 0.595 | DX49: 0.412
B50: 8000 | D50: 1.670825925 | E50: 0 | F50: 0 | G50: 0 | I50: 0 | J50: 0.3638381064 | K50: 0.2997427583 | L50: 0.2356474102 | M50: 0.1040442958 | N50: -0.02755881846 | O50: 0.4512991607 | P50: 0.395452261 | Q50: 0.3396053612 | R50: 0.19826594 | S50: 0.449376315 | T50: 0.361762583 | U50: 0.484042525 | V50: 0.424967915 | W50: 0.282037467 | X50: 0.5105580688 | Y50: 0.4741999209 | Z50: 0.437841773 | AA50: 0.2858991027 | AB50: 0.323239505 | AC50: 0.286960572 | AD50: 0.279565811 | AE50: 0.4539536238 | AF50: 0.2678607106 | AG50: 0.08176779747 | AH50: 0.45357734 | AI50: 0.270895958 | AJ50: 0.317575157 | AK50: 0.266308218 | AL50: 0.5638132989 | AM50: 0.5042666793 | AN50: 0.4447200596 | AO50: 0.2468655854 | AP50: 0.04901111126 | AQ50: 0.525309861 | AR50: 0.428973526 | AS50: 0.236024141 | AT50: 0.415514648 | AU50: 0.5291775167 | AV50: 0.4694326818 | AW50: 0.4096878469 | AX50: 0.1841836572 | AY50: 0.2678607106 | BA50: 0 | BB50: 0.5249523397 | BC50: 1.110625447 | BD50: 0.8834744034 | BE50: 1.830642349 | BF50: 0.4280152504 | BG50: 1.727972367 | BL50: 0.4294338971 | BM50: 0.3136158735 | BN50: 0.1418097503 | BO50: 0 | BT50: 0 | BV50: 0.6 | BW50: 0 | BX50: 1.53 | BY50: 1.6 | BZ50: 0.2 | CA50: 0.5 | CB50: 0 | CC50: 0.84 | CD50: 0.85 | CE50: 0.49 | CF50: 0.5 | CG50: 0.3 | CH50: 0.264 | CI50: 0.194 | CJ50: 0.94 | CK50: 0.96 | CL50: 1.1 | CM50: 1.2 | CN50: 1.2 | CO50: 1.4 | CP50: 1 | CQ50: 1.233333333 | CR50: 1 | CT50: 0.82 | CU50: 0.821 | CV50: 0.5 | CW50: 0.8 | CX50: 0.7 | CY50: 0.8 | CZ50: 0.7 | DA50: 0.75575 | DB50: 0.49 | DC50: 1.5 | DG50: 0.6 | DH50: 0.6 | DI50: 0.4 | DJ50: 0.55 | DK50: 0.6 | DL50: 0.6 | DM50: 0.6 | DN50: 0.55 | DO50: 0.475 | DP50: 0.55 | DQ50: 0.5 | DR50: 0.5 | DS50: 0.362 | DT50: 0.252 | DU50: 0.595 | DV50: 0.412 | DW50: 0.595 | DX50: 0.412
B51: 10000 | D51: 0.7430384921 | E51: 0 | F51: 0 | G51: 0 | I51: 0 | J51: 0.2452139109 | K51: 0.1676171422 | L51: 0.09002037346 | M51: 0 | N51: -0.09002037346 | O51: 0.3031416237 | P51: 0.2438079566 | Q51: 0.1844742894 | R51: 0.02323717996 | S51: 0.317109436 | T51: 0.187669337 | U51: 0.334583074 | V51: 0.218391567 | W51: 0.037045315 | X51: 0.3617608994 | Y51: 0.2908643484 | Z51: 0.2199677974 | AA51: 0.0332817696 | AB51: 0.063352309 | AC51: 0.026313011 | AD51: 0 | AE51: 0.1321249604 | AF51: 0 | AG51: -0.1321249604 | AH51: 0.136645481 | AI51: 0 | AJ51: 0 | AK51: 0 | AL51: 0.3104368895 | AM51: 0.2030566037 | AN51: 0.09567631781 | AO51: 0 | AP51: -0.09567631781 | AQ51: 0.240860999 | AR51: 0.044387124 | AS51: 0 | AT51: 0 | AU51: 0.2314766049 | AV51: 0.1157383025 | AW51: 0 | AX51: 0 | AY51: 0 | BA51: 0 | BB51: 0.3481758426 | BC51: 0.4493032986 | BD51: 0.6093361152 | BE51: 2.872161762 | BF51: 0.2599114881 | BG51: 0.8795500981 | BL51: 0.2886596955 | BM51: 0.1608608104 | BN51: -0.005077208392 | BO51: 0 | BT51: 0 | BV51: 0.5 | BW51: 0 | BX51: 1.62 | BY51: 1.7 | BZ51: 0.3 | CA51: 0.4 | CB51: 0 | CC51: 0.82 | CD51: 0.83 | CE51: 0.47 | CF51: 0.4 | CG51: 0.3 | CH51: 0.316 | CI51: 0.22 | CJ51: 0.97 | CK51: 0.98 | CL51: 1.066666667 | CM51: 1.2 | CN51: 1.225 | CO51: 1.5 | CP51: 1.05 | CQ51: 1.333333333 | CR51: 1.1 | CT51: 0.83 | CU51: 0.83 | CV51: 0.5 | CW51: 0.7 | CX51: 0.7 | CY51: 0.7 | CZ51: 0.7 | DA51: 0.742 | DB51: 0.478 | DC51: 1.5 | DG51: 0.5 | DH51: 0.5 | DI51: 0.35 | DJ51: 0.5 | DK51: 0.5 | DL51: 0.5 | DM51: 0.5 | DN51: 0.5 | DO51: 0.425 | DP51: 0.5 | DQ51: 0.4 | DR51: 0.5 | DS51: 0.358 | DT51: 0.133 | DU51: 0.595 | DV51: 0.412 | DW51: 0.595 | DX51: 0.412
A53: Wheelset 4 | B53: 200 | D53: 246.3548596 | E53: 641.0617176 | F53: 596.2524069 | G53: 318.3353092 | I53: =I21 -> 0 | J53: 0 | K53: 0 | L53: 0 | M53: 0 | N53: 0 | O53: 0 | P53: 0 | Q53: 0 | R53: 0 | S53: 0 | T53: 0 | U53: 0 | V53: 0 | W53: 0 | X53: 0 | Y53: 0 | Z53: 0 | AA53: 0 | AB53: 0 | AC53: 0 | AD53: 0 | AE53: 0 | AF53: 0 | AG53: 0 | AH53: 0 | AI53: 0 | AJ53: 0 | AK53: 0 | AL53: 0 | AM53: 0 | AN53: 0 | AO53: 0 | AP53: 0 | AQ53: 0 | AR53: 0 | AS53: 0 | AT53: 0 | AU53: 0 | AV53: 0 | AW53: 0 | AX53: 0 | AY53: 0 | BB53: 78.15812961 | BC53: 38.79752987 | BD53: 135.2830543 | BE53: 62.70296045 | BF53: 64.62199958 | BG53: 140.2873829 | BL53: =J53+(O53-J53)*0.75 -> 0 | BM53: =L53+(Q53-L53)*0.75 -> 0 | BN53: =N53+(R53-N53)*0.75 -> 0 | BV53: 395 | BW53: 195 | BX53: 0 | BY53: 0 | BZ53: 42.6 | CA53: 30.6 | CB53: 0 | CC53: 0 | CD53: 0 | CE53: 0 | CF53: 53.5 | CG53: 45.4 | CH53: 77.276 | CI53: 69.898 | CJ53: 89.22 | CK53: 79.7 | CL53: 94.83333333 | CM53: 100.6 | CN53: 100.6 | CO53: 100.75 | CP53: 93.65 | CQ53: 109.2666667 | CR53: 97.3 | CT53: 130.185 | CU53: 117.396 | CV53: 0 | CW53: 0 | CX53: 0 | CY53: 0 | CZ53: 0 | DA53: 0 | DB53: 0 | DC53: 0 | DG53: 62.9 | DH53: 62.9 | DI53: 84.8 | DJ53: 62.75 | DK53: 62.9 | DL53: 62.9 | DM53: 62.9 | DN53: 62.75 | DO53: 52.575 | DP53: 62.75 | DQ53: 69.1 | DR53: 63.7 | DS53: 40.004 | DT53: 24.506 | DU53: 39.096 | DV53: 27.327 | DW53: 39.096 | DX53: 27.327
B54: 400 | D54: 49.83770001 | E54: 334.660821 | F54: 280.014869 | G54: 19.80050811 | I54: 0 | J54: 0 | K54: 0 | L54: 0 | M54: 0 | N54: 0 | O54: 0 | P54: 0 | Q54: 0 | R54: 0 | S54: 0 | T54: 0 | U54: 0 | V54: 0 | W54: 0 | X54: 0 | Y54: 0 | Z54: 0 | AA54: 0 | AB54: 0 | AC54: 0 | AD54: 0 | AE54: 0 | AF54: 0 | AG54: 0 | AH54: 0 | AI54: 0 | AJ54: 0 | AK54: 0 | AL54: 0 | AM54: 0 | AN54: 0 | AO54: 0 | AP54: 0 | AQ54: 0 | AR54: 0 | AS54: 0 | AT54: 0 | AU54: 0 | AV54: 0 | AW54: 0 | AX54: 0 | AY54: 0 | BB54: 18.04968401 | BC54: 15.60600605 | BD54: 17.7826057 | BE54: 6.581828345 | BF54: 6.183942093 | BG54: 17.08407208 | BL54: =J54+(O54-J54)*0.75 -> 0 | BM54: =L54+(Q54-L54)*0.75 -> 0 | BN54: =N54+(R54-N54)*0.75 -> 0 | BP54: 4.167543428 | BQ54: 4.114910304 | BR54: 4.382818834 | BS54: 3.316587975 | BT54: 26 | BV54: 244.5 | BW54: 26 | BX54: 7.72 | BY54: 8.16 | BZ54: 0.5 | CA54: 0.5 | CB54: 10.6 | CC54: 2.55 | CD54: 2.67 | CE54: 1.87 | CF54: 17.1 | CG54: 13.1 | CH54: 1.115 | CI54: 0.644 | CJ54: 3.07 | CK54: 3.54 | CL54: 3.366666667 | CM54: 3.7 | CN54: 3.775 | CO54: 3.4 | CP54: 3.35 | CQ54: 4.266666667 | CR54: 4 | CT54: 47.79 | CU54: 45.906 | CV54: 2.4 | CW54: 2.9 | CX54: 2.3 | CY54: 2.9 | CZ54: 2.3 | DA54: 2.83525 | DB54: 2.495 | DC54: 0 | DG54: 15.2 | DH54: 15.2 | DI54: 19 | DJ54: 14.75 | DK54: 15.2 | DL54: 15.2 | DM54: 15.2 | DN54: 14.75 | DO54: 12.125 | DP54: 14.75 | DQ54: 12.8 | DR54: 14.5 | DS54: 5.959 | DT54: 1.077 | DU54: 7.361 | DV54: 1.009 | DW54: 7.361 | DX54: 1.009
B55: 600 | D55: 1.492127559 | E55: 204.0564759 | F55: 145.9765736 | G55: 1.601188916 | I55: 0.332919538 | J55: 0.6075022221 | K55: 0.7853735089 | L55: 0.9632447958 | M55: 0.9852131605 | N55: 1.007181525 | O55: 0.3463386297 | P55: 0.4251347184 | Q55: 0.5039308071 | R55: 0.5936681032 | S55: 0.301711708 | T55: 0.425402969 | U55: 0.198999569 | V55: 0.235951647 | W55: 0.229468599 | X55: 0.1922773421 | Y55: 0.2087121904 | Z55: 0.2251470387 | AA55: 0.2145151943 | AB55: 0.127623782 | AC55: 0.187537476 | AD55: 0.115676329 | AE55: 0.1033691168 | AF55: 0.08136726171 | AG55: 0.05936540663 | AH55: 0.101579495 | AI55: 0 | AJ55: 0 | AK55: 0 | AL55: 0.1913761646 | AM55: 0.09568808228 | AN55: 0 | AO55: 0 | AP55: 0 | AQ55: 0 | AR55: 0 | AS55: 0 | AT55: 0 | AU55: 0 | AV55: 0 | AW55: 0 | AX55: 0 | AY55: 0.08136726171 | BB55: 7.689025553 | BC55: 7.350883923 | BD55: 6.101777062 | BE55: 1.368016354 | BF55: 0.831603722 | BG55: 6.395540603 | BL55: 0.4116295278 | BM55: 0.6187593043 | BN55: 0.6970464587 | BP55: 1.350684277 | BQ55: 1.310360877 | BR55: 1.543195729 | BS55: 1.658501708 | BT55: 4.4 | BV55: 158.5 | BW55: 4.4 | BX55: 0.19 | BY55: 0.05 | BZ55: 5.2 | CA55: 5 | CB55: 9.9 | CC55: 1.71 | CD55: 1.78 | CE55: 1.13 | CF55: 15.7 | CG55: 10.2 | CH55: 1.75 | CI55: 2.139 | CJ55: 2.92 | CK55: 3.14 | CL55: 3.266666667 | CM55: 2.95 | CN55: 2.875 | CO55: 4 | CP55: 4.15 | CQ55: 5.2 | CR55: 5.1 | CT55: 42.901 | CU55: 38.806 | CV55: 1.3 | CW55: 1.7 | CX55: 1.4 | CY55: 1.7 | CZ55: 1.4 | DA55: 1.72775 | DB55: 1.418 | DC55: 0 | DG55: 12.5 | DH55: 12.5 | DI55: 8.8 | DJ55: 12 | DK55: 12.5 | DL55: 12.5 | DM55: 12.5 | DN55: 12 | DO55: 8.2 | DP55: 12 | DQ55: 9.5 | DR55: 11.7 | DS55: 1.767 | DT55: 1.464 | DU55: 2.56 | DV55: 1.074 | DW55: 2.56 | DX55: 1.074
B56: 800 | D56: 0 | E56: 127.1208891 | F56: 103.9787504 | G56: 0.6058327536 | I56: 0.05938158929 | J56: 3.340358257 | K56: 2.869411707 | L56: 2.398465157 | M56: 1.508122325 | N56: 0.6177794933 | O56: 7.952363014 | P56: 5.507231712 | Q56: 3.06210041 | R56: 2.154585361 | S56: 5.811151028 | T56: 5.327810764 | U56: 6.276947021 | V56: 5.903386593 | W56: 4.993183613 | X56: 6.448720455 | Y56: 6.209169865 | Z56: 5.969619274 | AA56: 5.07758522 | AB56: 3.90120101 | AC56: 5.230335712 | AD56: 5.726419926 | AE56: 6.765647888 | AF56: 6.116184235 | AG56: 5.466720581 | AH56: 6.798669338 | AI56: 6.160710812 | AJ56: 4.899567127 | AK56: 6.342995167 | AL56: 7.311237335 | AM56: 7.143648148 | AN56: 6.97605896 | AO56: 6.402602673 | AP56: 5.829146385 | AQ56: 7.195495605 | AR56: 7.005456924 | AS56: 6.447751522 | AT56: 7.0088377 | AU56: 7.458065987 | AV56: 7.236306667 | AW56: 7.014547348 | AX56: 6.402704239 | AY56: 6.116184235 | BB56: 2.631892094 | BC56: 3.256320253 | BD56: 1.904867337 | BE56: 2.505121604 | BF56: 1.054983833 | BG56: 1.263213793 | BL56: 6.799361825 | BM56: 2.896191597 | BN56: 1.770383894 | BP56: 1.829335002 | BQ56: 1.659728594 | BR56: 1.709264851 | BS56: 0.6518015545 | BT56: 0.5 | BV56: 105.4 | BW56: 0.5 | BX56: 0.43 | BY56: 0.46 | BZ56: 3.1 | CA56: 2.9 | CB56: 8.8 | CC56: 1.48 | CD56: 1.55 | CE56: 0.54 | CF56: 8.8 | CG56: 5.9 | CH56: 2.469 | CI56: 2.388 | CJ56: 3.3 | CK56: 3.94 | CL56: 3.6 | CM56: 3.4 | CN56: 3.35 | CO56: 4.6 | CP56: 4.9 | CQ56: 5.366666667 | CR56: 6.3 | CT56: 23.21 | CU56: 20.12 | CV56: 1 | CW56: 1.9 | CX56: 1.2 | CY56: 1.9 | CZ56: 1.2 | DA56: 1.98125 | DB56: 1.016 | DC56: 0 | DG56: 6.5 | DH56: 6.5 | DI56: 5.7 | DJ56: 6.35 | DK56: 6.5 | DL56: 6.5 | DM56: 6.5 | DN56: 6.35 | DO56: 4.6 | DP56: 6.35 | DQ56: 6.1 | DR56: 6.3 | DS56: 1.477 | DT56: 0.869 | DU56: 1.95 | DV56: 0.78 | DW56: 1.95 | DX56: 0.78
B57: 1000 | D57: 5.666594207 | E57: 98.40405786 | F57: 97.56441859 | G57: 0.4123268335 | I57: 0.5874889493 | J57: 3.188830912 | K57: 2.087386847 | L57: 0.985942781 | M57: 0.4918542504 | N57: -0.002234280109 | O57: 7.775299311 | P57: 5.228255749 | Q57: 2.681212187 | R57: 1.187407494 | S57: 5.988950253 | T57: 2.972265005 | U57: 6.6868577 | V57: 5.720170498 | W57: 4.509825706 | X57: 7.030203819 | Y57: 6.433523178 | Z57: 5.836842537 | AA57: 4.626091957 | AB57: 2.098150492 | AC57: 4.834730625 | AD57: 5.523055077 | AE57: 7.343353271 | AF57: 6.093379498 | AG57: 4.843405724 | AH57: 7.410919189 | AI57: 6.157662868 | AJ57: 4.891841412 | AK57: 6.420853138 | AL57: 8.049937248 | AM57: 7.893493176 | AN57: 7.737049103 | AO57: 6.505092621 | AP57: 5.273136139 | AQ57: 8.155785561 | AR57: 7.906763554 | AS57: 6.764172554 | AT57: 8.045311928 | AU57: 8.506008148 | AV57: 8.342176437 | AW57: 8.178344727 | AX57: 7.173573017 | AY57: 6.093379498 | BB57: 2.901068467 | BC57: 3.614053908 | BD57: 1.328791949 | BE57: 3.893820915 | BF57: 2.306005191 | BG57: 1.66421057 | BL57: 6.628682211 | BM57: 2.257394835 | BN57: 0.8899970502 | BP57: 2.071905702 | BQ57: 1.716564786 | BR57: 1.743360431 | BS57: 0.5041629637 | BT57: 1.2 | BV57: 107.2 | BW57: 1.2 | BX57: 0.2 | BY57: 0.24 | BZ57: 2.1 | CA57: 2.4 | CB57: 7.7 | CC57: 1.07 | CD57: 1.18 | CE57: 0.34 | CF57: 6.6 | CG57: 4.3 | CH57: 1.305 | CI57: 1.454 | CJ57: 2.1 | CK57: 2.68 | CL57: 2.366666667 | CM57: 2.3 | CN57: 2.3 | CO57: 2.6 | CP57: 2.8 | CQ57: 3.533333333 | CR57: 4 | CT57: 12.674 | CU57: 11.519 | CV57: 0.6 | CW57: 1.3 | CX57: 0.8 | CY57: 1.3 | CZ57: 0.8 | DA57: 1.333 | DB57: 0.646 | DC57: 0 | DG57: 5.3 | DH57: 5.3 | DI57: 4.3 | DJ57: 5.1 | DK57: 5.3 | DL57: 5.3 | DM57: 5.3 | DN57: 5.1 | DO57: 3.625 | DP57: 5.1 | DQ57: 4.4 | DR57: 5 | DS57: 0.94 | DT57: 0.58 | DU57: 1.28 | DV57: 0.454 | DW57: 1.28 | DX57: 0.454
B58: 1200 | D58: 8.112558586 | E58: 92.15688278 | F58: 64.43502364 | G58: 0.2424573146 | I58: 0.6715510488 | J58: 1.308466733 | K58: 1.132551432 | L58: 0.9566361308 | M58: 0.7432634234 | N58: 0.5298907161 | O58: 2.235198259 | P58: 1.785046101 | Q58: 1.334893942 | R58: 0.9921478033 | S58: 2.834333181 | T58: 1.451184273 | U58: 4.541827679 | V58: 2.594231367 | W58: 1.572204113 | X58: 4.700581551 | Y58: 3.764817715 | Z58: 2.829053879 | AA58: 1.638111115 | AB58: 1.492012143 | AC58: 1.848218918 | AD58: 3.223327875 | AE58: 5.465975285 | AF58: 4.177953243 | AG58: 2.889931202 | AH58: 5.570590973 | AI58: 4.282008648 | AJ58: 3.527131319 | AK58: 4.725570679 | AL58: 7.140168667 | AM58: 6.637138367 | AN58: 6.134108067 | AO58: 4.89054203 | AP58: 3.646975994 | AQ58: 7.297230721 | AR58: 6.549332619 | AS58: 5.408252716 | AT58: 6.885378361 | AU58: 7.883545876 | AV58: 7.530567646 | AW58: =AW26 -> 7.177589417 | AX58: =AX26 -> 6.295646667 | AY58: =AY26 -> 4.177953243 | BB58: 2.485656222 | BC58: 4.43138777 | BD58: 0.5868399802 | BE58: 2.483158973 | BF58: 2.858608731 | BG58: 0.2731654935 | BL58: 2.003515378 | BM58: 1.240329489 | BN58: 0.8765835315 | BP58: 2.124955097 | BQ58: 1.813242436 | BR58: 1.870511852 | BS58: 1.059671877 | BT58: 2.5 | BV58: 112.3 | BW58: 2.5 | BX58: 0.22 | BY58: 0.08 | BZ58: 1.7 | CA58: 1.5 | CB58: 7.1 | CC58: 0.73 | CD58: 0.78 | CE58: 0.24 | CF58: 5 | CG58: 3 | CH58: 0.812 | CI58: 0.632 | CJ58: 1.66 | CK58: 2.2 | CL58: 1.9 | CM58: 1.7 | CN58: 1.7 | CO58: 2.3 | CP58: 2.3 | CQ58: 2.7 | CR58: 2.7 | CT58: 8.634 | CU58: 7.983 | CV58: 0.5 | CW58: 0.8 | CX58: 0.6 | CY58: 0.8 | CZ58: 0.6 | DA58: 0.8805 | DB58: 0.47 | DC58: 0 | DG58: 4.2 | DH58: 4.2 | DI58: 2.8 | DJ58: 4.1 | DK58: 4.2 | DL58: 4.2 | DM58: 4.2 | DN58: 4.1 | DO58: 2.75 | DP58: 4.1 | DQ58: 3.8 | DR58: 4.1 | DS58: 0.798 | DT58: 0.432 | DU58: 1.049 | DV58: 0.313 | DW58: 1.049 | DX58: 0.313
B59: 1400 | D59: 5.465330768 | E59: 94.2353409 | F59: 47.88055882 | G59: 0.1736826482 | I59: =I27 -> 0.8348895311 | J59: 1.475734949 | K59: 1.254511595 | L59: 1.03328824 | M59: 0.9284763336 | N59: 0.8236644268 | O59: 1.718057752 | P59: 1.577260017 | Q59: 1.436462283 | R59: 0.9937109947 | S59: 1.618606806 | T59: 1.511347771 | U59: 2.538810015 | V59: 1.831216216 | W59: 1.590250254 | X59: 2.454870462 | Y59: 2.158076286 | Z59: 1.86128211 | AA59: 1.648643017 | AB59: 1.256435633 | AC59: 1.758245468 | AD59: 2.112251282 | AE59: 3.25519681 | AF59: 2.535023212 | AG59: 1.814849615 | AH59: 3.328755856 | AI59: 2.613536835 | AJ59: 2.451546431 | AK59: 2.941455126 | AL59: 4.455670834 | AM59: 4.091612339 | AN59: 3.727553844 | AO59: 3.048046827 | AP59: 2.36853981 | AQ59: 4.713545322 | AR59: 4.020554543 | AS59: 3.377227068 | AT59: 4.3290658 | AU59: 5.154844284 | AV59: 4.888813019 | AW59: 4.622781754 | AX59: 4.06901598 | AY59: 2.535023212 | BB59: 3.335053594 | BC59: 3.998960473 | BD59: 0 | BE59: 2.493625107 | BF59: 1.631758418 | BG59: 0 | BL59: 1.657477051 | BM59: 1.335668772 | BN59: 0.9511993527 | BP59: 2.18191757 | BQ59: 1.87070782 | BR59: 1.875791507 | BS59: 1.306565071 | BT59: 2.7 | BV59: 115.8 | BW59: 2.7 | BX59: 0.28 | BY59: 0.15 | BZ59: 1.9 | CA59: 1.3 | CB59: 6.7 | CC59: 0.67 | CD59: 0.72 | CE59: 0.26 | CF59: 3.6 | CG59: 2.1 | CH59: 0.456 | CI59: 0.371 | CJ59: 1.41 | CK59: 1.82 | CL59: 1.566666667 | CM59: 1.45 | CN59: 1.425 | CO59: 1.95 | CP59: 2.1 | CQ59: 2.5 | CR59: 2.6 | CT59: 6.284 | CU59: 5.688 | CV59: 0.4 | CW59: 0.8 | CX59: 0.5 | CY59: 0.8 | CZ59: 0.5 | DA59: 0.79275 | DB59: 0.423 | DC59: 0 | DG59: 3 | DH59: 3 | DI59: 2 | DJ59: 3 | DK59: 3 | DL59: 3 | DM59: 3 | DN59: 3 | DO59: 2 | DP59: 3 | DQ59: 2.9 | DR59: 3 | DS59: 0.792 | DT59: 0.419 | DU59: 0.973 | DV59: 0.295 | DW59: 0.973 | DX59: 0.295
B60: 1800 | D60: 10.36284481 | E60: 79.98534398 | F60: 17.07527033 | G60: 0.6337928293 | I60: 1.135512948 | J60: 1.544635892 | K60: 1.401239872 | L60: 1.257843852 | M60: 1.387716413 | N60: 1.517588973 | O60: 2.035928488 | P60: 1.805024862 | Q60: 1.574121237 | R60: 1.499691606 | S60: 1.858246446 | T60: 1.647918105 | U60: 2.022161961 | V60: 1.991808534 | W60: 1.643203974 | X60: 2.087271214 | Y60: 2.053289413 | Z60: 2.019307613 | AA60: 1.652237415 | AB60: 1.582284093 | AC60: 1.721069217 | AD60: 2.122017384 | AE60: 2.417505264 | AF60: 2.346487522 | AG60: 2.27546978 | AH60: 2.437362432 | AI60: 2.370738029 | AJ60: 2.110386848 | AK60: 2.4723773 | AL60: 2.380723238 | AM60: 2.465974331 | AN60: 2.551225424 | AO60: 2.505918503 | AP60: 2.460611582 | AQ60: 2.350432873 | AR60: 2.629369497 | AS60: 2.611190319 | AT60: 2.676529646 | AU60: 2.45021987 | AV60: 2.584717989 | AW60: 2.719216108 | AX60: 2.813480616 | AY60: 2.346487522 | BB60: 1.531796643 | BC60: 2.169364952 | BD60: 0.191532738 | BE60: 2.447212112 | BF60: 1.003780736 | BG60: 0.1726029619 | BL60: 1.913105339 | BM60: 1.495051891 | BN60: 1.504165947 | BP60: 2.17458929 | BQ60: 1.924697453 | BR60: 1.977964181 | BS60: 1.786507701 | BT60: 2.4 | BV60: 88.5 | BW60: 2.4 | BX60: 0.56 | BY60: 0.54 | BZ60: 1.6 | CA60: 1.4 | CB60: 6.4 | CC60: 0.76 | CD60: 0.79 | CE60: 0.24 | CF60: 2 | CG60: 1.2 | CH60: 0.508 | CI60: 0.492 | CJ60: 1.36 | CK60: 1.64 | CL60: 1.566666667 | CM60: 1.4 | CN60: 1.4 | CO60: 1.8 | CP60: 1.95 | CQ60: 2.4 | CR60: 2.5 | CT60: 3.585 | CU60: 3.187 | CV60: 0.5 | CW60: 0.8 | CX60: 0.6 | CY60: 0.8 | CZ60: 0.6 | DA60: 0.82275 | DB60: 0.516 | DC60: 0 | DG60: 1.7 | DH60: 1.7 | DI60: 2 | DJ60: 1.65 | DK60: 1.7 | DL60: 1.7 | DM60: 1.7 | DN60: 1.65 | DO60: 1.325 | DP60: 1.65 | DQ60: 1.6 | DR60: 1.6 | DS60: 1.083 | DT60: 0.192 | DU60: 1.251 | DV60: 0.057 | DW60: 1.251 | DX60: 0.057
B61: 2200 | D61: 11.75360489 | E61: 65.2599956 | F61: 9.432555673 | G61: 0.6366697176 | I61: 0.6657354236 | J61: 1.523782849 | K61: 1.546911478 | L61: 1.570040107 | M61: 0.812451601 | N61: 0.05486309528 | O61: 2.029663324 | P61: 1.916204214 | Q61: 1.802745104 | R61: 1.900666595 | S61: 2.082381725 | T61: 1.852508187 | U61: 2.182128668 | V61: 2.150815725 | W61: 2.145614386 | X61: 2.324132681 | Y61: 2.261769772 | Z61: 2.199406862 | AA61: 2.173025608 | AB61: 2.145487785 | AC61: 2.223748207 | AD61: 2.402902603 | AE61: 2.517368555 | AF61: 2.572559595 | AG61: 2.627750635 | AH61: 2.528790712 | AI61: 2.590965033 | AJ61: 2.463201284 | AK61: 2.645444632 | AL61: 2.474408865 | AM61: 2.533268452 | AN61: 2.592128038 | AO61: 2.645112991 | AP61: 2.698097944 | AQ61: 2.461606264 | AR61: 2.641346931 | AS61: 2.690817595 | AT61: 2.680599689 | AU61: 2.577309608 | AV61: 2.64691329 | AW61: 2.716516972 | AX61: 2.786161661 | AY61: 2.572559595 | BB61: 1.777415427 | BC61: 2.423317295 | BD61: 0 | BE61: 0.3046735488 | BF61: 0.5887419521 | BG61: 0 | BL61: 1.903193206 | BM61: 1.744568855 | BN61: 1.43921572 | BP61: 2.160033988 | BQ61: 1.935552804 | BR61: 2.060366879 | BS61: 1.017596731 | BT61: 1.5 | BV61: 64.9 | BW61: 1.5 | BX61: 0.88 | BY61: 0.88 | BZ61: 0.9 | CA61: 0.9 | CB61: 6.2 | CC61: 0.37 | CD61: 0.42 | CE61: 0.27 | CF61: 1.8 | CG61: 1.2 | CH61: 0.439 | CI61: 0.371 | CJ61: 1.44 | CK61: 1.7 | CL61: 1.6 | CM61: 1.55 | CN61: 1.525 | CO61: 1.9 | CP61: 1.95 | CQ61: 2 | CR61: 2.4 | CT61: 1.851 | CU61: 1.633 | CV61: 0.2 | CW61: 0.9 | CX61: 0.1 | CY61: 0.9 | CZ61: 0.1 | DA61: 0.93425 | DB61: 0.22 | DC61: 0 | DG61: 1.7 | DH61: 1.7 | DI61: 1.6 | DJ61: 1.4 | DK61: 1.7 | DL61: 1.7 | DM61: 1.7 | DN61: 1.4 | DO61: 1.1 | DP61: 1.4 | DQ61: 1 | DR61: 1.1 | DS61: 0.998 | DT61: 0.09 | DU61: 1.112 | DV61: 0.192 | DW61: 1.112 | DX61: 0.192
B62: 2600 | D62: 11.72835554 | E62: 53.95207843 | F62: 3.599003873 | G62: 0.60159661 | I62: 0.2008445859 | J62: 0.5206152201 | K62: 0.64557302 | L62: 0.7705308199 | M62: 0.8796731234 | N62: 0.9888154268 | O62: 0.860706985 | P62: 0.7984551191 | Q62: 0.7362032533 | R62: 0.9887038469 | S62: 2.242940664 | T62: 0.727769434 | U62: 2.353134394 | V62: 2.374683857 | W62: 0.935652375 | X62: 2.488812923 | Y62: 2.448970795 | Z62: 2.409128666 | AA62: 0.9295055866 | AB62: 1.137846708 | AC62: 1.029553652 | AD62: 2.769287825 | AE62: 2.693223238 | AF62: 2.969115019 | AG62: 3.2450068 | AH62: 2.699929953 | AI62: 2.991766691 | AJ62: 2.96202302 | AK62: 3.087336779 | AL62: 2.55657196 | AM62: 2.647411823 | AN62: 2.738251686 | AO62: 3.118587732 | AP62: 3.498923779 | AQ62: 2.537461996 | AR62: 2.768388271 | AS62: 3.206843376 | AT62: 2.793712616 | AU62: 2.614600897 | AV62: 2.715800762 | AW62: 2.817000628 | AX62: 3.235939741 | AY62: 2.969115019 | BB62: 1.868671183 | BC62: 3.010778766 | BD62: 0 | BE62: 0.6745780817 | BF62: 0.2637679637 | BG62: 0 | BL62: 0.7756840438 | BM62: 0.7447851449 | BN62: 0.9887317419 | BP62: 2.086459196 | BQ62: 1.967833605 | BR62: 2.044442272 | BS62: 1.021430389 | BT62: 1.1 | BV62: 49.2 | BW62: 1.1 | BX62: 0.98 | BY62: 0.95 | BZ62: 0.7 | CA62: 0.1 | CB62: 6 | CC62: 0.27 | CD62: 0.28 | CE62: 0.31 | CF62: 1.4 | CG62: 0.9 | CH62: 0.454 | CI62: 0.382 | CJ62: 0.29 | CK62: 0.62 | CL62: 0.3666666667 | CM62: 0.4 | CN62: 0.4 | CO62: 0.7 | CP62: 0.8 | CQ62: 1 | CR62: 1.1 | CT62: 1.149 | CU62: 0.843 | CV62: 0.2 | CW62: 0.2 | CX62: 0.2 | CY62: 0.2 | CZ62: 0.2 | DA62: 0.22575 | DB62: 0.264 | DC62: 0 | DG62: 1.3 | DH62: 1.3 | DI62: 1.6 | DJ62: 1.3 | DK62: 1.3 | DL62: 1.3 | DM62: 0.3 | DN62: 1.3 | DO62: 1.05 | DP62: 1.3 | DQ62: 1.3 | DR62: 1.3 | DS62: 1.256 | DT62: 0.542 | DU62: 1.45 | DV62: 0.629 | DW62: 1.45 | DX62: 0.629
B63: 3000 | D63: 9.032711231 | E63: 39.9630708 | F63: 2.476471135 | G63: 0.6044740662 | I63: 0.2061659694 | J63: 0.7753992677 | K63: 0.7776602507 | L63: 0.7799212337 | M63: 0.2888096273 | N63: -0.2023019791 | O63: 0.6552826762 | P63: 0.7866915464 | Q63: 0.9181004167 | R63: 1.013272405 | S63: 0.803655684 | T63: 0.913882971 | U63: 0.89487803 | V63: 0.892199576 | W63: 1.155287981 | X63: 0.8642481565 | Y63: 0.8764551878 | Z63: 0.888662219 | AA63: 1.153459311 | AB63: 1.283982992 | AC63: 1.148860097 | AD63: 1.120376348 | AE63: 1.127073765 | AF63: 1.087288857 | AG63: 1.047503948 | AH63: 1.177724481 | AI63: 1.083000422 | AJ63: 1.29434216 | AK63: 1.06929028 | AL63: 2.49015975 | AM63: 1.991046786 | AN63: 1.491933823 | AO63: 1.078908443 | AP63: 0.6658830643 | AQ63: 2.061884165 | AR63: 1.949029803 | AS63: 1.200058222 | AT63: 2.017011404 | AU63: 2.136648655 | AV63: 2.110738039 | AW63: 2.084827423 | AX63: 1.597833514 | AY63: 1.087288857 | BB63: 1.887894027 | BC63: 3.142180423 | BD63: 0 | BE63: 0.04564374203 | BF63: 0.1471634362 | BG63: 0 | BL63: 0.6853118241 | BM63: 0.8835556209 | BN63: 0.7093788087 | BP63: 2.020136909 | BQ63: 1.929370027 | BR63: 2.031990758 | BS63: 0.7236360501 | BT63: 1 | BV63: 37.5 | BW63: 1 | BX63: 1 | BY63: 1.17 | BZ63: 0.4 | CA63: 0.4 | CB63: 5.9 | CC63: 0.33 | CD63: 0.33 | CE63: 0.38 | CF63: 1.1 | CG63: 0.8 | CH63: 0.476 | CI63: 0.398 | CJ63: 0.32 | CK63: 0.34 | CL63: 0.4333333333 | CM63: 0.5 | CN63: 0.5 | CO63: 0.5 | CP63: 0.5 | CQ63: 0.8666666667 | CR63: 1 | CT63: 0.744 | CU63: 0.687 | CV63: 0.3 | CW63: 0.3 | CX63: 0.2 | CY63: 0.3 | CZ63: 0.2 | DA63: 0.286 | DB63: 0.38 | DC63: 0 | DG63: 1.1 | DH63: 1.1 | DI63: 1.2 | DJ63: 1.1 | DK63: 1.1 | DL63: 1.1 | DM63: 1.1 | DN63: 1.1 | DO63: 0.85 | DP63: 1.1 | DQ63: 1 | DR63: 1.1 | DS63: 1.059 | DT63: 0.908 | DU63: 1.29 | DV63: 1.044 | DW63: 1.29 | DX63: 1.044
B64: 4000 | D64: 1.746788964 | E64: 17.60109184 | F64: 0.9414077826 | G64: 0 | I64: 0.1764315963 | J64: 0.3919988573 | K64: 0.3562583625 | L64: 0.3205178678 | M64: 0.3968206048 | N64: 0.4731233418 | O64: 0.1046172082 | P64: 0.2601310313 | Q64: 0.4156448543 | R64: 0.5760393739 | S64: 0.525315404 | T64: 0.395318061 | U64: 0.920054972 | V64: 0.459204078 | W64: 0.533560216 | X64: 0.9776566029 | Y64: 0.7431772351 | Z64: 0.5086978674 | AA64: 0.5300261974 | AB64: 0.618849516 | AC64: 0.522964239 | AD64: 0.675079465 | AE64: 1.159449816 | AF64: 0.9942379594 | AG64: 0.829026103 | AH64: 1.169276237 | AI64: 1.039753437 | AJ64: 1.106611609 | AK64: 1.170822263 | AL64: 0.741574049 | AM64: 0.9854117632 | AN64: 1.229249477 | AO64: 1.176951885 | AP64: 1.124654293 | AQ64: 1.508777022 | AR64: 1.19656086 | AS64: 1.207381964 | AT64: 1.011641741 | AU64: 1.966051102 | AV64: 1.698055983 | AW64: =AW32 -> 1.430060863 | AX64: =AX32 -> 1.312612414 | AY64: =AY32 -> 0.9942379594 | BB64: 2.006878512 | BC64: 2.879675286 | BD64: 0.5287597352 | BE64: 0 | BF64: 0 | BG64: 0 | BL64: 0.1764626205 | BM64: 0.3918631077 | BN64: 0.5503103659 | BP64: 2.174295768 | BQ64: 1.986575886 | BR64: 2.091563015 | BS64: 0.8442234502 | BT64: 1 | BV64: 22.4 | BW64: 1 | BX64: 1.19 | BY64: 1.23 | BZ64: 0.3 | CA64: 0.3 | CB64: 5.9 | CC64: 0.43 | CD64: 0.44 | CE64: 0.31 | CF64: 0.8 | CG64: 0.5 | CH64: 0.483 | CI64: 0.382 | CJ64: 0.39 | CK64: 0.38 | CL64: 0.5 | CM64: 0.5 | CN64: 0.5 | CO64: 0.4 | CP64: 0.35 | CQ64: 0.9 | CR64: 0.6 | CT64: 0.711 | CU64: 0.711 | CV64: 0.3 | CW64: 0.4 | CX64: 0.3 | CY64: 0.4 | CZ64: 0.3 | DA64: 0.383 | DB64: 0.354 | DC64: 0 | DG64: 0.9 | DH64: 0.9 | DI64: 1 | DJ64: 0.9 | DK64: 0.9 | DL64: 0.9 | DM64: 0.9 | DN64: 0.9 | DO64: 0.7 | DP64: 0.9 | DQ64: 0.9 | DR64: 0.9 | DS64: 0.759 | DT64: 0.634 | DU64: 0.954 | DV64: 0.731 | DW64: 0.954 | DX64: 0.731
B65: 6000 | D65: 1.213520084 | E65: 8.497038619 | F65: 0 | G65: 0 | I65: =I33 -> 0.213858813 | J65: 0.3331153393 | K65: 0.3496342897 | L65: 0.3661532402 | M65: 0.4986224174 | N65: 0.6310915947 | O65: 0.4357899427 | P65: 0.4657565653 | Q65: 0.4957231879 | R65: 0.6255019307 | S65: 0.484530449 | T65: 0.518972456 | U65: 0.577095032 | V65: 0.631089807 | W65: 0.766347528 | X65: 0.5681949854 | Y65: 0.6035032272 | Z65: 0.6388114691 | AA65: 0.7860508561 | AB65: 0.912910104 | AC65: 0.808660686 | AD65: 0.883692324 | AE65: 0.8072088361 | AF65: 0.938952148 | AG65: 1.07069546 | AH65: 0.800388098 | AI65: 0.934534609 | AJ65: 1.073271155 | AK65: 0.967367351 | AL65: 0.7556332946 | AM65: 0.8133817911 | AN65: 0.8711302876 | AO65: 0.9755621552 | AP65: 1.079994023 | AQ65: 0.865699232 | AR65: 0.909459233 | AS65: 1.020916104 | AT65: 0.943117261 | AU65: 0.8593831658 | AV65: 0.9140888453 | AW65: 0.9687945247 | AX65: 1.094901443 | AY65: 0.938952148 | BB65: 0.7577264824 | BC65: 2.88200017 | BD65: 0 | BE65: 0.08239507302 | BF65: 0 | BG65: 0 | BL65: 0.4101212919 | BM65: 0.463330701 | BN65: 0.6268993467 | BP65: 2.146488644 | BQ65: 2.06623162 | BR65: 2.168828068 | BS65: 1.02200562 | BT65: 0.5 | BV65: 10.2 | BW65: 0.5 | BX65: 1.31 | BY65: 1.36 | BZ65: 0.6 | CA65: 0.1 | CB65: 5.7 | CC65: 0.82 | CD65: 0.8 | CE65: 0.42 | CF65: 0.5 | CG65: 0.4 | CH65: 0.404 | CI65: 0.31 | CJ65: 0.75 | CK65: 0.46 | CL65: 0.6 | CM65: 0.8 | CN65: 0.775 | CO65: 1.4 | CP65: 0.8 | CQ65: 1.233333333 | CR65: 0.6 | CT65: 0.769 | CU65: 0.769 | CV65: 0.4 | CW65: 0.6 | CX65: 0.7 | CY65: 0.6 | CZ65: 0.7 | DA65: 0.62625 | DB65: 0.409 | DC65: 0 | DG65: 0.6 | DH65: 0.6 | DI65: 0.8 | DJ65: 0.6 | DK65: 0.6 | DL65: 0.6 | DM65: 0.6 | DN65: 0.6 | DO65: 0.5 | DP65: 0.6 | DQ65: 0.5 | DR65: 0.6 | DS65: 0.544 | DT65: 0.435 | DU65: 0.954 | DV65: 0.731 | DW65: 0.954 | DX65: 0.731
B66: 8000 | D66: 0.5784459145 | E66: 4.061270782 | F66: 0 | G66: 0 | I66: 0.2311045825 | J66: 0.3916275501 | K66: 0.4084070623 | L66: 0.4251865745 | M66: 0.5523740053 | N66: 0.6795614362 | O66: 0.4766761065 | P66: 0.5192039609 | Q66: 0.5617318153 | R66: 0.7522888184 | S66: 0.515818715 | T66: 0.592491806 | U66: 0.620481968 | V66: 0.716726899 | W66: 0.910203218 | X66: 0.6035301089 | Y66: 0.668251574 | Z66: 0.7329730392 | AA66: 0.9249138236 | AB66: 1.092821598 | AC66: 0.953415394 | AD66: 1.041266084 | AE66: 0.8692594767 | AF66: 1.126019716 | AG66: 1.382779956 | AH66: 0.879227817 | AI66: 1.141190648 | AJ66: 1.327782989 | AK66: 1.194533348 | AL66: 0.7479987741 | AM66: 0.8321027756 | AN66: 0.9162067771 | AO66: 1.215873718 | AP66: 1.515540659 | AQ66: 0.811982036 | AR66: 0.933803618 | AS66: 1.288679838 | AT66: 0.9670645 | AU66: 0.8051413894 | AV66: 0.8980392814 | AW66: 0.9909371734 | AX66: 1.363700747 | AY66: 1.126019716 | BB66: 0.2772173697 | BC66: 1.235677778 | BD66: 0 | BE66: 1.338432669 | BF66: 0 | BG66: 0.6708015456 | BL66: 0.4554139674 | BM66: 0.5275955051 | BN66: 0.7341069728 | BT66: 0 | BV66: 7.2 | BW66: 0 | BX66: 1.42 | BY66: 1.53 | BZ66: 0.3 | CA66: 0.1 | CB66: 0 | CC66: 0.94 | CD66: 0.93 | CE66: 0.44 | CF66: 0.4 | CG66: 0.3 | CH66: 0.418 | CI66: 0.306 | CJ66: 1.23 | CK66: 1.1 | CL66: 1.1 | CM66: 1.3 | CN66: 1.3 | CO66: 2.05 | CP66: 1.25 | CQ66: 1.7 | CR66: 1.2 | CT66: 0.791 | CU66: 0.793 | CV66: 0.5 | CW66: 0.8 | CX66: 0.8 | CY66: 0.8 | CZ66: 0.8 | DA66: 0.789 | DB66: 0.463 | DC66: 0 | DG66: 0.6 | DH66: 0.6 | DI66: 0.8 | DJ66: 0.5 | DK66: 0.6 | DL66: 0.6 | DM66: 0.6 | DN66: 0.5 | DO66: 0.45 | DP66: 0.5 | DQ66: 0.5 | DR66: 0.5 | DS66: 0.456 | DT66: 0.303 | DU66: 0.954 | DV66: 0.731 | DW66: 0.954 | DX66: 0.731
B67: 10000 | D67: 0.1774944844 | E67: 2.230321491 | F67: 0 | G67: 0 | I67: 0.2641165257 | J67: 0.3688818216 | K67: 0.4081919789 | L67: 0.4475021362 | M67: 0.5718812346 | N67: 0.6962603331 | O67: 0.4882576466 | P67: 0.5613283515 | Q67: 0.6343990564 | R67: 0.8545846939 | S67: 0.549575865 | T67: 0.676864862 | U67: 0.655231178 | V67: 0.801383734 | W67: 1.0427562 | X67: 0.6536605954 | Y67: 0.7375147343 | Z67: 0.8213688731 | AA67: 1.061870098 | AB67: 1.231576562 | AC67: 1.098992944 | AD67: 1.24360168 | AE67: 0.9952067733 | AF67: 1.386599779 | AG67: 1.777992785 | AH67: 0.998660386 | AI67: 1.402879596 | AJ67: 1.64291513 | AK67: 1.470005512 | AL67: 0.7458146811 | AM67: 0.9114989638 | AN67: 1.077183247 | AO67: 1.489665747 | AP67: 1.902148247 | AQ67: 0.836608887 | AR67: 1.144906163 | AS67: 1.561417341 | AT67: 1.184032559 | AU67: 0.7956655025 | AV67: 1.001649022 | AW67: 1.207632542 | AX67: 1.696457505 | AY67: 1.386599779 | BB67: 0.05634010509 | BC67: 0.5038111661 | BD67: 0 | BE67: 2.744042372 | BF67: 0 | BG67: 0 | BL67: 0.4584136903 | BM67: 0.5876748264 | BN67: 0.8150036037 | BT67: 0 | BV67: 5 | BW67: 0 | BX67: 1.54 | BY67: 1.63 | BZ67: 0.2 | CA67: 0.1 | CB67: 0 | CC67: 0.99 | CD67: 0.99 | CE67: 0.46 | CF67: 0.4 | CG67: 0.3 | CH67: 0.476 | CI67: 0.322 | CJ67: 1.42 | CK67: 1.32 | CL67: 1.366666667 | CM67: 1.6 | CN67: 1.6 | CO67: 2.6 | CP67: 1.45 | CQ67: 1.833333333 | CR67: 1.3 | CT67: 0.798 | CU67: 0.801 | CV67: 0.5 | CW67: 0.9 | CX67: 0.8 | CY67: 0.9 | CZ67: 0.8 | DA67: 0.85525 | DB67: 0.495 | DC67: 0 | DG67: 0.6 | DH67: 0.5 | DI67: 0.8 | DJ67: 0.5 | DK67: 0.5 | DL67: 6 | DM67: 0.6 | DN67: 0.5 | DO67: 0.45 | DP67: 0.5 | DQ67: 0.4 | DR67: 0.5 | DS67: 0.418 | DT67: 0.236 | DU67: 0.954 | DV67: 0.731 | DW67: 0.954 | DX67: 0.731
A69: Wheelset 5 | B69: 200 | E69: 208.4345773 | F69: 253.9480881 | G69: 73.26450367 | BV69: 81.8
B70: 400 | E70: 129.3823526 | F70: 84.81934581 | G70: 9.943448496 | BV70: 86.9
B71: 600 | E71: 57.0317695 | F71: 26.15756467 | G71: 5.343920452 | BV71: 75
B72: 800 | E72: 39.02027558 | F72: 13.4501469 | G72: 4.034212495 | BV72: 77.2
B73: 1000 | E73: 6.876555096 | F73: 3.448106846 | G73: 2.666355162 | BV73: 67.3
B74: 1200 | E74: 0.9651782871 | F74: 0.9159577701 | G74: 1.911102063 | BV74: 54.8
B75: 1400 | E75: 0 | F75: 0.3604911161 | G75: 1.392760947 | BV75: 39.8
B76: 1800 | E76: 4.088813256 | F76: 0.9715760761 | G76: 0.9512940855 | BV76: 25.7
B77: 2200 | E77: 1.567430385 | F77: 0.1669139829 | G77: 0.7251800357 | BV77: 17.1
B78: 2600 | E78: 1.322256254 | F78: 0.13536167 | G78: 0.5761487254 | BV78: 11.4
B79: 3000 | E79: 1.237806199 | F79: 0.09063543675 | G79: 0.5062033592 | BV79: 8.7
B80: 4000 | E80: 0 | F80: 0 | G80: 0.01201063662 | BV80: 4.7
B81: 6000 | E81: 0 | F81: 0 | G81: 0 | BV81: 3.1
B82: 8000 | E82: 0 | F82: 0 | G82: 0 | BV82: 1.4
B83: 10000 | E83: 0 | F83: 0 | G83: 0 | BV83: 0.8
A85: Wheelset 6 | B85: 200 | E85: 360.3889827 | F85: 364.4203851 | G85: 165.1715909 | BV85: 433.7
B86: 400 | E86: 94.86554069 | F86: 103.6733767 | G86: 12.19794535 | BV86: 146.3
B87: 600 | E87: 40.44912425 | F87: 31.11010556 | G87: 2.198619696 | BV87: 60.8
B88: 800 | E88: 16.67875639 | F88: 13.45218775 | G88: 1.342768494 | BV88: 30.1
B89: 1000 | E89: 7.17552489 | F89: 6.232704299 | G89: 0.8102737558 | BV89: 15
B90: 1200 | E90: 3.076550991 | F90: 5.509679048 | G90: 0.5256119412 | BV90: 4.8
B91: 1400 | E91: 0.8238667698 | F91: 3.365642402 | G91: 0.3731198924 | BV91: 2.2
B92: 1800 | E92: 2.684584309 | F92: 0 | G92: 0.3505682985 | BV92: 1.4
B93: 2200 | E93: 2.153226328 | F93: 1.61021998 | G93: 0.3092401869 | BV93: 1.2
B94: 2600 | E94: 1.21025669 | F94: 2.855148247 | G94: 0.2515219611 | BV94: 0.6
B95: 3000 | E95: 0.8572732528 | F95: 1.424610317 | G95: 0.2332871344 | BV95: 0.9
B96: 4000 | E96: 0 | F96: 0 | G96: 0 | BV96: 0.9
B97: 6000 | E97: 0 | F97: 0 | G97: 0 | BV97: 1.6
B98: 8000 | E98: 0 | F98: 0 | G98: 0 | BV98: 0.7
B99: 10000 | E99: 0 | F99: 0 | G99: 0 | BV99: 0.6

Sheet Passenger (hidden)
B2: Vehicle type | C2: 2016/17 vehicle miles where available | D2: Operating weight (t) | E2: Speed (mph) | I2: Axles | J2: Unsprung mass (kg) | K2: Curving Class | L2: Loco-hauled or MU?
E3: Maximum | F3: Operating (calc.) | G3: Operating (from timetable) | H3: Operating
B4: 25/3 | C4: 4139.77 | D4: 74 | E4: 90 | F4: 46.12899426 | H4: =IF(G4="",F4,G4) -> 46.12899426 | I4: 4 | J4: 3500 | K4: Loco2_50 | L4: N | N4: 1 | O4: =IF(N4=1,"N","Y") -> N
B5: 31/1 | C5: 691.75 | D5: 107 | E5: 90 | F5: 46.12899426 | H5: =IF(G5="",F5,G5) -> 46.12899426 | I5: 6 | J5: 3370 | K5: Loco3_50 | L5: N | N5: 1 | O5: =IF(N5=1,"N","Y") -> N
B6: 33/2 | C6: 1805.69 | D6: 76 | E6: 85 | F6: 41.83364028 | H6: 41.83364028 | I6: 4 | J6: 3500 | K6: Loco2_50 | L6: N | N6: 1 | O6: N
B7: 37/4 | C7: 364.3 | D7: 107 | E7: 80 | F7: 37.71405 | H7: 37.71405 | I7: 6 | J7: 3556 | K7: Loco3_50 | L7: N | N7: 1 | O7: N
B8: 43/0 | C8: 9378805.74 | D8: 73.25 | E8: 125 | F8: 80.89755892 | G8: 71.19 | H8: 71.19 | I8: 4 | J8: 2200 | K8: Loco2_50 | L8: N | N8: 1 | O8: N
B9: 47/4 | C9: 41953.54 | D9: 121 | E9: 95 | F9: 50.59722047 | H9: 50.59722047 | I9: 6 | J9: 3600 | K9: Loco3_50 | L9: N | N9: 1 | O9: N
B10: 47/7 | C10: 16441.53 | D10: 119 | E10: 95 | F10: 50.59722047 | H10: 50.59722047 | I10: 6 | J10: 3600 | K10: Loco3_50 | L10: N | N10: 1 | O10: N
B11: 57/0 | C11: 2218.45 | D11: 117 | E11: 95 | F11: 50.59722047 | H11: 50.59722047 | I11: 6 | J11: 3487 | K11: Loco3_50 | L11: N | N11: 1 | O11: N
B12: 57/3 | C12: 106113.03 | D12: 117 | E12: 95 | F12: 50.59722047 | H12: 50.59722047 | I12: 6 | J12: 3600 | K12: Loco3_50 | L12: N | N12: 1 | O12: N
B13: 57/6 | C13: 238662.73 | D13: 117 | E13: 95 | F13: 50.59722047 | H13: 50.59722047 | I13: 6 | J13: 3600 | K13: Loco3_50 | L13: N | N13: 1 | O13: N
B14: 67/0 | C14: 174692.48 | D14: 90 | E14: 125 | F14: 80.89755892 | H14: 80.89755892 | I14: 4 | J14: 2100 | K14: Loco2_50 | L14: N | N14: 1 | O14: N
B15: 67/0 (110) | C15: 0 | D15: 90 | E15: 110 | F15: 65.01308675 | H15: 65.01308675 | I15: 4 | J15: 2100 | K15: Loco2_50 | L15: N | M15: TfW request for Route Based Speed following industry consultation - final clarification email | N15: 1 | O15: N
B16: 68/0 | C16: 674773.13 | D16: 86 | E16: 100 | F16: 55.23562783 | H16: 55.23562783 | I16: 4 | J16: 2664 | K16: Class_68 | L16: N | N16: 1 | O16: N
B17: 73/2 | C17: 1607.34 | D17: 75 | E17: 90 | F17: 46.12899426 | H17: 46.12899426 | I17: 4 | J17: 3302 | K17: Loco2_50 | L17: N | N17: 1 | O17: N
B18: 73/9 | C18: 310832.58 | D18: 76.5 | E18: 90 | F18: 46.12899426 | H18: 46.12899426 | I18: 4 | J18: 3200 | K18: Loco2_50 | L18: N | N18: 1 | O18: N
B19: 90/0 | C19: 2841.81 | D19: 84 | E19: 110 | F19: 65.01308675 | H19: 65.01308675 | I19: 4 | J19: 2700 | K19: Loco2_50 | L19: N | N19: 1 | O19: N
B20: 91/1 | C20: 916614.78 | D20: 84 | E20: 125 | F20: 80.89755892 | H20: 80.89755892 | I20: 4 | J20: 1740 | K20: Loco2_50 | L20: N | N20: 1 | O20: N
B21: 92/0 | C21: 553018.16 | D21: 126 | E21: 87 | F21: 43.53085694 | H21: 43.53085694 | I21: 6 | J21: 3100 | K21: Loco3_50 | L21: N | N21: 1 | O21: N
B22: 98/4 | C22: 5541.26 | D22: 60 | E22: 45 | F22: 14.09979159 | H22: 14.09979159 | I22: 3 | J22: 1338 | K22: Loco3_50 | L22: N | N22: 1 | O22: N
B23: 98/5 | C23: 56117.54 | D23: 125 | E23: 75 | F23: 33.77334334 | H23: 33.77334334 | I23: 6 | J23: 1338 | K23: Loco3_50 | L23: N | N23: 1 | O23: N
B24: 98/8 | C24: 26081.21 | D24: 150 | E24: 75 | F24: 33.77334334 | H24: 33.77334334 | I24: 7 | J24: 1338 | K24: Loco3_50 | L24: N | N24: 1 | O24: N
B25: 1 | C25: 1196103.46 | D25: 42 | E25: 75 | F25: 33.77334334 | H25: 33.77334334 | I25: 4 | J25: 1700 | K25: Coach_8 | L25: Y | N25: 0.89 | O25: Y
B26: 2 | C26: 410791.42 | D26: 35.1625 | E26: 100 | F26: 55.23562783 | H26: 55.23562783 | I26: 4 | J26: 1260 | K26: Coach_12_40 | L26: Y | N26: 0.89 | O26: Y
B27: 3 | C27: 23919923.68 | D27: 38.22 | E27: 125 | F27: 80.89755892 | H27: 80.89755892 | I27: 4 | J27: 1260 | K27: Coach_16_40 | L27: Y | N27: 0.89 | O27: Y
B28: 3 (100) | C28: 0 | D28: 39.4575 | E28: 100 | F28: 55.23562783 | H28: 55.23562783 | I28: 4 | J28: 1260 | K28: Coach_16_40 | L28: Y | M28: Source VUC Calculator - TABS | N28: 0.89 | O28: Y
B29: 4 | C29: 348269.04 | D29: 42.35 | E29: 125 | F29: 80.89755892 | H29: 80.89755892 | I29: 4 | J29: 1860 | K29: Coach_60_50 | L29: Y | N29: 0.89 | O29: Y
B30: 4 (110) | C30: 0 | D30: 42.35 | E30: 110 | F30: 65.01308675 | H30: 65.01308675 | I30: 4 | J30: 1860 | K30: Coach_60_50 | L30: Y | M30: TfW request for Route Based Speed following industry consultation - final clarification email | N30: 0.89 | O30: Y
B31: 4A | C31: 8320649.46 | D31: 42.35 | E31: 125 | F31: 80.89755892 | H31: 80.89755892 | I31: 4 | J31: 1860 | K31: Coach_HB_50 | L31: Y | N31: 0.89 | O31: Y
B32: 5 | C32: 8830266.7 | D32: 36.0844 | E32: 110 | F32: 65.01308675 | H32: 65.01308675 | I32: 4 | J32: 1199 | K32: Coach_5 | L32: Y | N32: 0.89 | O32: Y
B33: 5A | C33: 2154465.6 | D33: 34.4045 | E33: 100 | F33: 55.23562783 | H33: 55.23562783 | I33: 4 | J33: 1183 | K33: Coach_5A | L33: Y | N33: 0.89 | O33: Y
B34: V | C34: 0 | D34: 43.7 | E34: 100 | F34: 55.23562783 | H34: 55.23562783 | I34: 4 | J34: 1500 | K34: Coach_80_50 | L34: Y | N34: 0.89 | O34: Y
B35: VA | C35: 202313.77 | D35: 48.5 | E35: 100 | F35: 55.23562783 | H35: 55.23562783 | I35: 4 | J35: 1500 | K35: Coach_80_50 | L35: Y | N35: 0.89 | O35: Y
B36: W | C36: 38606.57 | D36: 43.5 | E36: 140 | F36: 98.19700358 | H36: 98.19700358 | I36: 4 | J36: 1500 | K36: Coach_80_50 | L36: Y | N36: 0.89 | O36: Y
B37: WA | C37: 1030577.45 | D37: 43.5 | E37: 125 | F37: 80.89755892 | H37: 80.89755892 | I37: 4 | J37: 1500 | K37: Coach_HB_50 | L37: Y | N37: 0.89 | O37: Y
B38: 121/M | C38: 0 | D38: 40.4375 | E38: 75 | F38: 33.77334334 | H38: 33.77334334 | I38: 4 | J38: 2000 | K38: Coach_12_40 | L38: Y | N38: 0.89 | O38: Y
B39: 139/M | C39: 44232.54 | D39: 13.3625 | E39: 45 | F39: 14.09979159 | H39: 14.09979159 | I39: 2 | J39: 978 | K39: PPM_2axle | L39: Y | N39: 0.89 | O39: Y
B40: 142/M | C40: 122626.34 | D40: 27.2125 | E40: 75 | F40: 33.77334334 | H40: 33.77334334 | I40: 2 | J40: 1900 | K40: Pacer_10 | L40: Y | N40: 0.89 | O40: Y
B41: 143/M | C41: 183901.44 | D41: 26.325 | E41: 75 | F41: 33.77334334 | H41: 33.77334334 | I41: 2 | J41: 1900 | K41: Pacer_10 | L41: Y | N41: 0.89 | O41: Y
B42: 144/M | C42: 16758.62 | D42: 26.325 | E42: 75 | F42: 33.77334334 | H42: 33.77334334 | I42: 2 | J42: 1900 | K42: Pacer_10 | L42: Y | N42: 0.89 | O42: Y
B43: 150/M | C43: 25050770.03 | D43: 40.6875 | E43: 75 | F43: 33.77334334 | H43: 33.77334334 | I43: 4 | J43: 1300 | K43: Coach_12_40 | L43: Y | N43: 0.89 | O43: Y
B44: 153/M | C44: 2495377.66 | D44: 43.9 | E44: 75 | F44: 33.77334334 | H44: 33.77334334 | I44: 4 | J44: 1300 | K44: Coach_12_40 | L44: Y | N44: 0.89 | O44: Y
B45: 155/M | C45: 1374939.48 | D45: 42.4 | E45: 75 | F45: 33.77334334 | H45: 33.77334334 | I45: 4 | J45: 1300 | K45: Coach_12_40 | L45: Y | N45: 0.89 | O45: Y
B46: 156/M | C46: 21464950.93 | D46: 41.5625 | E46: 75 | F46: 33.77334334 | H46: 33.77334334 | I46: 4 | J46: 1300 | K46: Coach_12_40 | L46: Y | N46: 0.89 | O46: Y
B47: 158/M | C47: 41585079.27 | D47: 41.225 | E47: 90 | F47: 46.12899426 | H47: 46.12899426 | I47: 4 | J47: 1924 | K47: Coach_12_40 | L47: Y | N47: 0.89 | O47: Y
B48: 159/M | C48: 14234914.71 | D48: 41.2 | E48: 90 | F48: 46.12899426 | H48: 46.12899426 | I48: 4 | J48: 1924 | K48: Coach_12_40 | L48: Y | N48: 0.89 | O48: Y
B49: 165/M | C49: 19230423.85 | D49: 40.675 | E49: 75 | F49: 33.77334334 | H49: 33.77334334 | I49: 4 | J49: 1924 | K49: Coach_12_40 | L49: Y | N49: 0.89 | O49: Y
B50: 166/M | C50: 7697663.61 | D50: 42.15 | E50: 75 | F50: 33.77334334 | H50: 33.77334334 | I50: 4 | J50: 1924 | K50: Coach_12_40 | L50: Y | N50: 0.89 | O50: Y
B51: 168/3/M | C51: 0 | D51: 50.90625 | E51: 100 | F51: 55.23562783 | H51: 55.23562783 | I51: 4 | J51: 2185 | K51: Coach_12_40 | L51: Y | N51: 0.89 | O51: Y
B52: 168/M | C52: 12664985.63 | D52: 47.4125 | E52: 100 | F52: 55.23562783 | H52: 55.23562783 | I52: 4 | J52: 2185 | K52: Coach_12_40 | L52: Y | N52: 0.89 | O52: Y
B53: 170/M | C53: 37225579.23 | D53: 46.025 | E53: 100 | F53: 55.23562783 | H53: 55.23562783 | I53: 4 | J53: 1553 | K53: Coach_12_50 | L53: Y | N53: 0.89 | O53: Y
B54: 171/M | C54: 4916373.19 | D54: 49.7 | E54: 100 | F54: 55.23562783 | H54: 55.23562783 | I54: 4 | J54: 1553 | K54: Coach_12_50 | L54: Y | N54: 0.89 | O54: Y
B55: 172/M | C55: 8139952.19 | D55: 42.8 | E55: 100 | F55: 55.23562783 | G55: 33.4 | H55: 33.4 | I55: 4 | J55: 1331 | K55: Coach_8 | L55: Y | N55: 0.89 | O55: Y
B56: 175/M | C56: 11759636.96 | D56: 53.1 | E56: 100 | F56: 55.23562783 | H56: 55.23562783 | I56: 4 | J56: 1824 | K56: Coach_50_50 | L56: Y | N56: 0.89 | O56: Y
B57: 180/M | C57: 8827207.63 | D57: 53.5 | E57: 125 | F57: 80.89755892 | H57: 80.89755892 | I57: 4 | J57: 1879 | K57: Coach_50_50 | L57: Y | N57: 0.89 | O57: Y
B58: 185/M | C58: 525709.2 | D58: 55.8 | E58: 100 | F58: 55.23562783 | H58: 55.23562783 | I58: 4 | J58: 1833 | K58: Coach_24_50 | L58: Y | N58: 0.89 | O58: Y
B59: 185HB/M | C59: 23255437.2 | D59: 55.5 | E59: 100 | F59: 55.23562783 | H59: 55.23562783 | I59: 4 | J59: 1833 | K59: 185HB/M | L59: Y | N59: 0.89 | O59: Y
B60: 195/M | C60: 16959214.44 | D60: 44.955 | E60: 100 | F60: 55.23562783 | H60: 55.23562783 | I60: 4 | J60: 1493.75 | K60: Cl_195/M | L60: Y | N60: 0.89 | O60: Y
B61: 196/0/M | C61: 39166.18 | D61: 45.9125 | E61: 100 | F61: 55.23562783 | H61: 55.23562783 | I61: 4 | J61: 1493.75 | K61: Cl_196/0/M | L61: Y | N61: 0.89 | O61: Y
B62: 196/1/M | C62: 58908.96 | D62: 45.05 | E62: 100 | F62: 55.23562783 | H62: 55.23562783 | I62: 4 | J62: 1493.75 | K62: Cl_196/1/M | L62: Y | N62: 0.89 | O62: Y
B63: 220/M | C63: 31584721.28 | D63: 50.98 | E63: 125 | F63: 80.89755892 | G63: 68.71 | H63: 68.71 | I63: 4 | J63: 1338 | K63: Coach_26_50 | L63: Y | M63: Operating Weight changed as per correspondence and data provided by XC (50.98t taken from their spreadsheet). | N63: 0.89 | O63: Y
B64: 221/M | C64: 269001.72 | D64: 58.65 | E64: 125 | F64: 80.89755892 | G64: 68.71 | H64: 68.71 | I64: 4 | J64: 1830 | K64: Coach_48_60 | L64: Y | N64: 0.89 | O64: Y
B65: 221HB/M | C65: 41656211.76 | D65: 58.65 | E65: 125 | F65: 80.89755892 | G65: 68.71 | H65: 68.71 | I65: 4 | J65: 1830 | K65: Coach_HB_Cl221 | L65: Y | N65: 0.89 | O65: Y
B66: 221HB/TR/M | C66: 0 | D66: 55.48 | E66: 125 | F66: 80.89755892 | G66: 68.71 | H66: 68.71 | I66: 4 | J66: 1830 | K66: Coach_HB_Cl221 | L66: Y | M66: New VUC rate for 221s with Tilt Removed (TR) - Operating Weight as per VUC calculator | N66: 0.89 | O66: Y
B67: 222/M | C67: 37288461.64 | D67: 50.875 | E67: 125 | F67: 80.89755892 | H67: 80.89755892 | I67: 4 | J67: 1375 | K67: Coach_26_50 | L67: Y | N67: 0.89 | O67: Y
B68: 230/M | C68: 130395.4 | D68: 33.686 | E68: 60 | F68: 23.05992725 | G68: 30.57 | H68: 30.57 | I68: 4 | J68: 1688 | K68: Coach_35_50 | L68: Y | N68: 0.89 | O68: Y
B69: 230/T | C69: 14338.66 | D69: 22.749 | E69: 60 | F69: 23.05992725 | G69: 30.57 | H69: =IF(G69="",F69,G69) -> 30.57 | I69: 4 | J69: 1188 | K69: Coach_35_50 | L69: Y | N69: 0.89 | O69: =IF(N69=1,"N","Y") -> Y
B70: 313/M | C70: 2352829.74 | D70: 38.775 | E70: 75 | F70: 33.77334334 | H70: 33.77334334 | I70: 4 | J70: 2000 | K70: Coach_17_40 | L70: Y | N70: 0.89 | O70: Y
B71: 313/T | C71: 1176414.87 | D71: 34.1125 | E71: 75 | F71: 33.77334334 | H71: 33.77334334 | I71: 4 | J71: 1340 | K71: Coach_17_40 | L71: Y | N71: 0.89 | O71: Y
B72: 314/M | C72: 5096.82 | D72: 37.05 | E72: 75 | F72: 33.77334334 | H72: 33.77334334 | I72: 4 | J72: 2000 | K72: Coach_17_40 | L72: Y | N72: 0.89 | O72: Y
B73: 314/T | C73: 2548.41 | D73: 35.85 | E73: 75 | F73: 33.77334334 | H73: 33.77334334 | I73: 4 | J73: 1340 | K73: Coach_17_40 | L73: Y | N73: 0.89 | O73: Y
B74: 315/M | C74: 615547.42 | D74: 40.575 | E74: 75 | F74: 33.77334334 | H74: 33.77334334 | I74: 4 | J74: 2000 | K74: Coach_17_40 | L74: Y | N74: 0.89 | O74: Y
B75: 315/T | C75: 615547.42 | D75: 29.625 | E75: 75 | F75: 33.77334334 | H75: 33.77334334 | I75: 4 | J75: 1260 | K75: Coach_17_30 | L75: Y | N75: 0.89 | O75: Y
B76: 317/M | C76: 2100041.83 | D76: 51.6625 | E76: 100 | F76: 55.23562783 | H76: 55.23562783 | I76: 4 | J76: 2870 | K76: Coach_35_50 | L76: Y | N76: 0.89 | O76: Y
B77: 317/T | C77: 6300125.49 | D77: 31.9 | E77: 100 | F77: 55.23562783 | H77: 55.23562783 | I77: 4 | J77: 1300 | K77: Coach_17_30 | L77: Y | N77: 0.89 | O77: Y
B78: 318/M | C78: 1636666.77 | D78: 53.8625 | E78: 90 | F78: 46.12899426 | H78: 46.12899426 | I78: 4 | J78: 2900 | K78: Coach_35_50 | L78: Y | N78: 0.89 | O78: Y
B79: 318/T | C79: 3273333.54 | D79: 32.475 | E79: 90 | F79: 46.12899426 | H79: 46.12899426 | I79: 4 | J79: 1300 | K79: Coach_17_30 | L79: Y | N79: 0.89 | O79: Y
B80: 319/M | C80: 1272150.42 | D80: 53.5625 | E80: 100 | F80: 55.23562783 | H80: 55.23562783 | I80: 4 | J80: 2975 | K80: Coach_35_50 | L80: Y | N80: 0.89 | O80: Y
B81: 319/T | C81: 3816451.26 | D81: 31.625 | E81: 100 | F81: 55.23562783 | H81: 55.23562783 | I81: 4 | J81: 1225 | K81: Coach_17_30 | L81: Y | N81: 0.89 | O81: Y
B82: 320/M | C82: 2720444.19 | D82: 55.025 | E82: 90 | F82: 46.12899426 | H82: 46.12899426 | I82: 4 | J82: 2975 | K82: Coach_15_60 | L82: Y | N82: 0.89 | O82: Y
B83: 320/T | C83: 5440888.38 | D83: 39.0125 | E83: 90 | F83: 46.12899426 | H83: 46.12899426 | I83: 4 | J83: 1225 | K83: Coach_15_30 | L83: Y | N83: 0.89 | O83: Y
B84: 321/M | C84: 5273886.37 | D84: 54.0625 | E84: 100 | F84: 55.23562783 | H84: 55.23562783 | I84: 4 | J84: 2975 | K84: Coach_15_60 | L84: Y | N84: 0.89 | O84: Y
B85: 321/T | C85: 15821659.11 | D85: 32.1875 | E85: 100 | F85: 55.23562783 | H85: 55.23562783 | I85: 4 | J85: 1225 | K85: Coach_15_30 | L85: Y | N85: 0.89 | O85: Y
B86: 322/M | C86: 542025.72 | D86: 56.4125 | E86: 100 | F86: 55.23562783 | H86: 55.23562783 | I86: 4 | J86: 2975 | K86: Coach_15_60 | L86: Y | N86: 0.89 | O86: Y
B87: 322/T | C87: 1626077.16 | D87: 33.8375 | E87: 100 | F87: 55.23562783 | H87: 55.23562783 | I87: 4 | J87: 1225 | K87: Coach_15_30 | L87: Y | N87: 0.89 | O87: Y
B88: 323/M | C88: 7863172.48 | D88: 42.775 | E88: 75 | F88: 33.77334334 | H88: 33.77334334 | I88: 4 | J88: 1700 | K88: Coach_15_40 | L88: Y | N88: 0.89 | O88: Y
B89: 323/T | C89: 3931586.24 | D89: 39.8 | E89: 75 | F89: 33.77334334 | H89: 33.77334334 | I89: 4 | J89: 1340 | K89: Coach_15_40 | L89: Y | N89: 0.89 | O89: Y
B90: 331/M | C90: 8849240 | D90: 42.305 | E90: 100 | F90: 55.23562783 | H90: 55.23562783 | I90: 4 | J90: 1450 | K90: Cl_331/M | L90: Y | N90: 0.89 | O90: Y
B91: 331/T | C91: 5318313.03 | D91: 35.39 | E91: 100 | F91: 55.23562783 | H91: 55.23562783 | I91: 4 | J91: 1190 | K91: Cl_ 331/T | L91: Y | N91: 0.89 | O91: Y
B92: 332/M | C92: 0 | D92: 50.25 | E92: 100 | F92: 55.23562783 | H92: 55.23562783 | I92: 4 | J92: 1639 | K92: Coach_12_50 | L92: Y | N92: 0.89 | O92: Y
B93: 332/T | C93: 0 | D93: 49.0625 | E93: 100 | F93: 55.23562783 | H93: 55.23562783 | I93: 4 | J93: 1577 | K93: Coach_12_50 | L93: Y | N93: 0.89 | O93: Y
B94: 333/M | C94: 2591080.08 | D94: 53.975 | E94: 100 | F94: 55.23562783 | H94: 55.23562783 | I94: 4 | J94: 1639 | K94: Coach_12_50 | L94: Y | N94: 0.89 | O94: Y
B95: 333/T | C95: 2591080.08 | D95: 49.7 | E95: 100 | F95: 55.23562783 | H95: 55.23562783 | I95: 4 | J95: 1577 | K95: Coach_12_50 | L95: Y | N95: 0.89 | O95: Y
B96: 334/M | C96: 7822809.4 | D96: 45 | E96: 90 | F96: 46.12899426 | H96: 46.12899426 | I96: 4 | J96: 1765 | K96: Coach_50_50 | L96: Y | N96: 0.89 | O96: Y
B97: 334/T | C97: 3911404.7 | D97: 41.4625 | E97: 90 | F97: 46.12899426 | H97: 46.12899426 | I97: 4 | J97: 1414 | K97: Coach_50_40 | L97: Y | N97: 0.89 | O97: Y
B98: 345/M FLU | C98: 31545901.95 | D98: 37.97875 | E98: 90 | F98: 46.12899426 | H98: 46.12899426 | I98: 4 | J98: 1472 | K98: Cl_345/M_FLU | L98: Y | N98: 0.89 | O98: Y
B99: 345/M RLU | C99: 5843228.46 | D99: 39.524 | E99: 90 | F99: 46.12899426 | H99: 46.12899426 | I99: 4 | J99: 1497 | K99: Cl_345/M_RLU | L99: Y | N99: 0.89 | O99: Y
B100: 345/T | C100: 5023234.2 | D100: 31.525 | E100: 90 | F100: 46.12899426 | H100: 46.12899426 | I100: 4 | J100: 1079 | K100: Cl_345/T | L100: Y | N100: 0.89 | O100: Y
B101: 350/1/M | C101: 10527605.64 | D101: 50.49 | E101: 110 | F101: 65.01308675 | H101: 65.01308675 | I101: 4 | J101: 1870 | K101: Coach_24_50 | L101: Y | N101: 0.89 | O101: Y
B102: 350/1/T | C102: 10328135.28 | D102: 42.78 | E102: 110 | F102: 65.01308675 | H102: 65.01308675 | I102: 4 | J102: 1550 | K102: Coach_24_40 | L102: Y | N102: 0.89 | O102: Y
B103: 350/2/M (110) | C103: 14152036.44 | D103: 47.6 | E103: 110 | F103: 65.01308675 | H103: 65.01308675 | I103: 4 | J103: 1760 | K103: Coach_24_50 | L103: Y | N103: 0.89 | O103: Y
B104: 350/2/T (110) | C104: 14152036.44 | D104: 42.54 | E104: 110 | F104: 65.01308675 | H104: 65.01308675 | I104: 4 | J104: 1548 | K104: Coach_24_40 | L104: Y | N104: 0.89 | O104: Y
B105: 350/3/4/M | C105: 7523955.78 | D105: 46.74 | E105: 110 | F105: 65.01308675 | H105: 65.01308675 | I105: 4 | J105: 1760 | K105: Coach_24_50 | L105: Y | N105: 0.89 | O105: Y
B106: 350/3/4/T | C106: 7723426.14 | D106: 42.3 | E106: 110 | F106: 65.01308675 | H106: 65.01308675 | I106: 4 | J106: 1550 | K106: Coach_24_40 | L106: Y | N106: 0.89 | O106: Y
B107: 357/3/M | C107: 0 | D107: 42.19799 | E107: 100 | F107: 55.23562783 | H107: 55.23562783 | I107: 4 | J107: 1470 | K107: Coach_12_40 | L107: Y | N107: 0.89 | O107: Y
B108: 357/3/M (75) | C108: 4953265.74 | D108: 42.19799 | E108: 75 | F108: 33.77334334 | H108: 33.77334334 | I108: 4 | J108: 1470 | K108: Coach_12_40 | L108: Y | N108: 0.89 | O108: Y
B109: 357/3/T | C109: 0 | D109: 41.729 | E109: 100 | F109: 55.23562783 | H109: 55.23562783 | I109: 4 | J109: 1310 | K109: Coach_12_40 | L109: Y | N109: 0.89 | O109: Y
B110: 357/3/T (75) | C110: 1651088.58 | D110: 41.729 | E110: 75 | F110: 33.77334334 | H110: 33.77334334 | I110: 4 | J110: 1310 | K110: Coach_12_40 | L110: Y | N110: 0.89 | O110: Y
B111: 357/M | C111: 553631.09 | D111: 43.6625 | E111: 100 | F111: 55.23562783 | H111: 55.23562783 | I111: 4 | J111: 1470 | K111: Coach_12_40 | L111: Y | N111: 0.89 | O111: Y
B112: 357/M (75) | C112: 16573674.48 | D112: 43.6625 | E112: 75 | F112: 33.77334334 | H112: 33.77334334 | I112: 4 | J112: 1470 | K112: Coach_12_40 | L112: Y | N112: 0.89 | O112: Y
B113: 357/T | C113: 184811.08 | D113: 44.175 | E113: 100 | F113: 55.23562783 | H113: 55.23562783 | I113: 4 | J113: 1310 | K113: Coach_12_40 | L113: Y | N113: 0.89 | O113: Y
B114: 357/T (75) | C114: 5524558.16 | D114: 44.175 | E114: 75 | F114: 33.77334334 | H114: 33.77334334 | I114: 4 | J114: 1310 | K114: Coach_12_40 | L114: Y | N114: 0.89 | O114: Y
B115: 360/M | C115: 5546205.62 | D115: 47.1875 | E115: 100 | F115: 55.23562783 | H115: 55.23562783 | I115: 4 | J115: 1870 | K115: Coach_24_50 | L115: Y | N115: 0.89 | O115: Y
B116: 360/T | C116: 5520630.66 | D116: 42.15 | E116: 100 | F116: 55.23562783 | H116: 55.23562783 | I116: 4 | J116: 1550 | K116: Coach_24_40 | L116: Y | N116: 0.89 | O116: Y
B117: 365/M | C117: 43651.64 | D117: 44.25 | E117: 100 | F117: 55.23562783 | H117: 55.23562783 | I117: 4 | J117: 2000 | K117: Coach_12_40 | L117: Y | N117: 0.89 | O117: Y
B118: 365/T | C118: 43651.64 | D118: 37.15 | E118: 100 | F118: 55.23562783 | H118: 55.23562783 | I118: 4 | J118: 1400 | K118: Coach_12_30 | L118: Y | N118: 0.89 | O118: Y
B119: 373/M | C119: 3459008.04 | D119: 59.2 | E119: 100 | F119: 55.23562783 | H119: 55.23562783 | I119: 3.5 | J119: 2140 | K119: Loco2_50 | L119: Y | N119: 0.89 | O119: Y
B120: 373/T | C120: 31131072.36 | D120: 32.3 | E120: 100 | F120: 55.23562783 | H120: 55.23562783 | I120: 2.1 | J120: 2043 | K120: Artic2_80 | L120: Y | N120: 0.89 | O120: Y
B121: 375/M | C121: 39875905.51 | D121: 46.1625 | E121: 100 | F121: 55.23562783 | H121: 55.23562783 | I121: 4 | J121: 1470 | K121: Coach_12_50 | L121: Y | N121: 0.89 | O121: Y
B122: 375/T | C122: 13605485.72 | D122: 37.8125 | E122: 100 | F122: 55.23562783 | H122: 55.23562783 | I122: 4 | J122: 1325 | K122: Coach_12_40 | L122: Y | N122: 0.89 | O122: Y
B123: 376/M | C123: 9065530.86 | D123: 43.45 | E123: 75 | F123: 33.77334334 | H123: 33.77334334 | I123: 4 | J123: 1473 | K123: Coach_12_40 | L123: Y | N123: 0.89 | O123: Y
B124: 376/T | C124: 2266386.24 | D124: 38.1 | E124: 75 | F124: 33.77334334 | H124: 33.77334334 | I124: 4 | J124: 1325 | K124: Coach_12_40 | L124: Y | N124: 0.89 | O124: Y
B125: 377/M | C125: 72287497.6 | D125: 44.6 | E125: 100 | F125: 55.23562783 | H125: 55.23562783 | I125: 4 | J125: 1257 | K125: Coach_12_50 | L125: Y | N125: 0.89 | O125: Y
B126: 377/T | C126: 23964639.1 | D126: 39.5 | E126: 100 | F126: 55.23562783 | H126: 55.23562783 | I126: 4 | J126: 1093 | K126: Coach_12_40 | L126: Y | N126: 0.89 | O126: Y
B127: 378/M | C127: 10217171.26 | D127: 43.41 | E127: 75 | F127: 33.77334334 | H127: 33.77334334 | I127: 4 | J127: 1645 | K127: Coach_12_50 | L127: Y | N127: 0.89 | O127: Y
B128: 378/T | C128: 2630263.44 | D128: 38.76 | E128: 75 | F128: 33.77334334 | H128: 33.77334334 | I128: 4 | J128: 1435 | K128: Coach_12_40 | L128: Y | N128: 0.89 | O128: Y
B129: 379/M | C129: 8169288.9 | D129: 44.2 | E129: 100 | F129: 55.23562783 | H129: 55.23562783 | I129: 4 | J129: 1559 | K129: Coach_12_50 | L129: Y | N129: 0.89 | O129: Y
B130: 379/T | C130: 2723096.3 | D130: 43.68 | E130: 100 | F130: 55.23562783 | H130: 55.23562783 | I130: 4 | J130: 1425 | K130: Coach_12_50 | L130: Y | N130: 0.89 | O130: Y
B131: 380/M | C131: 7635549.4 | D131: 47.725 | E131: 100 | F131: 55.23562783 | H131: 55.23562783 | I131: 4 | J131: 1916 | K131: Coach_24_50 | L131: Y | N131: 0.89 | O131: Y
B132: 380/T | C132: 5310090.82 | D132: 44.9875 | E132: 100 | F132: 55.23562783 | H132: 55.23562783 | I132: 4 | J132: 1548 | K132: Coach_17_40 | L132: Y | N132: 0.89 | O132: Y
B133: 385/M | C133: 14419194.89 | D133: 45.68 | E133: 100 | F133: 55.23562783 | H133: =IF(G133="",F133,G133) -> 55.23562783 | I133: 4 | J133: 1530 | K133: Cl_385/M | L133: Y | N133: 0.89 | O133: =IF(N133=1,"N","Y") -> Y
B134: 385/T | C134: 10090455.29 | D134: 39.9 | E134: 100 | F134: 55.23562783 | H134: =IF(G134="",F134,G134) -> 55.23562783 | I134: 4 | J134: 1320 | K134: Cl_385/T | L134: Y | N134: 0.89 | O134: Y
B135: 387/M | C135: 33689821.23 | D135: 46.6125 | E135: 110 | F135: 65.01308675 | H135: =IF(G135="",F135,G135) -> 65.01308675 | I135: 4 | J135: 1588 | K135: Coach_12_50 | L135: Y | N135: 0.89 | O135: Y
B136: 387/M (75) | C136: 732467.73 | D136: 46.6125 | E136: 75 | F136: 33.77334334 | H136: =IF(G136="",F136,G136) -> 33.77334334 | I136: 4 | J136: 1588 | K136: Coach_12_50 | L136: Y | N136: 0.89 | O136: Y
B137: 387/T | C137: 11383008.19 | D137: 43.2875 | E137: 110 | F137: 65.01308675 | H137: =IF(G137="",F137,G137) -> 65.01308675 | I137: 4 | J137: 1407 | K137: Coach_12_40 | L137: Y | N137: 0.89 | O137: Y
B138: 387/T (75) | C138: 155795.03 | D138: 43.2875 | E138: 75 | F138: 33.77334334 | H138: =IF(G138="",F138,G138) -> 33.77334334 | I138: 4 | J138: 1407 | K138: Coach_12_40 | L138: Y | N138: 0.89 | O138: Y
B139: 390/M | C139: 390377.49 | D139: 54.38 | E139: 125 | F139: 80.89755892 | H139: 80.89755892 | I139: 4 | J139: 1835 | K139: Tilting_50_50 | L139: Y | N139: 0.89 | O139: Y
B140: 390/T | C140: 216586.59 | D140: 52.06 | E140: 125 | F140: 80.89755892 | H140: 80.89755892 | I140: 4 | J140: 1699 | K140: Tilting_50_50 | L140: Y | N140: 0.89 | O140: Y
B141: 390HB/M | C141: 94096544.59 | D141: 54.38 | E141: 125 | F141: 80.89755892 | H141: 80.89755892 | I141: 4 | J141: 1835 | K141: Cl_390/HB/M | L141: Y | N141: 0.89 | O141: Y
B142: 390HB/T | C142: 51564393.4 | D142: 52.06 | E142: 125 | F142: 80.89755892 | H142: 80.89755892 | I142: 4 | J142: 1699 | K142: Cl_390/HB/T | L142: Y | N142: 0.89 | O142: Y
B143: 395/M | C143: 20242850.64 | D143: 47.475 | E143: 100 | F143: 55.23562783 | H143: 55.23562783 | I143: 4 | J143: 1979 | K143: Coach_16_50 | L143: Y | N143: 0.89 | O143: Y
B144: 395/T | C144: 10121446.78 | D144: 47.75 | E144: 100 | F144: 55.23562783 | H144: 55.23562783 | I144: 4 | J144: 1724 | K144: Coach_16_50 | L144: Y | N144: 0.89 | O144: Y
B145: 397/M | C145: 5717629.26 | D145: 40.5475 | E145: 110 | F145: 65.01308675 | H145: 65.01308675 | I145: 4 | J145: 1488 | K145: Cl_397/M | L145: Y | N145: 0.89 | O145: Y
B146: 397/T | C146: 3811752.84 | D146: 38.15 | E146: 110 | F146: 65.01308675 | H146: 65.01308675 | I146: 4 | J146: 1235.5 | K146: Cl_ 397/T | L146: Y | N146: 0.89 | O146: Y
B147: 399/0 | C147: 583130.28 | D147: 21.7 | E147: 62.15 | F147: 24.49083724 | H147: 24.49083724 | I147: 2.67 | J147: 818 | K147: Cl_399/0 | L147: Y | M147: Nick Prag 15.11.23 email | N147: 0.89 | O147: Y
B148: 442/M | C148: 0 | D148: 56.95 | E148: 100 | F148: 55.23562783 | H148: 55.23562783 | I148: 4 | J148: 3230 | K148: Coach_12_50 | L148: Y | N148: 0.89 | O148: Y
B149: 442/T | C149: 0 | D149: 41.275 | E149: 100 | F149: 55.23562783 | H149: 55.23562783 | I149: 4 | J149: 1325 | K149: Coach_12_40 | L149: Y | N149: 0.89 | O149: Y
B150: 444HB/M | C150: 14803836.52 | D150: 54.4 | E150: 100 | F150: 55.23562783 | H150: 55.23562783 | I150: 4 | J150: 1840 | K150: Coach_HB_60 | L150: Y | N150: 0.89 | O150: Y
B151: 444HB/T | C151: 22205455.33 | D151: 42.82 | E151: 100 | F151: 55.23562783 | H151: 55.23562783 | I151: 4 | J151: 1510 | K151: Coach_HB_50 | L151: Y | N151: 0.89 | O151: Y
B152: 450/M | C152: 277061.62 | D152: 51.21 | E152: 100 | F152: 55.23562783 | H152: 55.23562783 | I152: 4 | J152: 1920 | K152: Coach_24_50 | L152: Y | N152: 0.89 | O152: Y
B153: 450/T | C153: 277108.54 | D153: 40.61 | E153: 100 | F153: 55.23562783 | H153: 55.23562783 | I153: 4 | J153: 1550 | K153: Coach_24_40 | L153: Y | N153: 0.89 | O153: Y
B154: 450HB/M | C154: 29886623.38 | D154: 51.21 | E154: 100 | F154: 55.23562783 | H154: 55.23562783 | I154: 4 | J154: 1920 | K154: Coach_HB_50 | L154: Y | N154: 0.89 | O154: Y
B155: 450HB/T | C155: 29886623.38 | D155: 40.61 | E155: 100 | F155: 55.23562783 | H155: 55.23562783 | I155: 4 | J155: 1550 | K155: Coach_HB_40 | L155: Y | N155: 0.89 | O155: Y
B156: 455/M/AC | C156: 0 | D156: 50.576 | E156: 75 | F156: 33.77334334 | H156: 33.77334334 | I156: 4 | J156: 2432 | K156: Coach_35_50 | L156: Y | M156: Characteristics are for the AC variant of 455s, introduced as a supplement during CP6 (note, supplements list omits 'AC' suffix, meaning that supplements name is identical to PR18 name). All vehicles have been converted to the AC variant. | N156: 0.89 | O156: Y
B157: 455/T/AC | C157: 0 | D157: 32.429 | E157: 75 | F157: 33.77334334 | H157: 33.77334334 | I157: 4 | J157: 1260 | K157: Coach_17_30 | L157: Y | M157: Characteristics are for the AC variant of 455s, introduced as a supplement during CP6 (note, supplements list omits 'AC' suffix, meaning that supplements name is identical to PR18 name). All vehicles have been converted to the AC variant. | N157: 0.89 | O157: Y
B158: 456/M | C158: 1191015.04 | D158: 44.0625 | E158: 75 | F158: 33.77334334 | H158: 33.77334334 | I158: 4 | J158: 3000 | K158: Coach_12_40 | L158: Y | N158: 0.89 | O158: Y
B159: 456/T | C159: 1191015.04 | D159: 33.3125 | E159: 75 | F159: 33.77334334 | H159: 33.77334334 | I159: 4 | J159: 1260 | K159: Coach_12_30 | L159: Y | N159: 0.89 | O159: Y
B160: 458/5/M | C160: 6768488.98 | D160: 45.4975 | E160: 75 | F160: 33.77334334 | H160: 33.77334334 | I160: 4 | J160: 1662 | K160: Coach_80_50 | L160: Y | N160: 0.89 | O160: Y
B161: 458/5/T | C161: 4552891.12 | D161: 36.24 | E161: 75 | F161: 33.77334334 | H161: 33.77334334 | I161: 4 | J161: 1438 | K161: Coach_80_40 | L161: Y | N161: 0.89 | O161: Y
B162: 458/M | C162: 73212.98 | D162: 47.63 | E162: 75 | F162: 33.77334334 | H162: 33.77334334 | I162: 4 | J162: 1662 | K162: Coach_80_50 | L162: Y | N162: 0.89 | O162: Y
B163: 458/T | C163: 4121.76 | D163: 38.04 | E163: 75 | F163: 33.77334334 | H163: 33.77334334 | I163: 4 | J163: 1438 | K163: Coach_80_40 | L163: Y | N163: 0.89 | O163: Y
B164: 465/M | C164: 19854925.12 | D164: 42.2 | E164: 75 | F164: 33.77334334 | H164: 33.77334334 | I164: 4 | J164: 2000 | K164: Coach_15_40 | L164: Y | N164: 0.89 | O164: Y
B165: 465/T | C165: 19854925.12 | D165: 32.875 | E165: 75 | F165: 33.77334334 | H165: 33.77334334 | I165: 4 | J165: 1239 | K165: Coach_15_30 | L165: Y | N165: 0.89 | O165: Y
B166: 466/M | C166: 2169971.13 | D166: 43.825 | E166: 75 | F166: 33.77334334 | H166: 33.77334334 | I166: 4 | J166: 3000 | K166: Coach_15_40 | L166: Y | N166: 0.89 | O166: Y
B167: 466/T | C167: 2169971.13 | D167: 34.475 | E167: 75 | F167: 33.77334334 | H167: 33.77334334 | I167: 4 | J167: 1250 | K167: Coach_15_30 | L167: Y | N167: 0.89 | O167: Y
B168: 507/M | C168: 4719640.4 | D168: 40.85 | E168: 75 | F168: 33.77334334 | H168: 33.77334334 | I168: 4 | J168: 3000 | K168: Coach_17_40 | L168: Y | N168: 0.89 | O168: Y
B169: 507/T | C169: 2359820.2 | D169: 30.2 | E169: 75 | F169: 33.77334334 | H169: 33.77334334 | I169: 4 | J169: 1260 | K169: Coach_17_30 | L169: Y | N169: 0.89 | O169: Y
B170: 508/M | C170: 4321217.68 | D170: 40.3 | E170: 75 | F170: 33.77334334 | H170: 33.77334334 | I170: 4 | J170: 3000 | K170: Coach_17_40 | L170: Y | N170: 0.89 | O170: Y
B171: 508/T | C171: 2160608.84 | D171: 31.6 | E171: 75 | F171: 33.77334334 | H171: 33.77334334 | I171: 4 | J171: 1260 | K171: Coach_17_30 | L171: Y | N171: 0.89 | O171: Y
B172: 700/M | C172: 76993965.85 | D172: 39.06 | E172: 100 | F172: 55.23562783 | H172: 55.23562783 | I172: 4 | J172: 1282 | K172: Cl_700/M | L172: Y | M172: User defined' Tgamma values provided for CP7. Mark Burstow approved on 16.03.23 | N172: 0.89 | O172: Y
B173: 700/T | C173: 76993886.3 | D173: 32.6225 | E173: 100 | F173: 55.23562783 | H173: 55.23562783 | I173: 4 | J173: 1160 | K173: Cl_ 700/T | L173: Y | M173: User defined' Tgamma values provided for CP7. Mark Burstow approved on 16.03.23 | N173: 0.89 | O173: Y
B174: 701/T | C174: 0 | D174: 29.224 | E174: 100 | F174: 55.23562783 | H174: 55.23562783 | I174: 4 | J174: 971 | K174: Cl_701/T | L174: Y | M174: Consented to in July 2023 but never added to the published supplements list. | N174: 0.89 | O174: Y
B175: 701/0/M1 | C175: 0 | D175: 40.125 | E175: 100 | F175: 55.23562783 | I175: 4 | J175: 1287 | K175: Cl_701/0/M1 | L175: Y | M175: Consented to in July 2023 but never added to the published supplements list. | N175: 0.89 | O175: Y
B176: 701/0/M2 | C176: 0 | D176: 31.335 | E176: 100 | F176: 55.23562783 | I176: 4 | J176: 1265 | K176: Cl_701/0/M2 | L176: Y | M176: Consented to in July 2023 but never added to the published supplements list. | N176: 0.89 | O176: Y
B177: 701/5/M1 | C177: 0 | D177: 41.631 | E177: 100 | F177: 55.23562783 | I177: 4 | J177: 1290 | K177: Cl_701/5/M1 | L177: Y | M177: Consented to in July 2023 but never added to the published supplements list. | N177: 0.89 | O177: Y
B178: 701/5/M2 | C178: 0 | D178: 31.485 | E178: 100 | F178: 55.23562783 | I178: 4 | J178: 1265 | K178: Cl_701/5/M2 | L178: Y | M178: Consented to in July 2023 but never added to the published supplements list. | N178: 0.89 | O178: Y
B179: 707/M | C179: 4105934.54 | D179: 39.687 | E179: 100 | F179: 55.23562783 | I179: 4 | J179: 1325 | K179: Cl_707/M | L179: Y | N179: 0.89 | O179: Y
B180: 707/T | C180: 6158901.81 | D180: 30.3685 | E180: 100 | F180: 55.23562783 | I180: 4 | J180: 1211 | K180: Cl_707/T | L180: Y | N180: 0.89 | O180: Y
B181: 710/1/M | C181: 0 | D181: 37.17888 | E181: 75 | F181: 33.77334334 | I181: 4 | J181: 1375 | K181: Coach_8 | L181: Y | M181: Source VUC Calculator - TABS | N181: 0.89 | O181: Y
B182: 710/2/M | C182: 0 | D182: 38.68888 | E182: 75 | F182: 33.77334334 | I182: 4 | J182: 1377.19 | K182: Coach_8 | L182: Y | M182: Source VUC Calculator - TABS | N182: 0.89 | O182: Y
B183: 710/3/M | C183: 0 | D183: 37.5105 | E183: 75 | F183: 33.77334334 | I183: 4 | J183: 1372.45 | K183: Coach_8 | L183: Y | M183: Source VUC Calculator - TABS | N183: 0.89 | O183: Y
B184: 717/M | C184: 4943064.12 | D184: 39.867 | E184: 85 | F184: 41.83364028 | I184: 4 | J184: 1309.33 | K184: Cl_717/M | L184: Y | N184: 0.89 | O184: Y
B185: 717/T | C185: 4943064.12 | D185: 32.87963 | E185: 85 | F185: 41.83364028 | I185: 4 | J185: 1203 | K185: Cl_717/T | L185: Y | N185: 0.89 | O185: Y
B186: 720/5/M | C186: 15660258.92 | D186: 41.1688 | E186: 100 | F186: 55.23562783 | I186: 4 | J186: 1373 | K186: Cl_720/5/M | L186: Y | N186: 0.89 | O186: Y
B187: 720/5/T | C187: 3915064.73 | D187: 37.5215 | E187: 100 | F187: 55.23562783 | I187: 4 | J187: 992 | K187: Cl_ 720/5/T | L187: Y | N187: 0.89 | O187: Y
B188: 745/0/M | C188: 7328400.64 | D188: 28.5955 | E188: 100 | F188: 55.23562783 | I188: 2 | J188: 1956 | K188: Coach_HB_60 | L188: Y | N188: 0.89 | O188: Y
B189: 745/0/T | C189: 13818348.36 | D189: 37.028 | E189: 100 | F189: 55.23562783 | I189: 3.5 | J189: 1356 | K189: Coach_HB_40 | L189: Y | N189: 0.89 | O189: Y
B190: 745/1/M | C190: 5142994.6 | D190: 28.2835 | E190: 100 | F190: 55.23562783 | I190: 2 | J190: 1956 | K190: Coach_HB_60 | L190: Y | N190: 0.89 | O190: Y
B191: 745/1/T | C191: 10897418.56 | D191: 36.7135 | E191: 100 | F191: 55.23562783 | I191: 3.5 | J191: 1356 | K191: Coach_HB_40 | L191: Y | N191: 0.89 | O191: Y
B192: 755/3/M | C192: 3162774.74 | D192: 30.467 | E192: 100 | F192: 55.23562783 | I192: 2 | J192: 1956 | K192: Coach_HB_60 | L192: Y | N192: 0.89 | O192: Y
B193: 755/3/T | C193: 11330670.54 | D193: 39.264 | E193: 100 | F193: 55.23562783 | I193: 3 | J193: 1359 | K193: Coach_HB_50 | L193: Y | N193: 0.89 | O193: Y
B194: 755/4/M | C194: 5391903.73 | D194: 30.734 | E194: 100 | F194: 55.23562783 | I194: 2 | J194: 1956 | K194: Cl_755/4/M | L194: Y | M194: Curving class updated following agreement with ORR to apply user defined T-Gamma values - 28.9.23 | N194: 0.89 | O194: Y
B195: 755/4/T | C195: 0 | D195: 36.758 | E195: 100 | F195: 55.23562783 | I195: 2.67 | J195: 1359 | K195: Cl_755/4/T | L195: Y | M195: Curving class updated following agreement with ORR to apply user defined T-Gamma values - 28.9.23 | N195: 0.89 | O195: Y
B196: 769/M | C196: 604493.71 | D196: 54.6945 | E196: 100 | F196: 55.23562783 | I196: 4 | J196: 2975 | K196: Coach_35_50 | L196: Y | N196: 0.89 | O196: Y
B197: 769/T | C197: 1813481.13 | D197: 39.07438 | E197: 100 | F197: 55.23562783 | I197: 4 | J197: 1225 | K197: Coach_17_30 | L197: Y | N197: 0.89 | O197: =IF(N197=1,"N","Y") -> Y
B198: 777/M | C198: 0 | D198: 34.6525 | E198: 75 | F198: 33.77334334 | I198: 3 | J198: 1144 | K198: Cl_777/M | L198: Y | M198: Consent notice dated 18.05.23 | N198: 0.89 | O198: Y
B199: 777/T | C199: 0 | D199: 20.1575 | E199: 75 | F199: 33.77334334 | I199: 2 | J199: 875 | K199: Cl_ 777/T | L199: Y | M199: Consent notice dated 18.05.24 | N199: 0.89 | O199: Y
B200: 800/M FLU | C200: 38856481.53 | D200: 54.2 | E200: 125 | F200: 80.89755892 | I200: 4 | J200: 1605 | K200: Cl_800/M_FLU | L200: Y | N200: 0.89 | O200: Y
B201: 800/M RLU | C201: 17675087.13 | D201: 54.52 | E201: 125 | F201: 80.89755892 | I201: 4 | J201: 1605 | K201: Cl_800/M_RLU | L201: Y | N201: 0.89 | O201: Y
... 15 more rows
